Workbook

Sheet Forfeited Land Sales
B1: Forfeited Land Sales Unclaimed | C1: CHECK OR PAYIN# | D1: REVENUE | E1: EXPENSE | F1: Case Number / Description
A2: 2020-09-30 | B2: Unknown heirs, Devisees and assigns of Jesse L. Bradley and Alice M. Bradley | C2: J1565 | D2: 5718.33 | F2: 2017 CV 00751 Excess August 2018 Sale
A5: 2020-09-30 | B5: William K. Sprague | C5: J1566 | D5: 2772.43 | F5: 2017 CV 00751 Excess August 2020 Sale
A9: 2021-09-07 | B9: Unknown heirs, Devisees, and assigns of Fermer Smith (deceased) and Unknown heirs, Devisees, and assigns of Aileen Jordan (deceased) | C9: J1996 | D9: 189.56 | F9: 2020 CV 00257 May 2021 Sale
A15: 2021-09-07 | B15: Pauline Wilson | C15: J1996 | D15: 181.24 | F15: 2020 CV 00257 May 2021 Sale
A17: 2021-09-07 | B17: Unknown heirs, Devisees, and assigns of Della H Williams (deceased) | C17: J1996 | D17: 396.07 | F17: 2020 CV 00257 May 2021 Sale

Sheet shrf sales
A1: Payed Into County Treasury | B1: 2018 UNCLAIMED MONEY | C1: CHECK OR PAYIN# | D1: REVENUE | E1: EXPENSE | F1: BALANCE | H1: Case Number / Description | I1: ck issued | J1: ck #
A2: 2016-02-29 | B2: Maria Ludovica Aggazotti Cavazza | C2: 16-1045 | D2: 722.3 | F2: =F26+D2-E2 -> 722.3 | H2: Case #2011CV968 - Shrf Sale | I2: 2013-08-15 | J2: 27615
A3: 2016-04-28 | B3: Margaret S Jump | C3: 16-2051 | D3: 2703.53 | F3: =F2+D3-E3 -> 3425.83 | H3: Case #204CV303 - Shrf Sale | I3: 2015-02-20 | J3: 25666
A4: 2017-02-07 | B4: Norma Turney Unk Heirs | C4: 17-0669 | D4: 11790.32 | F4: 15216.15 | H4: Case #2014CV584 - Sheriff Sale | I4: 2015-12-22 | J4: 27298
A5: 2018-01-31 | B5: Whittington, Thelma, dec'd | C5: 18-0527 | D5: 12007.03 | F5: 27223.18 | H5: Case #2015CV515 - Sheriff Sale | I5: 2016-08-09 | J5: 28352
A6: 2018-01-31 | B6: Anselmo Lindberg Oliver | C6: 18-0527 | D6: 2919.75 | F6: 30142.93 | H6: Case #2015CV430 - Sheriff Sale | I6: 2017-03-21 | J6: 29110
A7: 2018-04-12 | B7: Corrado, Alan | C7: 18-1680 | D7: 14844.2 | F7: 44987.13 | H7: Case #2016CV242 - Sheriff Sale | I7: 2017-12-07 | J7: 31051
A8: 2018-05-02 | B8: Molek, Andrew & Andrea | C8: 18-2005 | D8: 2200.54 | F8: 47187.67 | H8: Case #2016CV278 - Sheriff Sale | I8: 2018-02-23 | J8: 30368
A9: 2018-05-08 | B9: McClemens, William | C9: 18-2078 | D9: 1375.6 | F9: 48563.27 | H9: Case #2017CV301 - Sheriff Sale | I9: 2018-03-06 | J9: 30388
B12: TOTAL CLAIMABLE | D12: =SUM(D2:D11) -> 48563.27 | E12: =SUM(E2:E11) -> 0 | F12: =SUM(D12-E12) -> 48563.27
A14: 2014-04-21 | B14: Heirs of Francesco Aggazzotti Cavazza | C14: 14-1899 | D14: 848.61 | H14: Case #2010CV385 - Shrf Sale | I14: 2011-04-05 | J14: 18082
A15: 2014-04-21 | B15: Kathy & Charles Coates | C15: 14-1899 | D15: 10 | H15: Case #2006CV840 - Shrf Sale | I15: 2008-05-29 | J15: 12836
A16: 2014-04-21 | B16: Heirs of Joann Carol Fox | C16: 14-1899 | D16: 7152.36 | H16: Case #2009CV1160 - Shrf Sale | I16: 2010-12-22 | J16: 17458
A17: 2014-04-21 | B17: Household Realty Corp | C17: 14-1899 | D17: 7079.24 | H17: Case #2004CV776 - Shrf Sale | I17: 2005-05-23 | J17: 9254
A18: 2014-04-21 | B18: Sampson & Rothfuss Lerner | C18: 14-1899 | D18: 2874.09 | H18: Case #2011CV69 - Shrf Sale | I18: 2012-08-21 | J18: 20391
A19: 2014-04-21 | B19: Attorney Manbir S Sandhu | C19: 14-1899 | D19: 2197.22 | H19: Case #2009CV469 - Shrf Sale | I19: 2012-04-16 | J19: 19893
A20: 2014-04-21 | B20: Chicago Title (Gibbs) | C20: 14-1900 | D20: 9105.3 | H20: Case #2-43842C28 - Shrf Sale | I20: Feb 2005
A21: 2014-04-21 | B21: Daniel Rice | C21: 14-1900 | D21: 2975.15 | H21: Case #96CV926 - Shrf Sale | I21: Feb 2005
A22: 2014-04-21 | B22: Reinner & Lorber (Caple) | C22: 14-1900 | D22: 584.29 | H22: Case #4-379100CV534 - Shrf Sale | I22: Aug 2000
A23: 2014-04-21 | B23: Sheriff Sale unknown from 1999 back | C23: 14-1901 | D23: 4889.78 | H23: sheriff Sale unknown from 1999 back
A25: 2016-03-03 | B25: Ashtabula Co Land Reutiliza #105389 | C25: CK 574293 | E25: =SUM(D14:D24) -> 37716.04
A26: 2014-04-21 | B26: Ronald Barto | C26: 14-1899 | D26: 8492.96 | E26: 8492.96 | F26: =D26-E26 -> 0 | H26: Case #2012CV302 - Shrf Sale | I26: 2016-07-14 | J26: 582556
A27: 2016-04-28 | B27: David Davis Unk Heirs | C27: 16-2051 | D27: 5731.32 | E27: 5731.32 | F27: =D27-E27 -> 0 | H27: Case #2014CV121 | I27: 2016-07-14 | J27: 582557
B29: TOTAL YEARS SHF SALE TAB | D29: =SUM(D12:D27) -> 100503.59 | E29: =SUM(E12:E27) -> 51940.32 | F29: =SUM(D29-E29) -> 48563.27

Sheet Claimed
A2: 2021-06-07 | B2: Steve Candella, Deceased Unk Heirs At-Law | C2: J3346 | D2: 1956.01 | F2: Unclaimed Funds from Foreclosure Sale (1993), Case No. 86321 | H2: Claimed on 6.10.24

Sheet TOTALS
B1: 2018 UNCLAIMED MONEY | C1: TYPE | D1: CHECK OR PAYIN# | E1: REVENUE | F1: EXPENSE | G1: BALANCE
A2: DATE | B2: 2018 begin CASH | G2: 91860.07 | J2: 2018-10-19
B3: (yrs + Shrf Sale Tab)
D5: 2010 TOTALS | E5: ='2010'!E32 -> 2101.09 | F5: ='2010'!F32 -> 0 | G5: =SUM(E5-F5) -> 2101.09
D6: 2011 TOTALS | E6: ='2011'!E422 -> 35030.5 | F6: ='2011'!F422 -> 1706.47 | G6: 33324.03
D7: 2012 TOTALS | E7: ='2012'!E112 -> 5764.97 | F7: ='2012'!F112 -> 1083.49 | G7: 4681.48
B8: UNCLAIMED ACTIVITY | D8: 2013 TOTALS | E8: ='2013'!D240 -> 11866.13 | F8: ='2013'!E240 -> 7127.32 | G8: 4738.81
D9: 2014 TOTALS | E9: ='2014'!D125 -> 6549.69 | F9: ='2014'!E125 -> 1438.79 | G9: 5110.9
D10: 2015 TOTALS | E10: ='2015'!D93 -> 4241.02 | F10: ='2015'!E93 -> 680.81 | G10: 3560.21
D11: 2016 TOTALS | E11: 9441.48 | F11: 73.78 | G11: =E11-F11 -> 9367.7
D12: 2017 TOTALS&Forfeit | E12: 35526.81 | F12: 28675.55 | G12: =E12-F12 -> 6851.26
D13: 2018 TOTALS&Forfeit | E13: 12840.21 | F13: 1350 | G13: =E13-F13 -> 11490.21
D14: SHERIFF SALES tab | E14: 100503.59 | F14: 51940.32 | G14: =E14-F14 -> 48563.27
D19: 08/01/2018 CASH BALANCE | G19: 136697.43
C20: MINUS | D20: 2013-2018 yr CASH | E20: & Shrf Sale tab | G20: =G8+G9+G10+G11+G12+G14+G13 -> 89682.36
B21: CASH TRANSFERS | C21: Minus | D21: 2018 TR to Co General | G21: 0 | H21: 2010 - 2012
D22: CASH THAT CAN BE MOVED | G22: =G19-G20-G21 -> 47015.07
J26: CASH RPT
I27: rev | J27: exp | K27: cash
H28: 2010 Begin Cash Bal | K28: 283223.53
H29: 2010 | I29: 2101.09 | J29: 0 | K29: 285324.62
H30: 2011 | I30: 35030.5 | J30: 1706.47 | K30: 318647.65
B31: RED TABS Years Cash Turned Over to Co General | H31: 2012 | I31: 5764.97 | J31: 117399.08 | K31: 207013.54
H32: 2013 | I32: 11866.63 | J32: 7127.32 | K32: 211752.85
H33: 2014 | I33: 52759.69 | J33: 1439.79 | K33: 263072.75
H34: 2015 | I34: 4241.02 | J34: 680.81 | K34: 266632.96
H35: 2016 | I35: 56315.67 | J35: 249730.14 | K35: 73218.49
H36: 2017 | I36: 47317.13 | J36: 28675.55 | K36: 92130.07
D37: minus j0996 fix of payin error $233249.62 to fund 8006 | H37: 2018 | I37: 46187.36 | J37: 1350 | K37: 126562.55
I39: =SUM(I29:I38) -> 261584.06 | J39: =SUM(J29:J38) -> 408109.16 | K39: =K28+I39-J39 -> 136698.43
K40: =G20 -> 89682.36

Sheet Expired Funds
B1: Forfeited Land Sales Unclaimed | C1: CHECK OR PAYIN# | D1: REVENUE | E1: EXPENSE | F1: Case Number / Description
A2: 2018-10-15 | B2: Braden, Clair & Barbara | C2: J1017 | D2: 5807.58 | F2: 2016 CF 00732 Excess 05/16/18 Sale | G2: Claim Expired
A3: 2018-10-15 | B3: Hackathorn, Richard J | C3: J1017 | D3: 1046.11 | F3: 2015 CV 00609 Excess 05/16/18 Sale | G3: Claim Expired
A4: 2018-10-15 | B4: Ritchie, Doreen | C4: J1017 | D4: 1324.58 | F4: 2017 CV 00413 Excess 05/16/18 Sale | G4: Claim Expired
A5: 2019-12-27 | B5: Douglass Jr., Wilbur C. | C5: J1301 | D5: 1833.93 | F5: 2018 CV 00483 Excess August 2019 Sale | G5: Claim Expired
A6: 2019-12-27 | B6: Ojala, Senja ET AL | C6: J1303 | D6: 341.77 | F6: 2018 CV 00483 Excess August 2019 Sale | G6: Claim Expired
A7: 2019-12-27 | B7: Penn-Ohio Plaza Inc. | C7: J1304 | D7: 4429.33 | F7: 2017 CV 00871 Excess August 2018 Sale | G7: Claim Expired

Sheet 2019
A1: 2019-12-27 | B1: Douglass Jr., Wilbur C. | C1: J1301 | D1: 1833.93 | F1: 2018 CV 00483 Excess August 2019 Sale
A2: 2019-12-27 | B2: Ojala, Senja ET AL | C2: J1303 | D2: 341.77 | F2: 2018 CV 00483 Excess August 2019 Sale
A3: 2019-12-27 | B3: Penn-Ohio Plaza Inc. | C3: J1304 | D3: 4429.33 | F3: 2017 CV 00871 Excess August 2018 Sale

Sheet 2018
A1: Date turned into Treasury | B1: 2018UNCLAIMED MONEY | C1: CHECK OR PAYIN# | D1: REVENUE | E1: EXPENSE | F1: BALANCE | H1: Case Number / Description
A2: DATE | B2: 2017 CASH BALANCE | F2: 91860.07
A3: 2018-03-09 | B3: Randall L Shuttleworth | C3: 617908 | E3: 1350 | F3: =F2+D3-E3 -> 90510.07 | H3: 2014 CRA 00643 E | I3: P17-2982
A4: 2018-03-20 | B4: Mahic, Denis | C4: 18-1331 | D4: 130 | F4: =F3+D4-E4 -> 90640.07 | H4: 2016 TRD 02006 W
A5: 2018-05-23 | B5: Spectrum Business #110286 | C5: J0954 | D5: 34.54 | F5: =F4+D5-E5 -> 90674.61 | H5: ck 612242
A6: 2018-05-23 | B6: Turner, Maurice #109939 | C6: J0954 | D6: 10 | F6: =F5+D6-E6 -> 90684.61 | H6: ck 601766
A7: 2018-05-23 | B7: Spano, Joe #111657 | C7: J0954 | D7: 7.82 | F7: =F6+D7-E7 -> 90692.43 | H7: ck 610796
A8: 2018-05-23 | B8: Beadling, John #110195 | C8: J0954 | D8: 4.54 | F8: =F7+D8-E8 -> 90696.97 | H8: ck 595721
A9: 2018-05-23 | B9: Lewis, John #110193 | C9: J0954 | D9: 14.88 | F9: 90711.85 | H9: ck 595747
A10: 2018-05-23 | B10: Niewiadowmski, Kristy #110194 | C10: J0954 | D10: 2.03 | F10: 90713.88 | H10: ck 585754
A11: 2018-05-23 | B11: Szekely, Robert #111524 | C11: J0954 | D11: 11.14 | F11: 90725.02 | H11: ck 608708
A12: 2018-05-23 | B12: OH Assoc Plumb Insp #100009 | C12: J0954 | D12: 250 | F12: 90975.02 | H12: ck 593851
A13: 2018-05-31 | B13: Parker, Kimberly A #110323 | C13: J0955 | D13: 15 | F13: 90990.02 | H13: Juror Ck 597260
A14: 2018-05-31 | B14: Sisser, Alexander D #110324 | C14: J0955 | D14: 15 | F14: 91005.02 | H14: Juror Ck 597271
A15: 2018-05-31 | B15: Lambert, Chrissy #110821 | C15: J0955 | D15: 6 | F15: 91011.02 | H15: Juror CK 602517
A16: 2018-05-31 | B16: Campbell, Wanda #110824 | C16: J0955 | D16: 15 | F16: 91026.02 | H16: Juror Ck 602489
A17: 2018-05-31 | B17: Eisbrenner, James W #110830 | C17: J0955 | D17: 15 | F17: 91041.02 | H17: Juror Ck 602501
A18: 2018-05-31 | B18: Orlando, Cali L #110123 | C18: J0955 | D18: 14.4 | F18: 91055.42 | H18: Witness Ck 593762
A19: 2018-05-31 | B19: Ezell, Demar #110233 | C19: J0955 | D19: 13.8 | F19: 91069.22 | H19: Witness Ck 595607
A20: 2018-05-31 | B20: Benes, Dorothy #110222 | C20: J0955 | D20: 16.4 | F20: 91085.62 | H20: Witness Ck 595875
A21: 2018-05-31 | B21: Boles, Nicole #110514 | C21: J0955 | D21: 19 | F21: 91104.62 | H21: Witness Ck 599217
A22: 2018-05-31 | B22: Mackenzie, Joshua #110517 | C22: J0955 | D22: 14.2 | F22: 91118.82 | H22: Witness Ck 599246
A23: 2018-05-31 | B23: Stotts, Morgan K #110763 | C23: J0955 | D23: 14 | F23: 91132.82 | H23: Witness Ck 601781
A24: 2018-05-31 | B24: Carpenter, Kyle #111146 | C24: J0955 | D24: 12.2 | F24: 91145.02 | H24: Witness Ck 606119
A25: 2018-05-31 | B25: Robertson, Alexandra #111153 | C25: J0955 | D25: 22.2 | F25: 91167.22 | H25: Witness Ck 606130
A26: 2018-05-31 | B26: Welser, Christina #111148 | C26: J0955 | D26: 14.2 | F26: 91181.42 | H26: Witness Ck 606133
A27: 2018-05-31 | B27: Belknap, Erica #111269 | C27: J0955 | D27: 14 | F27: 91195.42 | H27: Witness Ck 606586
A28: 2018-05-31 | B28: Rice, Katelynn #111592 | C28: J0955 | D28: 14 | F28: 91209.42 | H28: Witness Ck 609755
A29: 2018-05-31 | B29: Wagner, Margaret A #111593 | C29: J0955 | D29: 14.2 | F29: 91223.62 | H29: Witness Ck 609764
A30: 2018-05-31 | B30: Bukovinski, Alexis S #111922 | C30: J0955 | D30: 14.2 | F30: 91237.82 | H30: Witness Ck 613788
A31: 2018-05-31 | B31: Bukovinski, Casey A #111923 | C31: J0955 | D31: 14.2 | F31: 91252.02 | H31: Witness Ck 613789
A32: 2018-05-31 | B32: Campbell, Deanna C #111924 | C32: J0955 | D32: 14.4 | F32: 91266.42 | H32: Witness Ck 613791
A33: 2018-06-01 | B33: Bilbie, Resa #109439 | C33: J0956 | D33: 15 | F33: 91281.42 | H33: Juror ck 592618
A34: 2018-06-01 | B34: Blanton, Larry D #109440 | C34: J0956 | D34: 15 | F34: 91296.42 | H34: Juror ck 592619
A35: 2018-06-01 | B35: Koivisto, Ashley F #110073 | C35: J0956 | D35: 15 | F35: 91311.42 | H35: Juror ck 593752
A36: 2018-06-01 | B36: Deangelis, Stacey #110262 | C36: J0956 | D36: 15 | F36: 91326.42 | H36: Juror ck 596198
A37: 2018-06-01 | B37: Sistrunk, Mario L #110272 | C37: J0956 | D37: 15 | F37: 91341.42 | H37: Juror ck 596222
A38: 2018-06-01 | B38: Whited, Charles L #110279 | C38: J0956 | D38: 15 | F38: 91356.42 | H38: Juror ck 596229
A39: 2018-06-01 | B39: Zachowski, Bonnie L #110280 | C39: J0956 | D39: 15 | F39: 91371.42 | H39: Juror ck 596230
A40: 2018-06-01 | B40: Watson, Maria L #110027 | C40: J0956 | D40: 15 | F40: 91386.42 | H40: Juror ck 596462
A41: 2018-06-01 | B41: Adams, Stephanie D #110336 | C41: J0956 | D41: 15 | F41: 91401.42 | H41: Juror ck 597688
A42: 2018-06-01 | B42: Miles, Aaron J #110013 | C42: J0956 | D42: 15 | F42: 91416.42 | H42: Juror ck 597751
A43: 2018-06-01 | B43: Thorpe, Rebecca L #110375 | C43: J0956 | D43: 15 | F43: 91431.42 | H43: Juror ck 597784
A44: 2018-06-01 | B44: Ungrady, David W #110413 | C44: J0956 | D44: 15 | F44: 91446.42 | H44: Juror ck 597791
A45: 2018-06-01 | B45: Williams, Scott J #110378 | C45: J0956 | D45: 15 | F45: 91461.42 | H45: Juror ck 597802
A46: 2018-06-01 | B46: Adams, Tracy A #106905 | C46: J0956 | D46: 15 | F46: 91476.42 | H46: Juror ck 599214
A47: 2018-06-01 | B47: Eland, Tracey B #110531 | C47: J0956 | D47: 15 | F47: 91491.42 | H47: Juror ck 599225
A48: 2018-06-01 | B48: Miles, Aaron J #110013 | C48: J0956 | D48: 15 | F48: 91506.42 | H48: Juror ck 599253
A49: 2018-06-01 | B49: Pristov, Jayne #110017 | C49: J0956 | D49: 15 | F49: 91521.42 | H49: Juror ck 599265
A50: 2018-06-01 | B50: Watson, Maria L #110027 | C50: J0956 | D50: 15 | F50: 91536.42 | H50: Juror ck 599281
A51: 2018-06-01 | B51: Ross, Jill #110592 | C51: J0956 | D51: 15 | F51: 91551.42 | H51: Juror ck 600024
A52: 2018-06-01 | B52: Mikesell, Dorothy #110650 | C52: J0956 | D52: 15 | F52: 91566.42 | H52: Juror ck 600517
A53: 2018-06-01 | B53: Moller, Thea R #110629 | C53: J0956 | D53: 15 | F53: 91581.42 | H53: Juror ck 600520
A54: 2018-06-01 | B54: Pollay, Diane #102895 | C54: J0956 | D54: 15 | F54: 91596.42 | H54: Juror ck 600527
A55: 2018-06-01 | B55: Towe Terry, Virginia #110661 | C55: J0956 | D55: 15 | F55: 91611.42 | H55: Juror ck 600540
A56: 2018-06-01 | B56: Warner, Scotti L #110666 | C56: J0956 | D56: 15 | F56: 91626.42 | H56: Juror ck 600547
A57: 2018-06-01 | B57: Lore, Ryan M #110791 | C57: J0956 | D57: 15 | F57: 91641.42 | H57: Juror ck 602522
A58: 2018-06-01 | B58: Parrino, Bonnie J #110802 | C58: J0956 | D58: 15 | F58: 91656.42 | H58: Juror ck 602540
A59: 2018-06-01 | B59: Tusai, Ronald J #106034 | C59: J0956 | D59: 15 | F59: 91671.42 | H59: Juror ck 602558
A60: 2018-06-01 | B60: Adams, Katelynne #110861 | C60: J0956 | D60: 15 | F60: 91686.42 | H60: Juror ck 602850
A61: 2018-06-01 | B61: Hall, Jeret #110864 | C61: J0956 | D61: 15 | F61: 91701.42 | H61: Juror ck 602856
A62: 2018-06-01 | B62: Klimek, Garald D #106712 | C62: J0956 | D62: 15 | F62: 91716.42 | H62: Juror ck 602859
A63: 2018-06-01 | B63: Pavone, Robert J #110768 | C63: J0956 | D63: 15 | F63: 91731.42 | H63: Juror ck 602865
A64: 2018-06-01 | B64: Stalter, Brian #110873 | C64: J0956 | D64: 15 | F64: 91746.42 | H64: Juror ck 602881
A65: 2018-06-01 | B65: Tobias, William #52891 | C65: J0956 | D65: 15 | F65: 91761.42 | H65: Juror ck 602886
A66: 2018-06-01 | B66: McCafferty, Mary Ann #110910 | C66: J0956 | D66: 15 | F66: 91776.42 | H66: Juror ck 603329
A67: 2018-06-01 | B67: Bucci, David A #106992 | C67: J0956 | D67: 60 | F67: 91836.42 | H67: Juror ck 603443
A68: 2018-06-01 | B68: Foltz, Robert E #110938 | C68: J0956 | D68: 105 | F68: 91941.42 | H68: Juror ck 603452
A69: 2018-06-01 | B69: Vansickle, Andrew R #110962 | C69: J0956 | D69: 15 | F69: 91956.42 | H69: Juror ck 603495
A70: 2018-06-01 | B70: Crow, Caron #111113 | C70: J0956 | D70: 15 | F70: 91971.42 | H70: Juror ck 605819
A71: 2018-06-01 | B71: Niemi Kibler, Mitchell #111186 | C71: J0956 | D71: 15 | F71: 91986.42 | H71: Juror ck 606445
A72: 2018-06-01 | B72: Wright, James D #110600 | C72: J0956 | D72: 15 | F72: =F71+D72-E72 -> 92001.42 | H72: Juror ck 606463
A73: 2018-06-01 | B73: Phillips, Robert D #111250 | C73: J0956 | D73: 15 | F73: 92016.42 | H73: Juror ck 606629
A74: 2018-06-01 | B74: Simek, Brian #57900 | C74: J0956 | D74: 15 | F74: 92031.42 | H74: Juror ck 606641
A75: 2018-06-01 | B75: Thomas, Albert #111260 | C75: J0956 | D75: 15 | F75: 92046.42 | H75: Juror ck 606647
A76: 2018-06-01 | B76: Sloan, Joseph P #110596 | C76: J0956 | D76: 15 | F76: 92061.42 | H76: Juror ck 606904
A77: 2018-06-01 | B77: Fortney, Jamec C #111390 | C77: J0956 | D77: 15 | F77: 92076.42 | H77: Juror ck 608032
A78: 2018-06-01 | B78: Morales Jasmine C #111395 | C78: J0956 | D78: 15 | F78: 92091.42 | H78: Juror ck 608063
A79: 2018-06-01 | B79: Ottenweller, Linda J #111455 | C79: J0956 | D79: 15 | F79: 92106.42 | H79: Juror ck 608070
A80: 2018-06-01 | B80: Raffa, Lisa #111459 | C80: J0956 | D80: 15 | F80: 92121.42 | H80: Juror ck 608078
A81: 2018-06-01 | B81: Traz, Brendon M #111471 | C81: J0956 | D81: 15 | F81: 92136.42 | H81: Juror ck 608102
A82: 2018-06-01 | B82: Wimer, Kenneth M #103194 | C82: J0956 | D82: 15 | F82: 92151.42 | H82: Juror ck 608114
A83: 2018-06-01 | B83: Wood, Barry #111380 | C83: J0956 | D83: 15 | F83: 92166.42 | H83: Juror ck 608115
A84: 2018-06-01 | B84: Weiner, Michael J #111353 | C84: J0956 | D84: 15 | F84: 92181.42 | H84: Juror ck 608166
A85: 2018-06-01 | B85: Seeds, Joslin #104758 | C85: J0956 | D85: 15 | F85: 92196.42 | H85: Juror ck 608737
A86: 2018-06-01 | B86: Seegert, Alexandra L #111533 | C86: J0956 | D86: 15 | F86: 92211.42 | H86: Juror ck 608738
A87: 2018-06-01 | B87: Hildebrand, Kristy #111638 | C87: J0956 | D87: 15 | F87: 92226.42 | H87: Juror ck 610256
A88: 2018-06-01 | B88: Rodreiquez, Victor l #111647 | C88: J0956 | D88: 15 | F88: 92241.42 | H88: Juror ck 610272
A89: 2018-06-01 | B89: Ward, Christinia J #111754 | C89: J0956 | D89: 45 | F89: 92286.42 | H89: Juror ck 611627
A90: 2018-06-01 | B90: Miskowich, Donald H #111789 | C90: J0956 | D90: 15 | F90: 92301.42 | H90: Juror ck 612660
A91: 2018-06-01 | B91: Plisevich, Janet #104023 | C91: J0956 | D91: 90 | F91: 92391.42 | H91: Juror ck 612664
A92: 2018-06-01 | B92: Thompson, Jennifer #111800 | C92: J0956 | D92: 15 | F92: 92406.42 | H92: Juror ck 612678
A93: 2018-06-01 | B93: Weaver, David J #111803 | C93: J0956 | D93: 15 | F93: 92421.42 | H93: Juror ck 612682
A94: 2018-06-01 | B94: French, Valerie A #111838 | C94: J0956 | D94: 15 | F94: 92436.42 | H94: Juror ck 612711
A95: 2018-06-01 | B95: Knox, Sandra #111850 | C95: J0956 | D95: 15 | F95: 92451.42 | H95: Juror ck 612726
A96: 2018-06-01 | B96: Ogren, Thomas E #111864 | C96: J0956 | D96: 15 | F96: 92466.42 | H96: Juror ck 612745
A97: 2018-06-01 | B97: Schwotzer, Tina #111869 | C97: J0956 | D97: 15 | F97: 92481.42 | H97: Juror ck 612755
A98: 2018-06-01 | B98: Voytko, Robert B #111886 | C98: J0956 | D98: 15 | F98: 92496.42 | H98: Juror ck 612775
A99: 2018-06-25 | B99: Arcaro, Sadi M | C99: 18-2800 | D99: 15.52 | F99: 92511.94 | H99: Clk crts ck 27437
A100: 2018-06-25 | B100: Wright, Steve | C100: 18-2800 | D100: 32.06 | F100: 92544 | H100: 2015 DR 343 ck 27516
A101: 2018-06-25 | B101: Davis & Young Co | C101: 18-2800 | D101: 151.27 | F101: 92695.27 | H101: 2015 CV 143 ck 27569
A102: 2018-06-25 | B102: Ralph C Buss | C102: 18-2800 | D102: 220 | F102: 92915.27 | H102: 2015 CV 446 ck 27683
A103: 2018-06-25 | B103: Snyder, Tamara J | C103: 18-2800 | D103: 147.5 | F103: 93062.77 | H103: 2014 CR 89 ck 27727
A104: 2018-06-25 | B104: CACH LLC | C104: 18-2800 | D104: 5 | F104: 93067.77 | H104: 2016 JD 331 ck 27926
A105: 2018-06-25 | B105: CACH LLC | C105: 18-2800 | D105: 5 | F105: 93072.77 | H105: 2016 JD 401 ck 28031
A106: 2018-06-25 | B106: Johnson, Clayton | C106: 18-2800 | D106: 141.4 | F106: 93214.17 | H106: 2014 TL 349 ck 28574
A107: 2018-07-09 | B107: Treasurers Overages | C107: 18-3003 | D107: 1.23 | F107: 93215.4
F108: 93215.4
D119: =SUM(D4:D118) -> 2705.33 | E119: =SUM(E3:E118) -> 1350

Sheet 2017
B1: 2017 UNCLAIMED MONEY | C1: CHECK OR PAYIN# | D1: REVENUE | E1: EXPENSE | F1: BALANCE | H1: Case Number / Description
A2: DATE | B2: 2016 CASH BALANCE | F2: 69791.66
A3: 2017-01-06 | B3: Cashier #1 Overage 12/28/16 | C3: P17-0101 | D3: 15 | F3: =F2+D3-E3 -> 69806.66
A4: 2017-01-06 | B4: Cashier #2 Overage 9/1/16 | C4: P17-0101 | D4: 30 | F4: =F3+D4-E4 -> 69836.66
A5: 2017-01-06 | B5: Cashier #3 Overage 12/6/16 | C5: P17-0101 | D5: 0.01 | F5: 69836.67
A6: 2017-01-25 | B6: Berndt & Associats PC | C6: P17-0455 | D6: 109 | F6: 69945.67 | H6: ECC 2014CVF434
A7: 2017-01-25 | B7: Katie M Mabry | C7: P17-0455 | D7: 5 | F7: 69950.67 | H7: ECC 2014TRD1420
A8: 2017-01-25 | B8: Amanda Ackerman Condon | C8: P17-0455 | D8: 20 | F8: 69970.67 | H8: ECC 2013CVG11
A9: 2017-01-25 | B9: Javitch Block Rathbone | C9: P17-0455 | D9: 345.44 | F9: 70316.11 | H9: ECC 2010CVF643
A10: 2017-01-25 | B10: Wayne Louis Watkings Jr | C10: P17-0455 | D10: 10 | F10: 70326.11 | H10: ECC 2015TRD635
A11: 2017-01-25 | B11: Data R Mainali | C11: P17-0455 | D11: 5 | F11: 70331.11 | H11: ECC 2015TRD568
A12: 2017-01-25 | B12: Tara A Salyers | C12: P17-0455 | D12: 5 | F12: 70336.11 | H12: ECC 2014TRD1664
A13: 2017-01-25 | B13: Tony A Meintel | C13: P17-0455 | D13: 10 | F13: 70346.11 | H13: ECC 2015TRD851
A14: 2017-01-25 | B14: Thomas S Oats | C14: P17-0455 | D14: 5 | F14: 70351.11 | H14: ECC 2015TRD928
A15: 2017-01-25 | B15: Christian Michael Redmond | C15: P17-0455 | D15: 5 | F15: 70356.11 | H15: ECC 2015TRD1053
A16: 2017-01-25 | B16: Raymond W Bilbrey | C16: P17-0455 | D16: 3 | F16: 70359.11 | H16: ECC 2015CRB369
A17: 2017-01-30 | B17: Eastern Court | C17: P17-0513 | D17: 225 | F17: 70584.11 | H17: 2015 - 2016 drawer overages
A18: 2017-04-10 | B18: Daniel R Gingerich | C18: P17-1797 | D18: 25.45 | F18: 70609.56 | H18: WCC 2006 CVF 00380 W
A19: 2017-04-10 | B19: Edward J Todd | C19: P17-1797 | D19: 202 | F19: 70811.56 | H19: WCC 2011 TRC 00184 W
A20: 2017-04-10 | B20: Daniel R Schlesing | C20: P17-1797 | D20: 15 | F20: 70826.56 | H20: WCC 2014 TRD 01902 W
A21: 2017-04-10 | B21: Robert M King | C21: P17-1797 | D21: 130 | F21: 70956.56 | H21: WCC 2015 CRB 00674 W
A22: 2017-04-10 | B22: Wesley A Mahan | C22: P17-1797 | D22: 16 | F22: 70972.56 | H22: WCC 2015 CRB 00782 W
A23: 2017-04-10 | B23: Tiffani Ruth Cirino | C23: P17-1797 | D23: 20 | F23: 70992.56 | H23: WCC 2016 TRD 02691 W
A24: 2017-04-10 | B24: James K Chamberlain | C24: P17-1797 | D24: 25 | F24: 71017.56 | H24: WCC 2016 TRD 00506 W
A25: 2017-04-10 | B25: Austin J Williams | C25: P17-1797 | D25: 25 | F25: 71042.56 | H25: WCC 2016 TRD 00929 W
A26: 2017-05-04 | B26: Charles D Carson 108550 | C26: J807 | D26: 15 | F26: 71057.56 | H26: Witness ck 576502
A27: 2017-05-04 | B27: Joshua M Krasicki 108536 | C27: J807 | D27: 15 | F27: 71072.56 | H27: Witness ck 756509
A28: 2017-05-04 | B28: David Russell 108542 | C28: J807 | D28: 14.4 | F28: 71086.96 | H28: Witness ck 576519
A29: 2017-05-04 | B29: Angela White 108550 | C29: J807 | D29: 14.8 | F29: 71101.76 | H29: Witness ck 576526
A30: 2017-05-04 | B30: Tiffani M Feiler 108567 | C30: J807 | D30: 14.4 | F30: 71116.16 | H30: Witness Ck 576786
A31: 2017-05-04 | B31: Daniel C Herman 108564 | C31: J807 | D31: 14.4 | F31: 71130.56 | H31: Witness ck 576787
A32: 2017-05-04 | B32: Kizzy E Holley 44594 | C32: J807 | D32: 14.8 | F32: 71145.36 | H32: Witness ck 576788
A33: 2017-05-04 | B33: Kimberly Beachler 108920 | C33: J807 | D33: 14.4 | F33: 71159.76 | H33: Witness ck 579960
A34: 2017-05-04 | B34: Jacklyn M Fusco 108923 | C34: J807 | D34: 14 | F34: 71173.76 | H34: Witness ck 579966
A35: 2017-05-04 | B35: Brittany A Kazsmer 109018 | C35: J807 | D35: 14.4 | F35: 71188.16 | H35: Witness ck 581773
A36: 2017-05-04 | B36: Jennifer D Woodyard 109565 | C36: J807 | D36: 13.8 | F36: 71201.96 | H36: Witness ck 586889
A37: 2017-05-04 | B37: Amber Fetters 109583 | C37: J807 | D37: 25.4 | F37: 71227.36 | H37: Witness ck 587370
A38: 2017-05-04 | B38: Kayla N Gombar 109568 | C38: J807 | D38: 16 | F38: 71243.36 | H38: Witness ck 587372
A39: 2017-05-04 | B39: Mark Laccheo 109585 | C39: J807 | D39: 15 | F39: 71258.36 | H39: Witness ck 587379
A40: 2017-05-04 | B40: Bonnie Leininger 104195 | C40: J807 | D40: 14.2 | F40: 71272.56 | H40: Witness ck 587380
A41: 2017-05-04 | B41: Wendy S Nugent 109588 | C41: J807 | D41: 16 | F41: 71288.56 | H41: Witness ck 587382
A42: 2017-05-04 | B42: Paula Simmons Brinkman 109589 | C42: J807 | D42: 14.2 | F42: 71302.76 | H42: Witness ck 587385
A43: 2017-05-04 | B43: Vickey White 109592 | C43: J807 | D43: 14 | F43: 71316.76 | H43: Witness ck 587392
A44: 2017-05-04 | B44: Erika Whited 109578 | C44: J807 | D44: 13.6 | F44: 71330.36 | H44: Witness ck 587393
A45: 2017-05-04 | B45: Jacob Williams 109593 | C45: J807 | D45: 13.8 | F45: 71344.16 | H45: Witness ck 587394
A46: 2017-05-04 | B46: Jeremy Fink 109860 | C46: J807 | D46: 15.6 | F46: 71359.76 | H46: Witness ck 591480
A47: 2017-05-04 | B47: Julie A Hall 105267 | C47: J807 | D47: 14.8 | F47: 71374.56 | H47: Witness ck 591488
A48: 2017-05-04 | B48: Tabitha R Perkins 109885 | C48: J807 | D48: 14 | F48: 71388.56 | H48: Witness ck 591497
A49: 2017-05-04 | B49: Kayla M Potter 109866 | C49: J807 | D49: 14 | F49: 71402.56 | H49: Witness ck 591499
A50: 2017-05-04 | B50: Sheena Reinke 109886 | C50: J807 | D50: 12.2 | F50: 71414.76 | H50: Witness ck 591501
A51: 2017-05-04 | B51: Jacqueline Tiscenko 109870 | C51: J807 | D51: 14.4 | F51: 71429.16 | H51: Witness ck 591511
A52: 2017-05-04 | B52: Morgan L Versaw 109890 | C52: J807 | D52: 14.6 | F52: 71443.76 | H52: Witness ck 591512
A53: 2017-05-04 | B53: Roger J Wasson 109891 | C53: J807 | D53: 13.2 | F53: 71456.96 | H53: Witness ck 519513
A54: 2017-05-04 | B54: Allison M Bartunek 108181 | C54: J808 | D54: 15 | F54: 71471.96 | H54: Juror ck 572615
A55: 2017-05-04 | B55: Thomas Roger Benson 108182 | C55: J808 | D55: 15 | F55: 71486.96 | H55: Juror ck 572617
A56: 2017-05-04 | B56: Amy Louise Bernato 108608 | C56: J808 | D56: 15 | F56: 71501.96 | H56: Juror ck 577235
A57: 2017-05-04 | B57: James Bowman 108697 | C57: J808 | D57: 15 | F57: 71516.96 | H57: Juror ck 578484
A58: 2017-05-04 | B58: Henry R Burlingam 108576 | C58: J808 | D58: 15 | F58: 71531.96 | H58: Juror ck 577243
A59: 2017-05-04 | B59: Betty Lee Caruso 108065 | C59: J808 | D59: 30 | F59: 71561.96 | H59: Juror ck 571503
A60: 2017-05-04 | B60: Czarina Charters 108701 | C60: J808 | D60: 15 | F60: 71576.96 | H60: Juror ck 578490
A61: 2017-05-04 | B61: Jeffrey R Cline 109162 | C61: J808 | D61: 15 | F61: 71591.96 | H61: Juror ck 583332
A62: 2017-05-04 | B62: Richard E Cooley 108253 | C62: J808 | D62: 15 | F62: 71606.96 | H62: Juror ck 573106
A63: 2017-05-04 | B63: David R Crowell 108761 | C63: J808 | D63: 15 | F63: 71621.96 | H63: Juror ck 578921
A64: 2017-05-04 | B64: Jessica Ann Dell 108832 | C64: J808 | D64: 15 | F64: 71636.96 | H64: Juror ck 579013
A65: 2017-05-04 | B65: Vicky Ann Doherty 108833 | C65: J808 | D65: 15 | F65: 71651.96 | H65: Juror ck 579014
A66: 2017-05-04 | B66: Clarence J Dunne 108577 | C66: J808 | D66: 15 | F66: 71666.96 | H66: Juror ck 577250
A67: 2017-05-04 | B67: Logan Durbin 107976 | C67: J808 | D67: 15 | F67: 71681.96 | H67: Juror ck 571074
A68: 2017-05-04 | B68: Regina Elam 108795 | C68: J808 | D68: 15 | F68: =F67+D68-E68 -> 71696.96 | H68: Juror ck 578930
A69: 2017-05-04 | B69: Ashley M Fertig 109454 | C69: J808 | D69: 15 | F69: 71711.96 | H69: Juror ck 585889
A70: 2017-05-04 | B70: Christopher B Fields 108477 | C70: J808 | D70: 15 | F70: 71726.96 | H70: Juror ck 574961
A71: 2017-05-04 | B71: Nancy A Fratis 102873 | C71: J808 | D71: 15 | F71: 71741.96 | H71: Juror ck 582510
A72: 2017-05-04 | B72: Daniel J Gaul 109613 | C72: J808 | D72: 15 | F72: 71756.96 | H72: Juror ck 586966
A73: 2017-05-04 | B73: Robin L Hanna 108977 | C73: J808 | D73: 15 | F73: 71771.96 | H73: Juror ck 581421
A74: 2017-05-04 | B74: Erica M Holman 108618 | C74: J808 | D74: 15 | F74: 71786.96 | H74: Juror ck 577265
A75: 2017-05-04 | B75: David L Hoover 108259 | C75: J808 | D75: 15 | F75: 71801.96 | H75: Juror ck 573118
A76: 2017-05-04 | B76: Cristy L Huey 108880 | C76: J808 | D76: 15 | F76: 71816.96 | H76: Juror ck 579897
A77: 2017-05-04 | B77: Michelle Kaczoroski 107172 | C77: J808 | D77: 15 | F77: 71831.96 | H77: Juror ck 571789
A78: 2017-05-04 | B78: Ellen A Kennedy 108800 | C78: J808 | D78: 15 | F78: 71846.96 | H78: Juror ck 578946
A79: 2017-05-04 | B79: Lewis S Losey 108713 | C79: J808 | D79: 15 | F79: 71861.96 | H79: Juror ck 578509
A80: 2017-05-04 | B80: Nicholas J Marshall 108841 | C80: J808 | D80: 15 | F80: 71876.96 | H80: Juror ck 579030
A81: 2017-05-04 | B81: Shirley N Nagle 108040 | C81: J808 | D81: 15 | F81: 71891.96 | H81: Juror ck 578204
A82: 2017-05-04 | B82: Harold W Nix 108595 | C82: J808 | D82: 15 | F82: 71906.96 | H82: Juror ck 577285
A83: 2017-05-04 | B83: Anita M Noce 108718 | C83: J808 | D83: 15 | F83: 71921.96 | H83: Juror ck 580227
A84: 2017-05-04 | B84: Anita M Noce 108718 | C84: J808 | D84: 15 | F84: 71936.96 | H84: Juror ck 581178
A85: 2017-05-04 | B85: Anita M Noce 108718 | C85: J808 | D85: 15 | F85: 71951.96 | H85: Juror ck 582204
A86: 2017-05-04 | B86: Anita M Noce 108718 | C86: J808 | D86: 15 | F86: 71966.96 | H86: Juror ck 583353
A87: 2017-05-04 | B87: Anita M Noce 108718 | C87: J808 | D87: 15 | F87: 71981.96 | H87: Juror ck 585059
A88: 2017-05-04 | B88: April L Osborne 109272 | C88: J808 | D88: 30 | F88: 72011.96 | H88: Juror ck 584204
A89: 2017-05-04 | B89: Karen A Pedid 108723 | C89: J808 | D89: 15 | F89: 72026.96 | H89: Juror ck 578522
A90: 2017-05-04 | B90: Adam Peterson 109847 | C90: J808 | D90: 15 | F90: 72041.96 | H90: Juror ck 590955
A91: 2017-05-04 | B91: Rebecca J Reese 108046 | C91: J808 | D91: 15 | F91: 72056.96 | H91: Juror ck 577903
A92: 2017-05-04 | B92: Eric Carl Schulze 108224 | C92: J808 | D92: 15 | F92: 72071.96 | H92: Juror ck 572678
A93: 2017-05-04 | B93: Wendi K Siebeneck 109854 | C93: J808 | D93: 15 | F93: 72086.96 | H93: Juror ck 590965
A94: 2017-05-04 | B94: Michael R Starkey 108892 | C94: J808 | D94: 15 | F94: 72101.96 | H94: Juror ck 579919
A95: 2017-05-04 | B95: Neal Edward Stewart 108094 | C95: J808 | D95: 15 | F95: 72116.96 | H95: Juror ck 590968
A96: 2017-05-04 | B96: Joel P Taylor 102722 | C96: J808 | D96: 15 | F96: 72131.96 | H96: Juror ck 578530
A97: 2017-05-04 | B97: Michael P Uhase 109179 | C97: J808 | D97: 15 | F97: 72146.96 | H97: Juror ck 583372
A98: 2017-05-04 | B98: James T Wallace 108492 | C98: J808 | D98: 30 | F98: 72176.96 | H98: Juror ck 574993
A99: 2017-05-04 | B99: Zachary Watson 109476 | C99: J808 | D99: 15 | F99: 72191.96 | H99: Juror ck 585919
A100: 2017-05-04 | B100: Genevieve Wheeler 108084 | C100: J808 | D100: 15 | F100: 72206.96 | H100: Juror ck 571524
A101: 2017-05-04 | B101: Clay Wilson 108014 | C101: J808 | D101: 15 | F101: 72221.96 | H101: Juror ck 571113
A102: 2017-05-04 | B102: Justin Wayne Wilson 108055 | C102: J808 | D102: 15 | F102: 72236.96 | H102: Juror ck 571298
A103: 2017-05-04 | B103: Nathan J Hines 109338 | C103: J809 | D103: 15 | F103: 72251.96 | H103: Juror ck 585042
A104: 2017-05-04 | B104: James Dalrymple 109498 | C104: J809 | D104: 15 | F104: 72266.96 | H104: Juror ck 586515
A105: 2017-05-04 | B105: Darla Michelle Greene 109501 | C105: J809 | D105: 15 | F105: 72281.96 | H105: Juror ck 586518
A106: 2017-05-04 | B106: Charles A Merrill 109507 | C106: J809 | D106: 15 | F106: 72296.96 | H106: Juror ck 586527
A107: 2017-05-04 | B107: Stanley P Sirrine 109512 | C107: J809 | D107: 15 | F107: 72311.96 | H107: Juror ck 586533
A108: 2017-05-04 | B108: James Baitt 109187 | C108: J809 | D108: 15 | F108: 72326.96 | H108: Juror ck 584470
A109: 2017-05-04 | B109: Alyssa L Hill 102104 | C109: J809 | D109: 30 | F109: 72356.96 | H109: Juror ck 584487
A110: 2017-06-01 | B110: Ralph Flory 109901 | C110: J822 | D110: 123.07 | F110: 72480.03 | H110: REF36923 21-888-00-009-30
A111: 2017-06-01 | B111: Kevin Taylor 109900 | C111: J822 | D111: 316.64 | F111: 72796.67 | H111: Ref 37046 02-013-40-072-00
A112: 2017-06-01 | B112: Conway Oil & Gas 102911 | C112: J822 | D112: 3.38 | F112: 72800.05 | H112: Ref 35708 46-800-00-404-00
A113: 2017-06-02 | B113: Linda Carlson 55686 | C113: J823 | D113: 10 | F113: 72810.05 | H113: training march 2016 election
A114: 2017-06-02 | B114: Joanne Pendergast 41677 | C114: J823 | D114: 10 | F114: 72820.05 | H114: training march 2016 election
A115: 2017-06-02 | B115: Roy George 108160 | C115: J823 | D115: 20.5 | F115: 72840.55 | H115: reimb acct 123-00920-01
A116: 2017-06-02 | B116: Roger Wasson 109075 | C116: J823 | D116: 74.2 | F116: 72914.75 | H116: Reimb acct 306-00310-01
A117: 2017-06-02 | B117: Eric Calabrese 109744 | C117: J824 | D117: 265.68 | F117: 73180.43 | H117: Ref 37315 46-005-00-007-00
A118: 2017-06-02 | B118: Janet Clark 108411 | C118: J824 | D118: 36 | F118: 73216.43 | H118: Ref 35783 60-888-00-029-41
A119: 2017-06-14 | B119: Randall L Shuttleworth | C119: P17-2982 | D119: 1350 | F119: 74566.43 | H119: 2014 CRA 00643 E CLAIMED | I119: CK617908 | J119: 2018-03-09
A120: 2017-06-14 | B120: Midland Funding LLC | C120: P17-2982 | D120: 55 | F120: 74621.43 | H120: 2014 CVF 00417 E
A121: 2017-06-14 | B121: Jeremiah Breedlove | C121: P17-2982 | D121: 5 | F121: 74626.43 | H121: 2006 TRD 02997 E
A122: 2017-06-14 | B122: John Stephen Labounty | C122: P17-2982 | D122: 25 | F122: 74651.43 | H122: 2016 TRD 00134 E
A123: 2017-06-14 | B123: Brittany May Shelott | C123: P17-2982 | D123: 5 | F123: 74656.43 | H123: 2015 TRD 00264 E
A124: 2017-06-14 | B124: Austin James McCune | C124: P17-2982 | D124: 20 | F124: 74676.43 | H124: 2015 TRD 00927 E
A125: 2017-06-14 | B125: Cheek Law Offices LLC | C125: P17-2982 | D125: 254.74 | F125: 74931.17 | H125: 2014 CVF 00431 E
A126: 2017-06-14 | B126: Joyanna Groel | C126: P17-2982 | D126: 180 | F126: 75111.17 | H126: 2015 TRD 01798 E
A127: 2017-06-14 | B127: Joyanna Groel | C127: P17-2982 | D127: 205 | F127: 75316.17 | H127: 2015 TRD 00792 E
A128: 2017-06-14 | B128: Trout Bail Bonds LLC | C128: P17-2982 | D128: 25 | F128: 75341.17 | H128: 2013 CRA 00246 E
A129: 2017-06-14 | B129: William Alexander Sampson | C129: P17-2982 | D129: 5 | F129: 75346.17 | H129: 2015 TRC 00960 E
A130: 2017-06-14 | B130: John J Dragon Jr | C130: P17-2982 | D130: 12 | F130: 75358.17 | H130: 2007 CRB 00344 E
A131: 2017-06-14 | B131: Seth Michael Nobbs | C131: P17-2982 | D131: 6 | F131: 75364.17 | H131: 2016 TRD 00846 E
A132: 2017-06-14 | B132: Sarah E Williams | C132: P17-2982 | D132: 10 | F132: 75374.17 | H132: 2016 TRD 01056 E
A133: 2017-06-14 | B133: Shannon James | C133: P17-2982 | D133: 5 | F133: =F132+D133-E133 -> 75379.17 | H133: 2016 TRD 00579 E
A134: 2017-06-14 | B134: Berndt & Associats PC | C134: P17-2982 | D134: 10 | F134: 75389.17 | H134: 2006 CVF 00384 E
A135: 2017-07-25 | B135: Laura M Omeara | C135: P17-3629 | D135: 60.01 | F135: 75449.18 | H135: 2014 DR 175 CC
A136: 2017-07-25 | B136: Linda A Adams | C136: P17-3629 | D136: 35 | F136: 75484.18 | H136: 2014 DR 175 CC
A137: 2017-07-25 | B137: Treasurer, State of Ohio | C137: P17-3629 | D137: 50 | F137: 75534.18 | H137: 2013 CR 352 CC
A138: 2017-07-25 | B138: Bashein and Bashein | C138: P17-3629 | D138: 220 | F138: 75754.18 | H138: 2012 CV 795 CC
A139: 2017-07-25 | B139: Dennis Callahan | C139: P17-3629 | D139: 10.5 | F139: 75764.68 | H139: 2014 CA 24 CC
A140: 2017-07-25 | B140: Allstate Insurance Company | C140: P17-3629 | D140: 100 | F140: 75864.68 | H140: 2014 CV 226 CC
A141: 2017-07-25 | B141: Frontier Industrial Corporation | C141: P17-3629 | D141: 40 | F141: 75904.68 | H141: 2014 CR 95 CC
A142: 2017-07-25 | B142: Kirk A Migdal ESQ | C142: P17-3629 | D142: 37.24 | F142: 75941.92 | H142: 2010 CV 25 CC
A143: 2017-07-25 | B143: Morris Hardwick Schneider | C143: P17-3629 | D143: 971 | F143: 76912.92 | H143: 2013 CV 589 CC
A144: 2017-10-04 | B144: Roseanna D Yarker | C144: ck 608978 | E144: 270 | F144: 76642.92 | H144: 2014-3750 claimed
F145: 76642.92
F146: 76642.92
F147: 76642.92
F148: 76642.92
F149: 76642.92
F150: 76642.92
F151: 76642.92
F152: 76642.92
F153: 76642.92
F154: 76642.92
F155: 76642.92
F156: 76642.92
F157: 76642.92
F158: 76642.92
F159: 76642.92
F160: 76642.92
F161: 76642.92
F162: 76642.92
F163: 76642.92
F164: 76642.92
F165: 76642.92
F166: 76642.92
F167: 76642.92
F168: 76642.92
F169: 76642.92
F170: 76642.92
F171: 76642.92
F172: 76642.92
F173: 76642.92
F174: 76642.92
D177: =SUM(D3:D176) -> 7121.26 | E177: =SUM(E3:E176) -> 270 | F177: =SUM(F2+D177-E177) -> 76642.92

Sheet 2016
B1: 2016 UNCLAIMED MONEY | C1: CHECK OR PAYIN# | D1: REVENUE | E1: EXPENSE | F1: BALANCE | H1: Case Number / Description
A2: DATE | B2: 2015 CASH BALANCE | F2: 220423.96
B3: TR Forfeited Cash to Co Gen | C3: T13448 | E3: 160000 | F3: =F2+D3-E3 -> 60423.96
A4: 2016-03-04 | B4: Gibson, Dale B | C4: P16-1166 | D4: 25 | F4: =F3+D4-E4 -> 60448.96 | H4: WCC 2000 CR B 00630 W
A5: 2016-03-14 | B5: Perry, Donald | C5: P16-1281 | D5: 4.5 | F5: =F4+D5-E5 -> 60453.46 | H5: ECC 2004 CRA 309
A6: 2016-03-14 | B6: Turowski, Kenneth | C6: P16-1281 | D6: 20 | F6: =F5+D6-E6 -> 60473.46 | H6: ECC 2006 TRD 2184
A7: 2016-03-14 | B7: Rye, Daniel | C7: P16-1281 | D7: 11 | F7: 60484.46 | H7: ECC 2008 CVG 619
A8: 2016-03-14 | B8: Kuntz, Marc D | C8: P16-1281 | D8: 11 | F8: 60495.46 | H8: ECC 2009 CVG 314
A9: 2016-03-14 | B9: Deppe, Shawn R | C9: P16-1281 | D9: 5 | F9: 60500.46 | H9: ECC 2011 TRD 189
A10: 2016-03-14 | B10: Schultz, Irene | C10: P16-1281 | D10: 9 | F10: 60509.46 | H10: ECC 2009 CRB 443
A11: 2016-03-14 | B11: Shear, Thomas | C11: P16-1281 | D11: 130.92 | F11: 60640.38 | H11: ECC 2010 CVF 12
A12: 2016-03-14 | B12: Ewing, Douglas Ellsworth | C12: P16-1281 | D12: 3 | F12: 60643.38 | H12: ECC 2011 TRD 530
A13: 2016-03-14 | B13: Morgan & Pottinger | C13: P16-1281 | D13: 30 | F13: 60673.38 | H13: ECC 2008 CVF 132
A14: 2016-03-14 | B14: Wheeler, Ray J | C14: P16-1281 | D14: 5 | F14: 60678.38 | H14: ECC 2011 TRD 724
A15: 2016-03-14 | B15: McNulty, James J | C15: P16-1281 | D15: 5 | F15: 60683.38 | H15: ECC 2011 TRD 1436
A16: 2016-03-14 | B16: Shear, Thomas | C16: P16-1281 | D16: 198.67 | F16: 60882.05 | H16: ECC 2010 CVF 12
A17: 2016-03-14 | B17: Thurlow, Samantha Mae | C17: P16-1281 | D17: 3 | F17: 60885.05 | H17: ECC 2010 CRB 64
A18: 2016-03-14 | B18: Daugherty, Clifton | C18: P16-1281 | D18: 5 | F18: 60890.05 | H18: ECC 2011 TRD 500
A19: 2016-03-14 | B19: Simon, John P | C19: P16-1281 | D19: 5 | F19: 60895.05 | H19: ECC 2011 CRB 291
A20: 2016-03-14 | B20: Shine, Lori A | C20: P16-1281 | D20: 5 | F20: 60900.05 | H20: ECC 2012 TRD 222
A21: 2016-03-14 | B21: Barna, Garrett S | C21: P16-1281 | D21: 10 | F21: 60910.05 | H21: ECC 2012 TRD 416
A22: 2016-03-14 | B22: Lucas, Kenneth R | C22: P16-1281 | D22: 15 | F22: 60925.05 | H22: ECC 2012 TRD 485
A23: 2016-03-14 | B23: Peterson, Juan D | C23: P16-1281 | D23: 10 | F23: 60935.05 | H23: ECC 2012 TRD 748
A24: 2016-03-14 | B24: Javitch Block Rathbone | C24: P16-1281 | D24: 647.71 | F24: 61582.76 | H24: ECC 2011 CVF 291
A25: 2016-03-14 | B25: Jones, Kelly N | C25: P16-1281 | D25: 5 | F25: 61587.76 | H25: ECC 2012 TRD 981
A26: 2016-03-14 | B26: Fletcher, Allen M | C26: P16-1281 | D26: 5 | F26: 61592.76 | H26: ECC 2005 CRB 471
A27: 2016-03-14 | B27: Bullard, Tammy R | C27: P16-1281 | D27: 11 | F27: 61603.76 | H27: ECC 2012 TRD 1307
A28: 2016-03-14 | B28: Fitzgerald, Shawn P | C28: P16-1281 | D28: 25 | F28: 61628.76 | H28: ECC 2012 TRD 1430
A29: 2016-03-14 | B29: Weltman, Weinberg, Reis LPA | C29: P16-1281 | D29: 649.39 | F29: 62278.15 | H29: ECC 2009 CVF 200
A30: 2016-03-14 | B30: Cheek Law Office | C30: P16-1281 | D30: 97.63 | F30: 62375.78 | H30: ECC 2012 CVF 134
A31: 2016-03-14 | B31: McCombs, David L | C31: P16-1281 | D31: 20 | F31: 62395.78 | H31: ECC 2012 CVG 459
A32: 2016-03-14 | B32: Benoy, Maria | C32: P16-1281 | D32: 10 | F32: 62405.78 | H32: ECC 2012 TRD 2956
A33: 2016-03-14 | B33: Berry, Clint L | C33: P16-1281 | D33: 160 | F33: 62565.78 | H33: ECC 2010 TRC 329
A34: 2016-03-14 | B34: Brunty II, Joseph A | C34: P16-1281 | D34: 3 | F34: 62568.78 | H34: ECC 2012 CVH 90
A35: 2016-03-14 | B35: Delisle, Timothy A | C35: P16-1281 | D35: 5 | F35: 62573.78 | H35: ECC 2012 TRD 2811
A36: 2016-03-14 | B36: Travel Resorts of America | C36: P16-1281 | D36: 7.7 | F36: 62581.48 | H36: ECC 2010 CVI 490
A37: 2016-03-14 | B37: Ashtabula Co Sheriff | C37: P16-1281 | D37: 25 | F37: 62606.48 | H37: ECC End Of Month
A38: 2016-03-14 | B38: Fulton Friedman Gullace | C38: P16-1281 | D38: 12.53 | F38: 62619.01 | H38: ECC 2011 CVF 91
A39: 2016-03-14 | B39: Link, Amanda D | C39: P16-1281 | D39: 6 | F39: 62625.01 | H39: ECC 2013 TRD 1029
A40: 2016-03-14 | B40: Franco, Hannah | C40: P16-1281 | D40: 30 | F40: 62655.01 | H40: ECC 2013 CRB 345
A41: 2016-03-14 | B41: Hayden, Amanda | C41: P16-1281 | D41: 315 | F41: 62970.01 | H41: ECC 2013 CRA 620
A42: 2016-03-14 | B42: Cheek Law Office | C42: P16-1281 | D42: 526.71 | F42: 63496.72 | H42: ECC 2012 CVF 53
A43: 2016-03-14 | B43: Cheek Law Office | C43: P16-1281 | D43: 289.46 | F43: 63786.18 | H43: ECC 2013 CVF 221
A44: 2016-03-14 | B44: Cheek Law Office | C44: P16-1281 | D44: 165.94 | F44: 63952.12 | H44: ECC 2008 CVF 362
A45: 2016-03-14 | B45: Weltman, Weinberg, Reis LPA | C45: P16-1281 | D45: 20 | F45: 63972.12 | H45: ECC 2008 CVF 4 cases
A46: 2016-03-14 | B46: Vogel, Laurie | C46: P16-1281 | D46: 157.97 | F46: 64130.09 | H46: ECC 2010 CVG 274
A47: 2016-03-14 | B47: Cheek Law Office | C47: P16-1281 | D47: 248.91 | F47: 64379 | H47: ECC 2008 CVF 362
A48: 2016-03-14 | B48: Javitch Block Rathbone | C48: P16-1281 | D48: 270.52 | F48: 64649.52 | H48: ECC 2002 CVF 464
A49: 2016-03-14 | B49: Cimorell, Brett J | C49: P16-1281 | D49: 5 | F49: 64654.52 | H49: ECC 2014 CVG 59
A50: 2016-03-14 | B50: Emerick, Ronald L | C50: P16-1281 | D50: 5 | F50: 64659.52 | H50: ECC 2014 CRB 64
A51: 2016-03-14 | B51: Carey, Cody | C51: P16-1281 | D51: 450 | F51: 65109.52 | H51: ECC 2008 CRB 399
A52: 2016-03-14 | B52: West, Taylor Robert | C52: P16-1281 | D52: 5 | F52: 65114.52 | H52: ECC 2014 TRD 547
A53: 2016-03-14 | B53: Curie DVM , Charles | C53: P16-1281 | D53: 29 | F53: 65143.52 | H53: ECC 1986 CRB 542
A54: 2016-04-08 | B54: Akouchi, Youssef | C54: P16-1671 | D54: 183.32 | F54: 65326.84 | H54: WCC 2008 CVF 00906 W
A55: 2016-04-08 | B55: Lombardy, Matthew P | C55: P16-1671 | D55: 112.55 | F55: 65439.39 | H55: WCC 2010 CVI 00710 W
A56: 2016-04-08 | B56: Gorantis, George P | C56: P16-1671 | D56: 76.03 | F56: 65515.42 | H56: WCC 2011 CVF 00701 W
A57: 2016-04-08 | B57: Bryan, Robin R | C57: P16-1671 | D57: 115.28 | F57: 65630.7 | H57: WCC 2012 CVF 00114 W
A58: 2016-04-13 | B58: Rose Heimberger | C58: 577378 | E58: 43.78 | F58: 65586.92 | H58: see R13295 9/30/2015
A59: 2016-05-06 | B59: Neely, Paige 100335 | C59: R13517 | D59: 15 | F59: 65601.92 | H59: ck 558271 6/1/15
A60: 2016-05-06 | B60: Firster, Harold L 71958 | C60: R13517 | D60: 10 | F60: 65611.92 | H60: ck 538441 6/18/14
A61: 2016-05-06 | B61: US Yellowpage 68996 | C61: R13517 | D61: 498.98 | F61: 66110.9 | H61: ck 567266 11/10/15
A62: 2016-05-06 | B62: Senior Care Network 103708 | C62: R13517 | D62: 15 | F62: 66125.9 | H62: ck 558202 5/28/15
A63: 2016-05-06 | B63: B&T Medical 62189 | C63: R13517 | D63: 100 | F63: 66225.9 | H63: ck 564188 9/15/15
A64: 2016-05-06 | B64: Frasure, Leah 70115 | C64: R13517 | D64: 32.97 | F64: 66258.87 | H64: ck 551243 1/27/15
A65: 2016-05-06 | B65: Wagner, Laura 57504 | C65: R13517 | D65: 22.6 | F65: 66281.47 | H65: ck 558510 6/2/15
A66: 2016-05-06 | B66: Wagner, Laura 57504 | C66: R13517 | D66: 23 | F66: 66304.47 | H66: ck 559392 6/16/15
A67: 2016-05-06 | B67: Weed, Amanda M 68199 | C67: R13517 | D67: 116.15 | F67: 66420.62 | H67: ck 559394 6/16/15
A68: 2016-05-06 | B68: Holloman, Susan E 71261 | C68: R13517 | D68: 8.94 | F68: 66429.56 | H68: ck 555848 4/21/15
A69: 2016-05-06 | B69: Decola Trustee Louis 105976 | C69: R13517 | D69: 0.23 | F69: 66429.79 | H69: ck 549604 12/23/14
A70: 2016-05-06 | B70: Asbury, Harold 65935 | C70: R13517 | D70: 50 | F70: =F69+D70-E70 -> 66479.79 | H70: ck 555407 4/14/15
A71: 2016-05-06 | B71: Hunt DO, Thomas 62266 | C71: R13517 | D71: 50 | F71: 66529.79 | H71: ck 551516 2/3/15
A72: 2016-05-06 | B72: Hunt DO, Thomas 62266 | C72: R13517 | D72: 50 | F72: 66579.79 | H72: ck 555416 4/14/15
A73: 2016-05-06 | B73: Malinwoski, Robert 251 | C73: R13517 | D73: 11.52 | F73: 66591.31 | H73: ck 564326 9/15/15
A74: 2016-05-06 | B74: OACA 44413 | C74: R13517 | D74: 50 | F74: 66641.31 | H74: ck 552634 2/24/15
A75: 2016-05-19 | B75: Brown, Sandra J 107369 | C75: R13529 | D75: 30 | F75: 66671.31 | H75: ck 564526 9/16/15
A76: 2016-05-19 | B76: Cole, David J 101547 | C76: R13529 | D76: 15 | F76: 66686.31 | H76: ck 564529 9/16/15
A77: 2016-05-19 | B77: Hague, Bret 106533 | C77: R13529 | D77: 2.6 | F77: 66688.91 | H77: ck 554778 4/3/15
A78: 2016-05-19 | B78: King, Tyler 107944 | C78: R13529 | D78: 14.4 | F78: 66703.31 | H78: ck 570773 12/29/15
A79: 2016-05-19 | B79: Moss, Ryan 107164 | C79: R13529 | D79: 14 | F79: 66717.31 | H79: ck 561797 8/3/15
A80: 2016-05-19 | B80: Smith, Michael 106740 | C80: R13529 | D80: 14.4 | F80: 66731.71 | H80: ck 557848 5/22/15
A81: 2016-05-19 | B81: Anderson, James L 106409 | C81: R13530 | D81: 15 | F81: 66746.71 | H81: ck 553661 3/11/15
A82: 2016-05-19 | B82: Bellas, Jeanette L 106574 | C82: R13530 | D82: 15 | F82: 66761.71 | H82: ck 556026 4/22/15
A83: 2016-05-19 | B83: Bliss, Mathew 106699 | C83: R13530 | D83: 15 | F83: 66776.71 | H83: ck 557755 5/22/15
A84: 2016-05-19 | B84: Calhoun, Eugene 106413 | C84: R13530 | D84: 30 | F84: 66806.71 | H84: ck 553665 3/11/15
A85: 2016-05-19 | B85: Castrilla, Nicole M 106162 | C85: R13530 | D85: 15 | F85: 66821.71 | H85: ck 550552 1/15/15
A86: 2016-05-19 | B86: Corrado, Karen 107264 | C86: R13530 | D86: 15 | F86: 66836.71 | H86: ck 564052 9/11/15
A87: 2016-05-19 | B87: Current, Betty 106911 | C87: R13530 | D87: 15 | F87: 66851.71 | H87: ck 558572 6/3/15
A88: 2016-05-19 | B88: Curtiss, Christopher 106746 | C88: R13530 | D88: 15 | F88: 66866.71 | H88: ck 561445 7/22/15
A89: 2016-05-19 | B89: Ezzone, Thomas M 107390 | C89: R13530 | D89: 15 | F89: 66881.71 | H89: ck 564596 9/18/15
A90: 2016-05-19 | B90: Ferlingere, Jason 106875 | C90: R13530 | D90: 15 | F90: 66896.71 | H90: ck 558057 5/27/15
A91: 2016-05-19 | B91: Freeborn, Donna D 107268 | C91: R13530 | D91: 15 | F91: 66911.71 | H91: ck 564062 9/11/15
A92: 2016-05-19 | B92: Gallagher, Amy 106588 | C92: R13530 | D92: 15 | F92: 66926.71 | H92: ck 556043 4/22/15
A93: 2016-05-19 | B93: Gamache, Kelly C 107089 | C93: R13530 | D93: 15 | F93: 66941.71 | H93: ck 561114 7/20/15
A94: 2016-05-19 | B94: Gibbs, Kyle W 106998 | C94: R13530 | D94: 15 | F94: 66956.71 | H94: ck 559085 6/15/15
A95: 2016-05-19 | B95: Hall, Justin J 107303 | C95: R13530 | D95: 15 | F95: 66971.71 | H95: ck 570095 12/16/15
A96: 2016-05-19 | B96: Hall, Justin J 107303 | C96: R13530 | D96: 15 | F96: 66986.71 | H96: ck 570830 12/31/15
A97: 2016-05-19 | B97: Hidalgo, Alexander 107468 | C97: R13530 | D97: 15 | F97: 67001.71 | H97: ck 565271 10/6/15
A98: 2016-05-19 | B98: Imbrogno, Leanne 106708 | C98: R13530 | D98: 15 | F98: 67016.71 | H98: ck 557784 5/22/15
A99: 2016-05-19 | B99: Jarvis, Kevin M 106600 | C99: R13530 | D99: 15 | F99: 67031.71 | H99: ck 556056 4/22/15
A100: 2016-05-19 | B100: Johnson, Shirley A 107001 | C100: R13530 | D100: 15 | F100: 67046.71 | H100: ck 559095 6/15/15
A101: 2016-05-19 | B101: Jones, Steven D 106207 | C101: R13530 | D101: 15 | F101: 67061.71 | H101: ck 550571 1/15/15
A102: 2016-05-19 | B102: Kellison, Michelle 107002 | C102: R13530 | D102: 15 | F102: 67076.71 | H102: ck 559096 6/15/15
A103: 2016-05-19 | B103: Kepner, Donald L 107308 | C103: R13530 | D103: 15 | F103: 67091.71 | H103: ck 564074 9/11/15
A104: 2016-05-19 | B104: Kimmel, Jospeph S 106637 | C104: R13530 | D104: 75 | F104: 67166.71 | H104: ck 556103 4/24/15
A105: 2016-05-19 | B105: Kumek, Gerald D 106712 | C105: R13530 | D105: 30 | F105: 67196.71 | H105: ck 557790 5/22/15
A106: 2016-05-19 | B106: Kortyka, Michael 106603 | C106: R13530 | D106: 15 | F106: 67211.71 | H106: ck 556060 4/22/15
A107: 2016-05-19 | B107: Kutscher, Justin 107098 | C107: R13530 | D107: 15 | F107: 67226.71 | H107: ck 561127 7/20/15
A108: 2016-05-19 | B108: Lilly, Charlene K 106883 | C108: R13530 | D108: 15 | F108: 67241.71 | H108: ck 558067 5/27/15
A109: 2016-05-19 | B109: Mallory, Suzanne 107005 | C109: R13530 | D109: 15 | F109: 67256.71 | H109: ck 559102 6/15/15
A110: 2016-05-19 | B110: Matteson, Jospeh G 106608 | C110: R13530 | D110: 15 | F110: 67271.71 | H110: ck 556065 4/22/15
A111: 2016-05-19 | B111: McClimans, Marilou 70984 | C111: R13530 | D111: 15 | F111: 67286.71 | H111: ck 557800 5/22/15
A112: 2016-05-19 | B112: McCoy, Michael J 100992 | C112: R13530 | D112: 15 | F112: 67301.71 | H112: ck 550576 1/15/15
A113: 2016-05-19 | B113: Mezerkor, David M 107314 | C113: R13530 | D113: 15 | F113: 67316.71 | H113: ck 564086 9/11/15
A114: 2016-05-19 | B114: Miller, Marilyn J 106764 | C114: R13530 | D114: 15 | F114: 67331.71 | H114: ck 563298 8/27/15
A115: 2016-05-19 | B115: Moore, Kenneth C 106638 | C115: R13530 | D115: 75 | F115: 67406.71 | H115: ck 556105 4/24/15
A116: 2016-05-19 | B116: Moyer, Robert W 107482 | C116: R13530 | D116: 15 | F116: 67421.71 | H116: ck 565287 10/6/15
A117: 2016-05-19 | B117: Nicholson, Ray W 106289 | C117: R13530 | D117: 15 | F117: 67436.71 | H117: ck 551611 2/9/15
A118: 2016-05-19 | B118: Nugent, Nikita 107696 | C118: R13530 | D118: 15 | F118: 67451.71 | H118: ck 566863 10/30/15
A119: 2016-05-19 | B119: Osborne, Tommy 106887 | C119: R13530 | D119: 15 | F119: 67466.71 | H119: ck 558074 5/27/15
A120: 2016-05-19 | B120: Ozbolt, Stephen 106177 | C120: R13530 | D120: 15 | F120: 67481.71 | H120: ck 550586 1/15/15
A121: 2016-05-19 | B121: Pilarczyk, Robert C 107320 | C121: R13530 | D121: 15 | F121: 67496.71 | H121: ck 565293 10/6/15
A122: 2016-05-19 | B122: Pilarczyk, Robert C 107320 | C122: R13530 | D122: 15 | F122: 67511.71 | H122: ck 566869 10/30/15
A123: 2016-05-19 | B123: Pilarczyk, Robert C 107320 | C123: R13530 | D123: 15 | F123: 67526.71 | H123: ck 568623 11/18/15
A124: 2016-05-19 | B124: Pilarczyk, Robert C 107320 | C124: R13530 | D124: 15 | F124: 67541.71 | H124: ck 570389 12/21/15
A125: 2016-05-19 | B125: Portman, Jill W 107322 | C125: R13530 | D125: 15 | F125: 67556.71 | H125: ck 564617 9/18/15
A126: 2016-05-19 | B126: Purola, Tana 106926 | C126: R13530 | D126: 15 | F126: 67571.71 | H126: ck 558700 6/3/15
A127: 2016-05-19 | B127: Stonebraker, Matthew 107407 | C127: R13530 | D127: 15 | F127: 67586.71 | H127: ck 564624 9/18/15
A128: 2016-05-19 | B128: Strange, Cody A 107706 | C128: R13530 | D128: 15 | F128: 67601.71 | H128: ck 566884 10/30/15
A129: 2016-05-19 | B129: Sullivan, Patrica A 106219 | C129: R13530 | D129: 15 | F129: 67616.71 | H129: ck 554782 4/3/15
A130: 2016-05-19 | B130: Tetlow, April R 106622 | C130: R13530 | D130: 15 | F130: 67631.71 | H130: ck 556082 4/22/15
A131: 2016-05-19 | B131: Thompson, Deanna L 106623 | C131: R13530 | D131: 105 | F131: 67736.71 | H131: ck 556083 4/22/15
A132: 2016-05-19 | B132: Varsetti, Patricia 107113 | C132: R13530 | D132: 15 | F132: 67751.71 | H132: ck 561152 7/20/15
A133: 2016-05-19 | B133: Vavpetic, Lisa M 107579 | C133: R13530 | D133: 30 | E133: 30 | F133: 67751.71 | H133: ck 566421 10/21/15 | I133: ck 584832 8/23/16
A134: 2016-05-19 | B134: Wagner, Laura M 106729 | C134: R13530 | D134: 15 | F134: =F133+D134-E134 -> 67766.71 | H134: ck 557828 5/22/15
A135: 2016-05-19 | B135: Wilber, Ivan E 106774 | C135: R13530 | D135: 15 | F135: 67781.71 | H135: ck 557829 5/22/15
A136: 2016-05-19 | B136: Wiles, Rocky J 106485 | C136: R13530 | D136: 15 | F136: 67796.71 | H136: ck 554208 3/19/15
A137: 2016-05-19 | B137: Williams, Thomas C 107035 | C137: R13530 | D137: 15 | F137: 67811.71 | H137: ck 559912 6/26/15
A138: 2016-05-19 | B138: Wolfgang, Christina M 106775 | C138: R13530 | D138: 15 | F138: 67826.71 | H138: ck 557831 5/22/15
A139: 2016-05-19 | B139: Wood, Jessica M 106399 | C139: R13530 | D139: 15 | F139: 67841.71 | H139: ck 553163 3/6/15
A140: 2016-05-19 | B140: Yelverton, Joshua W 107498 | C140: R13530 | D140: 30 | F140: 67871.71 | H140: ck 565312 10/6/15
A141: 2016-05-19 | B141: Zarack, Robert W 106486 | C141: R13530 | D141: 15 | F141: 67886.71 | H141: ck 554209 3/19/15
A142: 2016-05-19 | B142: Zepp, Jarred A 107709 | C142: R13530 | D142: 15 | F142: 67901.71 | H142: ck 566892 10/30/15
A143: 2016-05-25 | B143: Fisher, Patricia S | C143: 2016-2453 | D143: 64.95 | F143: 67966.66 | H143: CC 2012 DR 233 | I143: ck 24846 1/24/14
A144: 2016-05-25 | B144: Thompson, John T | C144: 2016-2453 | D144: 91.26 | F144: 68057.92 | H144: CC 2012 CV 46 | I144: ck 24958 2/13/14
A145: 2016-05-25 | B145: Haines Law Office LLC | C145: 2016-2453 | D145: 38.42 | F145: 68096.34 | H145: CC 2011 CV 578 | I145: ck 25091 3/25/14
A146: 2016-05-25 | B146: Baron, Vivian | C146: 2016-2453 | D146: 98.68 | F146: 68195.02 | H146: CC 2011 CV 598 | I146: ck 25093 3/25/14
A147: 2016-05-25 | B147: Palo, Richard | C147: 2016-2453 | D147: 184.14 | F147: 68379.16 | H147: CC 2011 CV 1053 | I147: ck 25105 3/27/14
A148: 2016-05-25 | B148: Bashein & Bashein CO LPA | C148: 2016-2453 | D148: 22.61 | F148: 68401.77 | H148: CC 2013 CV 750 | I148: ck 25122 4/1/14
A149: 2016-05-25 | B149: Defined Technology | C149: 2016-2453 | D149: 24.7 | F149: 68426.47 | H149: CC 2012 CV 62 | I149: ck 25209 4/25/14
A150: 2016-05-25 | B150: Blakely, Jonathan P | C150: 2016-2453 | D150: 36 | F150: 68462.47 | H150: CC 2012 CV 445 | I150: ck 25387 6/11/14
A151: 2016-05-25 | B151: JP Morgan Chase Bank NA | C151: 2016-2453 | D151: 581 | F151: 69043.47 | H151: CC 2012 CV 327 | I151: ck 25401 6/20/14
A152: 2016-05-25 | B152: Dana, Richard L | C152: 2016-2453 | D152: 36 | F152: 69079.47 | H152: CC 2012 CV 1022 | I152: ck 25461 7/1/14
A153: 2016-05-25 | B153: Blakely, Jonathan P | C153: 2016-2453 | D153: 36 | F153: 69115.47 | H153: CC 2013 CV 127 | I153: ck 25505 7/31/14
A154: 2016-05-25 | B154: Becker, Nicole L | C154: 2016-2453 | D154: 37.62 | F154: 69153.09 | H154: CC 2014 CR 75 | I154: ck 25582 8/14/14
A155: 2016-05-25 | B155: Carkhuff, Mary A | C155: 2016-2453 | D155: 39.9 | F155: 69192.99 | H155: CC 2012 DR 274 | I155: ck 25720 9/29/14
A156: 2016-05-25 | B156: Buckingham Doolittle & Burroughs | C156: 2016-2453 | D156: 41.49 | F156: 69234.48 | H156: CC 2013 CV 121 | I156: ck 25737 10/1/14
A157: 2016-05-25 | B157: Todt, Robert W | C157: 2016-2453 | D157: 220 | F157: 69454.48 | H157: CC 2012 CV 871 | I157: ck 25905 11/4/14
A158: 2016-05-26 | B158: Lynch, Lorenzo 107661 | C158: R13532 | D158: 32.52 | F158: 69487 | H158: Ref 34927 : BOR 2014-0532 | I158: ck 566816 10/29/15
A159: 2016-05-26 | B159: 21st Mortgage Corp 104763 | C159: R13532 | D159: 5.94 | F159: 69492.94 | H159: Ref 31088 38-005-00-008-01 | I159: ck 529098 3/25/14
A160: 2016-05-26 | B160: Bakic, Larry 102922 | C160: R13532 | D160: 2.44 | F160: 69495.38 | H160: Ref 24468 36-800-00-555-01 | I160: ck 509663 5/3/13
A161: 2016-05-26 | B161: Estate John Emerson 106847 | C161: R13532 | D161: 179.26 | F161: 69674.64 | H161: Ref 33228 12-115-00-031-00 | I161: ck 558616 6/8/15
A162: 2016-05-26 | B162: Morriello, Joseph 102919 | C162: R13532 | D162: 3.08 | F162: 69677.72 | H162: Ref 27824 54-800-00-152-02 | I162: ck 509683 5/3/13
A163: 2016-05-26 | B163: SFAH LLC 106831 | C163: R13532 | D163: 74.2 | F163: 69751.92 | H163: Ref 33291 12-112-00-139-00 | I163: ck 558031 5/27/15
A164: 2016-05-26 | B164: Stafford, Charity 102988 | C164: R13532 | D164: 12.87 | F164: 69764.79 | H164: Ref 28705 BOR 2012-0192 | I164: ck 510813 5/15/13
A165: 2016-05-26 | B165: Wharton, Edwin 106841 | C165: R13532 | D165: 6.7 | F165: 69771.49 | H165: Ref 33540 12-115-00-058/59-00 | I165: ck 558045 5/27/15
A166: 2016-06-28 | B166: Treasuers Overage | C166: 2016-2955 | D166: 20.17 | F166: 69791.66
F167: 69791.66
D169: =SUM(D4:D168) -> 9441.48 | E169: =SUM(E4:E168) -> 73.78

Sheet 2015
B1: 2015 UNCLAIMED MONEY | C1: CHECK OR PAYIN# | D1: REVENUE | E1: EXPENSE | F1: BALANCE | H1: Case Number / Description
A2: DATE | B2: 2014 CASH BALANCE | F2: 216863.75
A3: 2015-01-16 | B3: Guideposts | C3: 2015-0245 | D3: 5 | F3: =F2+D3-E3 -> 216868.75 | H3: subs for Graedon Hunt | I3: ck 7030 4/3/2001
A4: 2015-01-16 | B4: Thompson/Smith Funeral Home | C4: 2015-0245 | D4: 0.36 | F4: 216869.11 | H4: patient acct bal for Arland Emery | I4: ck 7035 4/4/2001
A5: 2015-01-16 | B5: Richard Newbold | C5: 2015-0245 | D5: 0.02 | F5: 216869.13 | H5: overpmt for Weltha Newbold | I5: ck 7128 5/29/2001
A6: 2015-01-16 | B6: Potti Funeral Home | C6: 2015-0245 | D6: 0.53 | F6: 216869.66 | H6: Patient acct bal for Mary Leonard | I6: ck 7132 5/29/l2001
A7: 2015-01-16 | B7: Leonard Boston | C7: 2015-0245 | D7: 0.07 | F7: 216869.73 | H7: overpymt from Leonard Boston | I7: ck 7211 7/24/2001
A8: 2015-01-16 | B8: Robin Walker | C8: 2015-0245 | D8: 0.02 | F8: 216869.75 | H8: patient acct bal for Robert Walker | I8: ck 7215 7/24/2001
A9: 2015-01-16 | B9: Ross Billman Funeral Home | C9: 2015-0245 | D9: 0.2 | F9: =F8+D9-E9 -> 216869.95 | H9: patient acct bal for Irene Mohoney | I9: ck 7306 9/20/2001
A10: 2015-01-16 | B10: Margaret Dalrymple | C10: 2015-0245 | D10: 0.43 | F10: 216870.38 | H10: patient acct bal for Edna Canfield | I10: ck 7386 10/30/2001
A11: 2015-01-16 | B11: Hazel Manbeck | C11: 2015-0245 | D11: 13 | F11: 216883.38 | H11: overpymt from Hazel Manbeck | I11: ck 8945 8/25/2004
A12: 2015-01-16 | B12: Mary Chunke | C12: 2015-0245 | D12: 592 | F12: 217475.38 | H12: patient acct bal for Mary Chunke | I12: ck 9172 2/l17/2005
A13: 2015-01-16 | B13: Thomas Mcgill | C13: 2015-0245 | D13: 0.06 | F13: 217475.44 | H13: patient acct bal for Emma McGill | I13: ck 9269 5/25/2005
A14: 2015-01-16 | B14: Amanda Wiley | C14: 2015-0245 | D14: 5 | F14: 217480.44 | H14: patient acct bal for Jeanne Litchfield | I14: ck 9403 9/21/2005
A15: 2015-01-16 | B15: Pauline Misener | C15: 2015-0245 | D15: 3 | F15: 217483.44 | H15: overpymt from Pauline Misener | I15: ck 9611 3/8/2006
A16: 2015-01-16 | B16: Vista McVoy | C16: 2015-0245 | D16: 50 | F16: 217533.44 | H16: Christmas Gift from Jeanette Clemmer | I16: ck 10052 3/27/07
A17: 2015-01-16 | B17: Margaret Ranta | C17: 2015-0245 | D17: 10 | F17: 217543.44 | H17: overpymt from Margaret Ranta | I17: ck 11004 4/16/09
A18: 2015-01-16 | B18: Robert Brainard | C18: 2015-0245 | D18: 217 | F18: 217760.44 | H18: overpymnt for Virginia Brainard | I18: ck 11299 12/29/09
A19: 2015-01-16 | B19: Adeline Bennett | C19: 2015-0245 | D19: 1 | F19: 217761.44 | H19: overpymnt for Adeline Bennett | I19: ck 11357 2/25/10
A20: 2015-01-16 | B20: John Houser | C20: 2015-0245 | D20: 50 | F20: 217811.44 | H20: Birthday gift from Margaret Houser | I20: ck 11938 5/27/11
A21: 2015-01-16 | B21: Ryan Neill | C21: 2015-0245 | D21: 10 | F21: 217821.44 | H21: Birthday gift from Margaret Houser | I21: ck 11941 6/2/11
A22: 2015-01-16 | B22: Dorothy Mason | C22: 2015-0245 | D22: 5 | F22: 217826.44 | H22: overpymnt for Dorothy Mason | I22: ck 12071 7/26/11
A23: 2015-01-16 | B23: Maria Mannier | C23: 2015-0245 | D23: 1326.85 | F23: 219153.29 | H23: overpymnt for Antoinette Muto | I23: ck 12187 9/27/11
A24: 2015-01-16 | B24: Erie Pa Medical Center | C24: 2015-0245 | D24: 26.04 | F24: 219179.33 | H24: pymnt for medical bill James Horst | I24: ck 12266 11/9/11
A25: 2015-01-16 | B25: Ladies Home Journal | C25: 2015-0245 | D25: 5.99 | F25: 219185.32 | H25: subscription for Linda Doxie | I25: ck 12862 9/19/12
A26: 2015-01-16 | B26: Norma Fogleman | C26: 2015-0245 | D26: 10 | F26: 219195.32 | H26: overpymnt from Norma Fogleman | I26: ck 13250 7/29/13
A27: 2015-01-16 | B27: Barry Merrick | C27: 2015-0245 | D27: 45.16 | F27: 219240.48 | H27: overpymnt for Ruth Grice | I27: ck 13427 1/27/14
A28: 2015-02-03 | B28: Barry Merrick | C28: 551484 | E28: 45.16 | F28: 219195.32 | H28: claimed
A29: 2015-02-24 | B29: Meade Materials | C29: 552709 | E29: 635.65 | F29: 218559.67 | H29: claimed R12926 10/9/14 ck 509115
A30: 2015-02-13 | B30: Treasurers Office | C30: 2015-0761 | D30: 10 | F30: 218569.67 | H30: Cashier #1 overage 1/21/2015
A31: 2015-06-16 | B31: Beth E Soden | C31: 2015-2750 | D31: 9 | F31: 218578.67 | H31: case 2009 DR 119 | I31: ck 23801 2/19/13
A32: 2015-06-16 | B32: Atlantic Equipment Company | C32: 2015-2750 | D32: 2.12 | F32: 218580.79 | H32: Case 2012 CV 565 | I32: ck 23984 4/18/13
A33: 2015-06-16 | B33: Bashein and Bashein | C33: 2015-2750 | D33: 4.63 | F33: 218585.42 | H33: Case 2012 CV 184 | I33: ck 24005 5/1/13
A34: 2015-06-16 | B34: Melissa May Hamski | C34: 2015-2750 | D34: 2.24 | F34: 218587.66 | H34: Case 2012 DR 375 | I34: ck 24075 5/7/13
A35: 2015-06-16 | B35: Asset Acceptance LLC | C35: 2015-2750 | D35: 144.18 | F35: 218731.84 | H35: Case 2008 CV 797 | I35: ck 24194 7/1/13
A36: 2015-06-16 | B36: Karen Sue Spence | C36: 2015-2750 | D36: 21.79 | F36: 218753.63 | H36: Case 2013 DR 58 | I36: ck 24520 10/4/13
A37: 2015-06-16 | B37: Dyson Schmidlin & Foulds | C37: 2015-2750 | D37: 100 | F37: 218853.63 | H37: Case 2011 CV 987 | I37: ck 24676 12/2/13
A38: 2015-09-24 | B38: Carla M. Stankus 104684 | C38: R13280 | D38: 15 | F38: 218868.63 | H38: Juror | I38: ck 528915 | J38: 2014-03-21
A39: 2015-09-24 | B39: Cynthia A Mollick 105032 | C39: R13280 | D39: 15 | F39: 218883.63 | H39: Juror | I39: ck 531579 | J39: 2014-05-09
A40: 2015-09-24 | B40: Jeffrey J Rich 105632 | C40: R13280 | D40: 15 | F40: 218898.63 | H40: Juror | I40: ck 544037 | J40: 2014-10-07
A41: 2015-09-24 | B41: Kathy A Smith 104026 | C41: R13280 | D41: 6 | F41: 218904.63 | H41: Witness | I41: ck 540765 | J41: 2014-07-29
A42: 2015-09-24 | B42: Thomas W Norman 104412 | C42: R13280 | D42: 8.6 | F42: 218913.23 | H42: Witness | I42: ck 525928 | J42: 2014-01-29
A43: 2015-09-24 | B43: Ashley Ponsart 104638 | C43: R13280 | D43: 8 | F43: 218921.23 | H43: Witness | I43: ck 528893 | J43: 2014-03-21
A44: 2015-09-24 | B44: Kenny Y Gonzalez Cedeno 105496 | C44: R13280 | D44: 6 | F44: 218927.23 | H44: Witness | I44: ck 541707 | J44: 2014-08-14
A45: 2015-09-24 | B45: Holly L Lane-Rout 105498 | C45: R13280 | D45: 8.6 | F45: 218935.83 | H45: Witness | I45: ck 541708 | J45: 2014-08-14
A46: 2015-09-24 | B46: Angela J Farmwald 106064 | C46: R13280 | D46: 16.6 | F46: 218952.43 | H46: Witness | I46: ck 549815 | J46: 2014-12-29
A47: 2015-09-24 | B47: Robert S Dodd 104542 | C47: R13280 | D47: 15 | F47: 218967.43 | H47: Juror | I47: ck 527188 | J47: 2014-02-21
A48: 2015-09-24 | B48: Constance L Focht 104585 | C48: R13280 | D48: 15 | F48: 218982.43 | H48: Juror | I48: ck 527192 | J48: 2014-02-21
A49: 2015-09-24 | B49: Alissa Ianetta 104592 | C49: R13280 | D49: 15 | F49: 218997.43 | H49: Juror | I49: ck 527210 | J49: 2014-02-21
A50: 2015-09-24 | B50: Jesse Jerik 104550 | C50: R13280 | D50: 15 | F50: 219012.43 | H50: Juror | I50: ck 527212 | J50: 2014-02-21
A51: 2015-09-24 | B51: Sam Brenkus 104726 | C51: R13280 | D51: 15 | F51: 219027.43 | H51: Juror | I51: ck 528819 | J51: 2014-03-21
A52: 2015-09-24 | B52: Michelle Spangler 104701 | C52: R13280 | D52: 15 | F52: 219042.43 | H52: Juror | I52: ck 528912 | J52: 2014-03-21
A53: 2015-09-24 | B53: Kristina Dalrymple 104862 | C53: R13280 | D53: 15 | F53: 219057.43 | H53: Juror | I53: ck 530746 | J53: 2014-04-23
A54: 2015-09-24 | B54: Scott J Ogrodnichek 104870 | C54: R13280 | D54: 15 | F54: 219072.43 | H54: Juror | I54: ck 530775 | J54: 2014-04-23
A55: 2015-09-24 | B55: Hank Frasure 104937 | C55: R13280 | D55: 15 | F55: 219087.43 | H55: Juror | I55: ck 531131 | J55: 2014-04-29
A56: 2015-09-24 | B56: Rhonda L Beitzel 104990 | C56: R13280 | D56: 15 | F56: 219102.43 | H56: Juror | I56: ck 531548 | J56: 2014-05-09
A57: 2015-09-24 | B57: Charles S Case 104994 | C57: R13280 | D57: 15 | F57: 219117.43 | H57: Juror | I57: ck 531556 | J57: 2014-05-09
A58: 2015-09-24 | B58: Joel D Rosier 105008 | C58: R13280 | D58: 15 | F58: 219132.43 | H58: Juror | I58: ck 531591 | J58: 2014-05-09
A59: 2015-09-24 | B59: Dale M. Colantino 105066 | C59: R13280 | D59: 15 | F59: 219147.43 | H59: Juror | I59: ck 536842 | J59: 2014-05-21
A60: 2015-09-24 | B60: Tami Marie Fulner 105078 | C60: R13280 | D60: 15 | F60: 219162.43 | H60: Juror | I60: ck 536848 | J60: 2014-05-21
A61: 2015-09-24 | B61: Martin J Kuala 105075 | C61: R13280 | D61: 15 | F61: 219177.43 | H61: Juror | I61: ck 536851 | J61: 2014-05-21
A62: 2015-09-24 | B62: Benjamin P Braun 105156 | C62: R13280 | D62: 15 | F62: 219192.43 | H62: Juror | I62: ck 538152 | J62: 2014-06-17
A63: 2015-09-24 | B63: Alexander K Colby 105161 | C63: R13280 | D63: 15 | F63: 219207.43 | H63: Juror | I63: ck 538161 | J63: 2014-06-17
A64: 2015-09-24 | B64: Amy R DeGeorge 105095 | C64: R13280 | D64: 15 | F64: 219222.43 | H64: Juror | I64: ck 538171 | J64: 2014-06-17
A65: 2015-09-24 | B65: Kenneth William Faulerkson 105166 | C65: R13280 | D65: 15 | F65: 219237.43 | H65: Juror | I65: ck 538181 | J65: 2014-06-17
A66: 2015-09-24 | B66: Susan A Morris 105181 | C66: R13280 | D66: 15 | F66: 219252.43 | H66: Juror | I66: ck 538225 | J66: 2014-06-17
A67: 2015-09-24 | B67: Hector J Rosado 105185 | C67: R13280 | D67: 15 | F67: 219267.43 | H67: Juror | I67: ck 538237 | J67: 2014-06-17
A68: 2015-09-24 | B68: Tami Marie Fulner 105078 | C68: R13280 | D68: 30 | F68: 219297.43 | H68: Juror | I68: ck 538920 | J68: 2014-06-24
A69: 2015-09-24 | B69: Todd Jerry Skytta 101580 | C69: R13280 | D69: 15 | F69: 219312.43 | H69: Juror | I69: ck 538925 | J69: 2014-06-24
A70: 2015-09-24 | B70: John Spencer Irish 101464 | C70: R13280 | D70: 15 | F70: 219327.43 | H70: Juror | I70: ck 540879 | J70: 2014-08-04
A71: 2015-09-24 | B71: Tami Marie Fulner 105078 | C71: R13280 | D71: 15 | F71: 219342.43 | H71: Juror | I71: ck 542995 | J71: 2014-09-15
A72: 2015-09-24 | B72: Tiffany I Payne 105648 | C72: R13280 | D72: 15 | F72: 219357.43 | H72: Juror | I72: ck 544033 | J72: 2014-10-07
A73: 2015-09-24 | B73: Tiffany I Payne 105648 | C73: R13280 | D73: 15 | F73: =F72+D73-E73 -> 219372.43 | H73: Juror | I73: ck 544518 | J73: 2014-10-09
A74: 2015-09-24 | B74: Kolleen Mauric 105771 | C74: R13280 | D74: 15 | F74: 219387.43 | H74: Juror | I74: ck 545647 | J74: 2014-10-31
A75: 2015-09-24 | B75: Donna M Mayer 105770 | C75: R13280 | D75: 15 | F75: 219402.43 | H75: Juror | I75: ck 545648 | J75: 2014-10-31
A76: 2015-09-24 | B76: Melissa Weber 105785 | C76: R13280 | D76: 15 | F76: 219417.43 | H76: Juror | I76: ck 545660 | J76: 2014-10-31
A77: 2015-09-24 | B77: Dean A Snider 105833 | C77: R13280 | D77: 15 | F77: 219432.43 | H77: Juror | I77: ck 545981 | J77: 2014-11-07
A78: 2015-09-24 | B78: Gary L Roberts 105874 | C78: R13280 | D78: 30 | F78: 219462.43 | H78: Juror | I78: ck 547251 | J78: 2014-11-18
A79: 2015-09-24 | B79: Dean A Snider 105833 | C79: R13280 | D79: 15 | F79: 219477.43 | H79: Juror | I79: ck 547253 | J79: 2014-11-18
A80: 2015-09-24 | B80: Deborah L Rzeszutek 105918 | C80: R13280 | D80: 30 | F80: 219507.43 | H80: Juror | I80: ck 547924 | J80: 2014-12-01
A81: 2015-09-24 | B81: James W Wos 105931 | C81: R13280 | D81: 15 | F81: 219522.43 | H81: Juror | I81: ck 547929 | J81: 2014-12-01
A82: 2015-09-24 | B82: Daniel L Epling 106012 | C82: R13280 | D82: 15 | F82: 219537.43 | H82: Juror | I82: ck 548688 | J82: 2014-12-15
A83: 2015-09-24 | B83: Kimberly S Sealay 106032 | C83: R13280 | D83: 15 | F83: 219552.43 | H83: Juror | I83: ck 548719 | J83: 2014-12-15
A84: 2015-09-24 | B84: Tiffany I Payne 105648 | C84: R13280 | D84: 15 | F84: 219567.43 | H84: Juror | I84: ck 549825 | J84: 2014-12-29
A85: 2015-09-24 | B85: Daniel L Losey 106097 | C85: R13280 | D85: 15 | F85: =F84+D85-E85 -> 219582.43 | H85: Juror | I85: ck 549868 | J85: 2014-12-31
A86: 2015-09-24 | B86: Mark E Canfield 105361 | C86: R13280 | D86: 15 | F86: 219597.43 | H86: Juror | I86: ck 540729 | J86: 2014-07-29
A87: 2015-09-24 | B87: Michael W Fairbanks 105359 | C87: R13280 | D87: 15 | F87: 219612.43 | H87: Juror | I87: ck 540735 | J87: 2014-07-29
A88: 2015-09-24 | B88: Jane Elizabeth Walker 106036 | C88: R13280 | D88: 15 | F88: 219627.43 | H88: Juror | I88: ck 548730 | J88: 2014-12-15
A89: 2015-09-30 | B89: Rose Heimberger 105673 | C89: R13295 | D89: 43.78 | F89: 219671.21 | G89: 577378 | H89: REA penalty remission | I89: ck 544536 | J89: 2014-10-16
A90: 2015-09-30 | B90: Hewlet Packard Fin 70184 | C90: R13295 | D90: 527.75 | F90: 220198.96 | H90: Pers Prop Refund | I90: ck 544249 | J90: 2014-10-07
A91: 2015-10-14 | B91: Edgardo Vega | C91: 2015-4661 | D91: 225 | F91: 220423.96 | H91: 1999 CR A 00073W
D93: =SUM(D3:D92) -> 4241.02 | E93: =SUM(E3:E92) -> 680.81 | F93: =D93-E93 -> 3560.21

Sheet 2014
B1: 2014 UNCLAIMED MONEY | C1: CHECK OR PAYIN# | D1: REVENUE | E1: EXPENSE | F1: BALANCE | H1: Case Number / Description
A2: DATE | B2: 2013 CASH BALANCE | F2: 211752.85
A3: 2014-02-24 | B3: Jennifer Marcrom | C3: 14-0929 | D3: 250 | F3: =F2+D3-E3 -> 212002.85 | H3: 2010 CR B 00929 W
A4: 2014-03-05 | B4: Gerald D Phillips | C4: 14-1144 | D4: 100 | E4: 0 | F4: =F3+D4-E4 -> 212102.85
A5: 2014-03-21 | B5: Donna M. Kellison | C5: 528807 | E5: 672.1 | F5: 211430.75 | H5: Claim ck 509800 / R11704 12/7/11
A6: 2014-03-21 | B6: Charles P Lawson | C6: 528808 | E6: 15 | F6: 211415.75 | H6: claim ck 5436266 / R11461 8/5/11
A7: 2014-03-26 | B7: Sharon S Huey | C7: 529209 | E7: 271.8 | F7: 211143.95 | H7: claim ck 451826 / R11698 12/7/11
A8: 2014-03-26 | B8: Treasurers Office - drawer overage | C8: 14-1144 | D8: 1 | F8: 211144.95
A9: 2014-04-11 | B9: Dale B Gibson | C9: 14-1774 | D9: 25 | F9: 211169.95 | H9: 200 CR B 00630 W
A10: 2014-04-11 | B10: Angela N Grow-Orr | C10: 14-1774 | D10: 15 | F10: 211184.95 | H10: 2010 CR B 00769 W
A11: 2014-04-11 | B11: Brian D Orr | C11: 14-1774 | D11: 5 | F11: 211189.95 | H11: 2010 CR B 00770 W
A12: 2014-04-11 | B12: Matthew B Griffin | C12: 14-1774 | D12: 5 | F12: 211194.95 | H12: 2011 CR B 00628 W
A13: 2014-04-11 | B13: Jason J Floss | C13: 14-1774 | D13: 3 | F13: 211197.95 | H13: 2011 TR C 01126 W
A14: 2014-04-11 | B14: Dale R Addicott III | C14: 14-1774 | D14: 5 | F14: 211202.95 | H14: 2011 TR D 00007 W
A15: 2014-04-11 | B15: Sean M Gerred | C15: 14-1774 | D15: 200 | F15: 211402.95 | H15: 2011 TR D 00874 W
A16: 2014-04-11 | B16: James T Kirk | C16: 14-1774 | D16: 5 | F16: 211407.95 | H16: 2011 TR D 01891 W
A17: 2014-04-11 | B17: Mark Lambert | C17: 14-1774 | D17: 5 | F17: 211412.95 | H17: 2011 TR D 01910 W
A18: 2014-04-11 | B18: Kaprisha S Moore | C18: 14-1774 | D18: 5 | F18: 211417.95 | H18: 2011 CR B 00618 W
A19: 2014-04-11 | B19: Steven M Soukup II | C19: 14-1774 | D19: 5 | F19: 211422.95 | H19: 2012 CR B 01141 W
A20: 2014-04-11 | B20: Daneen Short | C20: 14-1774 | D20: 50 | F20: 211472.95 | H20: 2012 CV G 00237 W
A21: 2014-04-11 | B21: Robin Arrington | C21: 14-1774 | D21: 10 | F21: 211482.95 | H21: 2012 TR D 00059 W
A22: 2014-04-11 | B22: Capri S Cafaro | C22: 14-1774 | D22: 35 | F22: 211517.95 | H22: 2012 TR D 00327 W
A23: 2014-04-11 | B23: Chantel Lee | C23: 14-1774 | D23: 5 | F23: 211522.95 | H23: 2012 TR D 01283 W
A24: 2014-04-11 | B24: Jaime L Schelmety | C24: 14-1774 | D24: 5 | F24: 211527.95 | H24: 2012 TR D 01366 W
A25: 2014-04-11 | B25: Charles E Suzelis JR | C25: 14-1774 | D25: 25 | F25: 211552.95 | H25: 2013 TR C 00821 W
A26: 2014-04-11 | B26: Timothy C Layman | C26: 14-1774 | D26: 5 | F26: 211557.95 | H26: 2013 TR D 00198 W
A27: 2014-04-11 | B27: Natasha M Hibbard | C27: 14-1774 | D27: 20 | F27: 211577.95 | H27: 2013 TR D 00245 W
A28: 2014-04-22 | B28: Robert Foster | C28: 14-1930 | D28: 450 | F28: 212027.95 | H28: Case# 2010CR B 447 E
A29: 2014-07-30 | B29: Treasurers Office - drawer overage | C29: 14-3393 | D29: 100 | F29: 212127.95 | H29: Cashier #2 Overage 7/9/14
A30: 2014-07-30 | B30: Treasurers Office - drawer overage | C30: 14-3396 | D30: 200 | F30: 212327.95 | H30: cashier #1 Overage 7/15/14
A31: 2014-08-13 | B31: David J Hackbart | C31: 14-3614 | D31: 58.6 | F31: 212386.55 | H31: Case #1996CRA343 Bond Refund WC
A32: 2014-08-20 | B32: Deborah Mitchell | C32: 14-3732 | D32: 25 | F32: 212411.55 | H32: Case #2012TRD12 WC
A33: 2014-08-21 | B33: Sarbjot Ajit | C33: 14-3750 | D33: 270 | F33: 212681.55 | H33: Case #2010cCRB180 WC
A34: 2014-08-21 | B34: Roseanna D Yarker - CLAIMED | C34: 14-3750 | D34: 270 | F34: 212951.55 | H34: Case #2008CRB165 WC claimed ck 608978 10/4/17
A35: 2014-08-21 | B35: Randy R Heinz | C35: 14-3750 | D35: 175.5 | F35: 213127.05 | H35: Case #2008CRB393 WC
A36: 2014-10-09 | B36: William E Dregalla ck 521637 | C36: R12926 | D36: 10 | F36: 213137.05
A37: 2014-10-09 | B37: Leroy Ridenour ck 504327 | C37: R12926 | D37: 10 | F37: 213147.05
A38: 2014-10-09 | B38: Mark Lundgren ck 513416 | C38: R12926 | D38: 11.3 | F38: 213158.35
A39: 2014-10-09 | B39: Mary Dye ck 520771 | C39: R12926 | D39: 172.04 | F39: 213330.39
A40: 2014-10-09 | B40: Meades Auto Repair ck 522552 | C40: R12926 | D40: 35.93 | F40: 213366.32
A41: 2014-10-09 | B41: Meade Materials ck 509115 | C41: R12926 | D41: 635.65 | F41: 214001.97 | H41: claimed - ck 552709 2/24/15
A42: 2014-10-09 | B42: Angelic Homes ck 504247 | C42: R12926 | D42: 128.35 | F42: 214130.32
A43: 2014-10-09 | B43: Andrew Janick ck 515276 | C43: R12926 | D43: 290.89 | F43: 214421.21
A44: 2014-10-09 | B44: Albert Miller ck 505906 | C44: R12926 | D44: 149 | F44: 214570.21
A45: 2014-10-09 | B45: Thomas Hunt DO ck 505958 | C45: R12926 | D45: 50 | F45: 214620.21
A46: 2014-10-10 | B46: Deborah l Harwell ck 515089 | C46: R12927 | D46: 15 | F46: 214635.21
A47: 2014-10-10 | B47: Emelina Rosario ck 515100 | C47: R12927 | D47: 15 | F47: 214650.21
A48: 2014-10-10 | B48: Troy Ziegler ck 515119 | C48: R12927 | D48: 15 | F48: 214665.21
A49: 2014-10-10 | B49: Judi Kemmer ck 504519 | C49: R12928 | D49: 8 | F49: 214673.21
A50: 2014-10-10 | B50: Shenale M Williams ck 504585 | C50: R12928 | D50: 8 | F50: 214681.21
A51: 2014-10-10 | B51: Erin L Lesneski ck 506095 | C51: R12928 | D51: 6.3 | F51: 214687.51
A52: 2014-10-10 | B52: Renee Plott ck 506103 | C52: R12928 | D52: 7.9 | F52: 214695.41
A53: 2014-10-10 | B53: Nicholas O Leiniger ck 507446 | C53: R12928 | D53: 6 | F53: 214701.41
A54: 2014-10-10 | B54: Clifford M Titus ck 507490 | C54: R12928 | D54: 6 | F54: 214707.41
A55: 2014-10-10 | B55: Pamela Carroll ck 508034 | C55: R12928 | D55: 8 | F55: 214715.41
A56: 2014-10-10 | B56: Melissa Schweickart ck 509645 | C56: R12928 | D56: 6 | F56: 214721.41
A57: 2014-10-10 | B57: Jessica Reighord ck 518357 | C57: R12928 | D57: 8.1 | F57: 214729.51
A58: 2014-10-10 | B58: Melyssa Ziegler ck 518387 | C58: R12928 | D58: 8.8 | F58: 214738.31
A59: 2014-10-10 | B59: Edward J Schmidt ck 522152 | C59: R12928 | D59: 15 | F59: 214753.31
A60: 2014-10-10 | B60: Michael E Andrew ck 524509 | C60: R12928 | D60: 16.5 | F60: 214769.81
A61: 2014-10-10 | B61: Mark Earl Farmer ck 524518 | C61: R12928 | D61: 7.7 | F61: 214777.51
A62: 2014-10-10 | B62: Kadie Gill ck 524520 | C62: R12928 | D62: 9 | F62: 214786.51
A63: 2014-10-10 | B63: Alfred Lewis ck 524532 | C63: R12928 | D63: 8.3 | F63: 214794.81
A64: 2014-10-10 | B64: Johnathan Timothy Wilson ck 519827 | C64: R12929 | D64: 15 | F64: 214809.81
A65: 2014-10-10 | B65: Kermit H Butcher ck 520192 | C65: R12929 | D65: 30 | F65: 214839.81
A66: 2014-10-10 | B66: Kimberly Ann Mullins ck 520223 | C66: R12929 | D66: 15 | F66: 214854.81
A67: 2014-10-10 | B67: Judith Marie Bradley ck 522072 | C67: R12929 | D67: 15 | F67: 214869.81
A68: 2014-10-10 | B68: Laurie Ann Evinsky ck 522094 | C68: R12929 | D68: 15 | F68: =F67+D68-E68 -> 214884.81
A69: 2014-10-10 | B69: Melissa A Gautschi ck 522104 | C69: R12929 | D69: 45 | F69: 214929.81
A70: 2014-10-10 | B70: Jeffrey K Gibson ck 522105 | C70: R12929 | D70: 30 | F70: 214959.81
A71: 2014-10-10 | B71: Wade Lemmon ck 522128 | C71: R12929 | D71: 15 | F71: 214974.81
A72: 2014-10-10 | B72: Deena Palmer ck 522140 | C72: R12929 | D72: 15 | F72: 214989.81
A73: 2014-10-10 | B73: Patricia Starr ck 524024 | C73: R12929 | D73: 15 | F73: 215004.81
A74: 2014-10-10 | B74: Ricky Wilson ck 524034 | C74: R12929 | D74: 15 | F74: 215019.81
A75: 2014-10-10 | B75: Margaret J Coffman Emerson ck524513 | C75: R12929 | D75: 45 | F75: 215064.81
A76: 2014-10-10 | B76: Shannon L Dalton ck 504479 | C76: R12929 | D76: 30 | F76: 215094.81
A77: 2014-10-10 | B77: Leroy A Imhoff ck 504513 | C77: R12929 | D77: 15 | F77: 215109.81
A78: 2014-10-10 | B78: Timothy M Pocatko ck 504554 | C78: R12929 | D78: 15 | F78: 215124.81
A79: 2014-10-10 | B79: Toni Hinson ck 506082 | C79: R12929 | D79: 15 | F79: 215139.81
A80: 2014-10-10 | B80: Mariana Branch ck 507403 | C80: R12929 | D80: 15 | F80: 215154.81
A81: 2014-10-10 | B81: Susan R Cramer ck 507413 | C81: R12929 | D81: 45 | F81: 215199.81
A82: 2014-10-10 | B82: Michelle M French ck 507420 | C82: R12929 | D82: 15 | F82: 215214.81
A83: 2014-10-10 | B83: Benjamin S Smith ck 507476 | C83: R12929 | D83: 15 | F83: 215229.81
A84: 2014-10-10 | B84: Karen Sulecki ck 507482 | C84: R12929 | D84: 45 | F84: 215274.81
A85: 2014-10-10 | B85: Jeffrey M Tromp ck 507491 | C85: R12929 | D85: 15 | F85: 215289.81
A86: 2014-10-10 | B86: Pamela J Yoder ck 507499 | C86: R12929 | D86: 15 | F86: 215304.81
A87: 2014-10-10 | B87: Daniel J Sommers ck 508081 | C87: R12929 | D87: 30 | F87: 215334.81
A88: 2014-10-10 | B88: Deborah Dismukes ck 511667 | C88: R12929 | D88: 15 | F88: 215349.81
A89: 2014-10-10 | B89: LeeAnne Fasuk ck 511677 | C89: R12929 | D89: 15 | F89: 215364.81
A90: 2014-10-10 | B90: Wayne D Housel ck 511692 | C90: R12929 | D90: 15 | F90: 215379.81
A91: 2014-10-10 | B91: Angela Korabek ck 511703 | C91: R12929 | D91: 15 | F91: 215394.81
A92: 2014-10-10 | B92: Michael R Newhart ck 511722 | C92: R12929 | D92: 30 | F92: 215424.81
A93: 2014-10-10 | B93: Julie L Randolph ck 511734 | C93: R12929 | D93: 15 | F93: 215439.81
A94: 2014-10-10 | B94: Estelle Tomasio ck 511759 | C94: R12929 | D94: 15 | F94: 215454.81
A95: 2014-10-10 | B95: Jean C Sandor ck 513056 | C95: R12929 | D95: 15 | F95: 215469.81
A96: 2014-10-10 | B96: Harry Benton ck 513565 | C96: R12929 | D96: 15 | F96: 215484.81
A97: 2014-10-10 | B97: Jared M Efantis ck 513590 | C97: R12929 | D97: 30 | F97: 215514.81
A98: 2014-10-10 | B98: Jacob Newsome ck 513627 | C98: R12929 | D98: 15 | F98: 215529.81
A99: 2014-10-10 | B99: Bryan Thirion ck 513648 | C99: R12929 | D99: 15 | F99: 215544.81
A100: 2014-10-10 | B100: Steven Thomas Bennett ck 516270 | C100: R12929 | D100: 30 | F100: 215574.81
A101: 2014-10-10 | B101: Jennifer Benton ck 516271 | C101: R12929 | D101: 15 | F101: 215589.81
A102: 2014-10-10 | B102: Brian Bidwell ck 516275 | C102: R12929 | D102: 15 | F102: 215604.81
A103: 2014-10-10 | B103: Tiger L Griffin ck 516305 | C103: R12929 | D103: 15 | F103: 215619.81
A104: 2014-10-10 | B104: Teresa L Cecelic ck 517347 | C104: R12929 | D104: 15 | F104: 215634.81
A105: 2014-10-10 | B105: Whitney Nicole Dales ck 518288 | C105: R12929 | D105: 15 | F105: 215649.81
A106: 2014-10-10 | B106: Robert E McClusky ck 518333 | C106: R12929 | D106: 15 | F106: 215664.81
A107: 2014-10-10 | B107: David Nelson ck 518342 | C107: R12929 | D107: 15 | F107: 215679.81
A108: 2014-10-10 | B108: Rose M Sill ck 518368 | C108: R12929 | D108: 15 | F108: 215694.81
A109: 2014-10-10 | B109: Diedra Wadsworth ck 518381 | C109: R12929 | D109: 15 | F109: 215709.81
A110: 2014-10-10 | B110: Kim Ebersole ck 519788 | C110: R12929 | D110: 15 | F110: 215724.81
A111: 2014-10-10 | B111: Forest H Mallow ck 519801 | C111: R12929 | D111: 15 | F111: 215739.81
A112: 2014-10-10 | B112: Ronnie Lamb ck 513616 | C112: R12930 | D112: 15 | F112: 215754.81
A113: 2014-10-10 | B113: Joann L Smith ck 513645 | C113: R12930 | D113: 15 | F113: 215769.81
A114: 2014-10-10 | B114: Loretta L Jones ck 524528 | C114: R12930 | D114: 45 | F114: 215814.81
A115: 2014-10-29 | B115: Thomas R Billman | C115: 14-4774 | D115: 25 | F115: 215839.81 | H115: Case #2010 CR 45
A116: 2014-10-29 | B116: The Podor Law Firm LLC | C116: 14-4774 | D116: 95.93 | F116: 215935.74 | H116: Case #2011 CA 53
A117: 2014-10-29 | B117: Manbir S Sandhu | C117: 14-4774 | D117: 1243.43 | F117: 217179.17 | H117: Case #2009 CV 469
A118: 2014-10-29 | B118: Thomas J Sacerich | C118: 14-4774 | D118: 16.47 | F118: 217195.64 | H118: Case #2010 CV 915
A119: 2014-10-29 | B119: Traci Le Buie | C119: 14-4774 | D119: 88 | F119: 217283.64 | H119: Case #2012 DR 57
A120: 2014-10-29 | B120: Donna Tenney | C120: 14-4774 | D120: 20 | F120: 217303.64 | H120: Case #2007 CR 383
A121: 2014-10-29 | B121: Thomas R Billman | C121: 14-4774 | D121: 40 | F121: 217343.64 | H121: Case #2010 CR 45
A122: 2014-11-05 | B122: William Kobelak | C122: 545730 | E122: 479.89 | F122: 216863.75 | H122: Paid R11699/R11700 12/7/11
F123: 216863.75
D125: =SUM(D2:D123) -> 6549.69 | E125: =SUM(E2:E123) -> 1438.79 | F125: =D125-E125 -> 5110.9

Sheet 2013
B1: 2013 UNCLAIMED MONEY | C1: CHECK OR PAYIN# | D1: REVENUE | E1: EXPENSE | F1: BALANCE | H1: Case Number / Description
A2: DATE | B2: 2012 CASH BALANCE | F2: 207013.54
A3: 2013-01-04 | B3: Jack B Schweitzer II | C3: 13-0052 | D3: 225 | F3: =F2+D3-E3 -> 207238.54 | H3: 2006 TRC 586
A4: 2013-02-28 | B4: Jaob A Davidson | C4: 13-0866 | D4: 18 | E4: 0 | F4: =F3+D4-E4 -> 207256.54 | H4: 2008 CR B 00693 W
A5: 2013-02-28 | B5: Lynda Bugansky | C5: 13-086 | D5: 180 | F5: 207436.54 | H5: 2011 CR B 00675 W
A6: 2013-03-28 | B6: Ashtabula Co Treasurer | C6: 13-1291 | D6: 10.35 | F6: 207446.89
A7: 2013-04-24 | B7: Oser Properties Company | C7: 509054 | E7: 2826.12 | F7: 204620.77 | H7: 10/28/11 to UCF: ck 419847 8/12/09
A8: 2013-06-28 | B8: Amanda Korff ck460306 | C8: R12364 | D8: 6 | F8: 204626.77
A9: 2013-06-28 | B9: Mark Kelley ck479182 | C9: R12364 | D9: 6 | F9: 204632.77
A10: 2013-06-28 | B10: Scott Landon ck459106 | C10: R12364 | D10: 15 | F10: 204647.77
A11: 2013-06-28 | B11: Christopher Enox ck463017 | C11: R12364 | D11: 15 | F11: 204662.77
A12: 2013-06-28 | B12: Diana Wood ck479160 | C12: R12364 | D12: 15 | F12: 204677.77
A13: 2013-06-28 | B13: Randy Skalos ck467584 | C13: R12365 | D13: 15 | F13: 204692.77
A14: 2013-06-28 | B14: Cody Rainey ck467587 | C14: R12365 | D14: 15 | F14: 204707.77
A15: 2013-06-28 | B15: Thomas Steadman ck467602 | C15: R12365 | D15: 15 | F15: 204722.77
A16: 2013-06-28 | B16: Jennifer Metzger ck457656 | C16: R12366 | D16: 7.7 | F16: 204730.47
A17: 2013-06-28 | B17: Kevin Canter ck460282 | C17: R12366 | D17: 9 | F17: 204739.47
A18: 2013-06-28 | B18: Jennifer Burton ck460293 | C18: R12366 | D18: 6 | F18: 204745.47
A19: 2013-06-28 | B19: Steven Burton ck460294 | C19: R12366 | D19: 9.4 | F19: 204754.87
A20: 2013-06-28 | B20: Edwin Wynn ck460302 | C20: R12366 | D20: 9.4 | F20: 204764.27
A21: 2013-06-28 | B21: Kori Stacy ck460770 | C21: R12366 | D21: 6 | F21: 204770.27
A22: 2013-06-28 | B22: Michael Weatherbee ck460775 | C22: R12366 | D22: 8.2 | F22: 204778.47
A23: 2013-06-28 | B23: Thomas Sowry ck462160 | C23: R12366 | D23: 6 | F23: 204784.47
A24: 2013-06-28 | B24: Randoph Cassidy ck466322 | C24: R12366 | D24: 8.2 | F24: 204792.67
A25: 2013-06-28 | B25: Kori Sheldon ck471251 | C25: R12366 | D25: 8.2 | F25: 204800.87
A26: 2013-06-28 | B26: Dennis E Hopkins ck475220 | C26: R12366 | D26: 8.8 | F26: 204809.67
A27: 2013-06-28 | B27: Hope Allio ck480034 | C27: R12366 | D27: 8.6 | F27: 204818.27
A28: 2013-06-28 | B28: Christopher Barnett ck456866 | C28: R12366 | D28: 15 | F28: 204833.27
A29: 2013-06-28 | B29: Todd Hayes ck457609 | C29: R12366 | D29: 15 | F29: 204848.27
A30: 2013-06-28 | B30: Jarrod Lachey ck457611 | C30: R12366 | D30: 15 | F30: 204863.27
A31: 2013-06-28 | B31: Klarissa Metzger ck457615 | C31: R12366 | D31: 15 | F31: 204878.27
A32: 2013-06-28 | B32: Diana Osborne ck457616 | C32: R12366 | D32: 15 | F32: 204893.27
A33: 2013-06-28 | B33: Joseph Rich ck457629 | C33: R12366 | D33: 30 | F33: 204923.27
A34: 2013-06-28 | B34: Thomas Suhar ck459063 | C34: R12366 | D34: 15 | F34: 204938.27
A35: 2013-06-28 | B35: Karl Hoffmann Jr ck460274 | C35: R12366 | D35: 30 | F35: 204968.27
A36: 2013-06-28 | B36: Mary Collins ck462147 | C36: R12366 | D36: 15 | F36: 204983.27
A37: 2013-06-28 | B37: Mary Collins ck462656 | C37: R12366 | D37: 15 | F37: 204998.27
A38: 2013-06-28 | B38: Brandon Libbey ck462985 | C38: R12366 | D38: 15 | F38: 205013.27
A39: 2013-06-28 | B39: Julianne M Oatman ck462988 | C39: R12366 | D39: 15 | F39: 205028.27
A40: 2013-06-28 | B40: Glendon J Burnham ck463016 | C40: R12366 | D40: 15 | F40: 205043.27
A41: 2013-06-28 | B41: Angelica C Lynch ck464909 | C41: R12366 | D41: 15 | F41: 205058.27
A42: 2013-06-28 | B42: Rachel Conn ck465578 | C42: R12366 | D42: 15 | F42: 205073.27
A43: 2013-06-28 | B43: Jeremy Michael Patterson ck465596 | C43: R12366 | D43: 15 | F43: 205088.27
A44: 2013-06-28 | B44: Gerald Baird ck468987 | C44: R12366 | D44: 30 | F44: 205118.27
A45: 2013-06-28 | B45: Lisa M Posiadala ck469006 | C45: R12366 | D45: 15 | F45: 205133.27
A46: 2013-06-28 | B46: David Reznak ck469007 | C46: R12366 | D46: 15 | F46: 205148.27
A47: 2013-06-28 | B47: Nicole Demchak ck469021 | C47: R12366 | D47: 15 | F47: 205163.27
A48: 2013-06-28 | B48: Adrienne Robenstine ck471229 | C48: R12366 | D48: 60 | F48: 205223.27
A49: 2013-06-28 | B49: Kenneth A Zigmund ck471165 | C49: R12366 | D49: 15 | F49: 205238.27
A50: 2013-06-28 | B50: David Houston ck472009 | C50: R12366 | D50: 15 | F50: 205253.27
A51: 2013-06-28 | B51: Jeremy L Legg ck472010 | C51: R12366 | D51: 15 | F51: 205268.27
A52: 2013-06-28 | B52: Melanie Marie Williams ck473551 | C52: R12366 | D52: 30 | F52: 205298.27
A53: 2013-06-28 | B53: Elizabeth Beckwith ck473556 | C53: R12366 | D53: 15 | F53: 205313.27
A54: 2013-06-28 | B54: Corey Hinshaw ck473563 | C54: R12366 | D54: 15 | F54: 205328.27
A55: 2013-06-28 | B55: Thomas C Lane ck473565 | C55: R12366 | D55: 15 | F55: 205343.27
A56: 2013-06-28 | B56: Patricia Weddle ck473577 | C56: R12366 | D56: 15 | F56: 205358.27
A57: 2013-06-28 | B57: Matthew Halford ck475198 | C57: R12366 | D57: 15 | F57: 205373.27
A58: 2013-06-28 | B58: Susan Gustafson ck477586 | C58: R12366 | D58: 15 | F58: 205388.27
A59: 2013-06-28 | B59: Darlene Limestoll ck477615 | C59: R12366 | D59: 15 | F59: 205403.27
A60: 2013-06-28 | B60: Harry Baldwin III ck479129 | C60: R12366 | D60: 15 | F60: 205418.27
A61: 2013-06-28 | B61: Veronica Carr ck479154 | C61: R12366 | D61: 30 | F61: 205448.27
A62: 2013-06-28 | B62: Elisa Maksiomvic ck479982 | C62: R12366 | D62: 15 | F62: 205463.27
A63: 2013-06-28 | B63: Odie Zupancic ck479992 | C63: R12366 | D63: 30 | F63: 205493.27
A64: 2013-06-28 | B64: Leslie Cook ck480005 | C64: R12366 | D64: 15 | F64: 205508.27
A65: 2013-06-28 | B65: Douglas Lee Gardy ck480013 | C65: R12366 | D65: 15 | F65: 205523.27
A66: 2013-06-28 | B66: Brian Seymour ck480026 | C66: R12366 | D66: 15 | F66: 205538.27
A67: 2013-06-28 | B67: Laura Sullivan ck480030 | C67: R12366 | D67: 15 | F67: 205553.27
A68: 2013-06-28 | B68: Roger Dean ck471174 | C68: R12367 | D68: 7.4 | F68: =F67+D68-E68 -> 205560.67
A69: 2013-06-28 | B69: Daryl Addicott SR ck462187 | C69: R12367 | D69: 6 | F69: 205566.67
A70: 2013-06-28 | B70: Bryan Marcy ck462178 | C70: R12367 | D70: 15 | F70: 205581.67
A71: 2013-06-28 | B71: Janice Cowen ck464024 | C71: R12368 | D71: 113.6 | E71: 113.6 | F71: 205581.67 | H71: pd by ck 513864 7/11/13
A72: 2013-06-28 | B72: Peoples Baptisth Church ck464842 | C72: R12368 | D72: 100 | F72: 205681.67
A73: 2013-06-28 | B73: Michelle Bentley ck472731 | C73: R12369 | D73: 7.5 | F73: 205689.17
A74: 2013-06-28 | B74: Amanda M Weed ck473788 | C74: R12369 | D74: 320.18 | F74: 206009.35
A75: 2013-06-28 | B75: Ravenwood Methal Hlth ck468059 | C75: R12370 | D75: 138.91 | F75: 206148.26
A76: 2013-06-28 | B76: Renee Dibble ck459688 | C76: R12371 | D76: 30 | F76: 206178.26
A77: 2013-06-28 | B77: Robert Nagle ck467010 | C77: R12371 | D77: 20 | F77: 206198.26
A78: 2013-06-28 | B78: Joel M Drajem ck476363 | C78: R12371 | D78: 380 | F78: 206578.26
A79: 2013-06-28 | B79: Brenda Korb ck468330 | C79: R12371 | D79: 3.06 | F79: 206581.32
A80: 2013-06-28 | B80: C.O. Nyberg ck456624 | C80: R12372 | D80: 1000 | E80: 1000 | F80: 206581.32 | H80: pd by ck 513863 7/11/13
A81: 2013-06-28 | B81: Michele Taylor ck456610 | C81: R12373 | D81: 11 | F81: 206592.32
A82: 2013-06-28 | B82: Lee Ann Johnston ck455765 | C82: R12374 | D82: 12 | F82: 206604.32
A83: 2013-06-28 | B83: Michael Driscoll ck479771 | C83: R12375 | D83: 10 | E83: 10 | F83: 206604.32 | H83: pd by ck 513865 7/11/13
A84: 2013-06-28 | B84: Mary Stouffer ck479923 | C84: R12375 | D84: 10 | F84: 206614.32
A85: 2013-06-28 | B85: Kathleen Troyer ck479934 | C85: R12375 | D85: 10 | E85: 10 | F85: 206614.32 | H85: pd by ck 514070 7/16/13
A86: 2013-06-28 | B86: Vanderbilt Mortgage ck462205 | C86: R12375 | D86: 149.12 | F86: 206763.44
A87: 2013-06-28 | B87: Estate Robert W Downes ck461854 | C87: R12377 | D87: 108.7 | F87: 206872.14
A88: 2013-06-28 | B88: Thomas Hunt DO ck475154 | C88: R12378 | D88: 50 | F88: =F87+D88-E88 -> 206922.14
A89: 2013-06-28 | B89: Thomas Hunt DO ck479357 | C89: R12378 | D89: 50 | F89: 206972.14
A90: 2013-07-09 | B90: CCT Financial 9/6/11 | C90: R11516 | E90: 2426 | F90: =F89+D90-E90 -> 204546.14 | H90: pd by ck 513364 7/9/13
A91: 2013-07-25 | B91: Shelley Kay Marshall ck503047 | C91: R12403 | D91: 15 | F91: =F90+D91-E91 -> 204561.14
A92: 2013-07-25 | B92: Ida M Rodgers ck503060 | C92: R12403 | D92: 15 | F92: 204576.14
A93: 2013-07-25 | B93: Joan M Nypaver ck483133 | C93: R12403 | D93: 15 | E93: 15 | F93: 204576.14 | H93: pd by ck 515686 8/13/13
A94: 2013-07-25 | B94: Karl R Baucum ck496678 | C94: R12403 | D94: 8 | F94: 204584.14
A95: 2013-07-25 | B95: Chad Bero ck497213 | C95: R12403 | D95: 7.9 | F95: 204592.04
A96: 2013-07-25 | B96: Judy Bost ck483839 | C96: R12403 | D96: 8 | F96: 204600.04
A97: 2013-07-25 | B97: Karen A Cordova ck493670 | C97: R12403 | D97: 8.4 | F97: 204608.44
A98: 2013-07-25 | B98: Marcus Disterath ck493672 | C98: R12403 | D98: 10.4 | F98: 204618.84
A99: 2013-07-25 | B99: Sherilyn R Floss ck497226 | C99: R12403 | D99: 6.4 | F99: 204625.24
A100: 2013-07-25 | B100: Patricia Ann Georgia ck497231 | C100: R12403 | D100: 10 | F100: 204635.24
A101: 2013-07-25 | B101: Daniel W Gould ck496702 | C101: R12403 | D101: 9 | F101: 204644.24
A102: 2013-07-25 | B102: Rhonda Hibdon ck489406 | C102: R12403 | D102: 8 | F102: 204652.24
A103: 2013-07-25 | B103: Timothy Hiner ck496706 | C103: R12403 | D103: 8.5 | F103: 204660.74
A104: 2013-07-25 | B104: Randy Jones ck493679 | C104: R12403 | D104: 8.4 | F104: 204669.14
A105: 2013-07-25 | B105: Alicia Kerr ck493682 | C105: R12403 | D105: 9.4 | F105: 204678.54
A106: 2013-07-25 | B106: Cheryl Leonardson ck483874 | C106: R12403 | D106: 8.2 | F106: 204686.74
A107: 2013-07-25 | B107: Melissa Mccurdy ck499245 | C107: R12403 | D107: 8.6 | F107: 204695.34
A108: 2013-07-25 | B108: Courtney P Metcalf ck489425 | C108: R12403 | D108: 8.1 | F108: 204703.44
A109: 2013-07-25 | B109: Forrest Mohney ck501286 | C109: R12403 | D109: 8 | F109: 204711.44
A110: 2013-07-25 | B110: Ruby Moore ck497249 | C110: R12403 | D110: 7.7 | F110: 204719.14
A111: 2013-07-25 | B111: Philip W Nagle ck483889 | C111: R12403 | D111: 8.4 | F111: 204727.54
A112: 2013-07-25 | B112: Colleen K Parks ck499254 | C112: R12403 | D112: 13.2 | F112: 204740.74
A113: 2013-07-25 | B113: Tim Price ck490553 | C113: R12403 | D113: 8.7 | F113: 204749.44
A114: 2013-07-25 | B114: Melody Rayel ck489435 | C114: R12403 | D114: 8.1 | F114: 204757.54
A115: 2013-07-25 | B115: Deborah Rollman ck483897 | C115: R12403 | D115: 7 | F115: 204764.54
A116: 2013-07-25 | B116: Katarina Visnosky ck497263 | C116: R12403 | D116: 14 | F116: 204778.54
A117: 2013-07-25 | B117: Pollyanna Anderson ck493370 | C117: R12403 | D117: 15 | F117: 204793.54
A118: 2013-07-25 | B118: Jan D Andrew ck499018 | C118: R12403 | D118: 15 | F118: 204808.54
A119: 2013-07-25 | B119: Michael Andrews ck483832 | C119: R12403 | D119: 15 | F119: 204823.54
A120: 2013-07-25 | B120: Michelle R Arlesic ck496676 | C120: R12403 | D120: 30 | F120: 204853.54
A121: 2013-07-25 | B121: William Badell ck497210 | C121: R12403 | D121: 15 | F121: 204868.54
A122: 2013-07-25 | B122: Amanda Barnes ck501219 | C122: R12403 | D122: 30 | F122: 204898.54
A123: 2013-07-25 | B123: Thomas J Beals ck483085 | C123: R12403 | D123: 15 | F123: 204913.54
A124: 2013-07-25 | B124: Kathy Ann Becker ck486623 | C124: R12403 | D124: 45 | F124: 204958.54
A125: 2013-07-25 | B125: Sania E Blumberg ck481977 | C125: R12403 | D125: 15 | F125: 204973.54
A126: 2013-07-25 | B126: Justin R Bovee ck503008 | C126: R12403 | D126: 30 | F126: 205003.54
A127: 2013-07-25 | B127: Edward J Brown ck489382 | C127: R12403 | D127: 15 | F127: 205018.54
A128: 2013-07-25 | B128: Linda L Callahan ck499030 | C128: R12403 | D128: 15 | F128: 205033.54
A129: 2013-07-25 | B129: Cynthia A Daywalt ck491619 | C129: R12403 | D129: 15 | F129: 205048.54
A130: 2013-07-25 | B130: Christian Deluca ck485467 | C130: R12403 | D130: 15 | F130: 205063.54
A131: 2013-07-25 | B131: Denise R DiDonato ck499046 | C131: R12403 | D131: 15 | F131: 205078.54
A132: 2013-07-25 | B132: Elizabeth A Dreyer ck499203 | C132: R12403 | D132: 15 | F132: 205093.54
A133: 2013-07-25 | B133: Kimberly K Fleming ck481990 | C133: R12403 | D133: 15 | F133: 205108.54
A134: 2013-07-25 | B134: Jon Glotzbecker ck493388 | C134: R12403 | D134: 30 | F134: 205138.54
A135: 2013-07-25 | B135: Ashley M Hawke ck485477 | C135: R12403 | D135: 30 | F135: 205168.54
A136: 2013-07-25 | B136: Tammy Hawn ck481996 | C136: R12403 | D136: 15 | F136: 205183.54
A137: 2013-07-25 | B137: Daniel I Headley ck491632 | C137: R12403 | D137: 45 | F137: 205228.54
A138: 2013-07-25 | B138: Terry L Heath ck499218 | C138: R12403 | D138: 15 | F138: 205243.54
A139: 2013-07-25 | B139: Kimberly L Hein ck499219 | C139: R12403 | D139: 15 | F139: 205258.54
A140: 2013-07-25 | B140: Patricia A Heinz ck499220 | C140: R12403 | D140: 15 | F140: 205273.54
A141: 2013-07-25 | B141: Brian W Horgan ck481997 | C141: R12403 | D141: 15 | F141: 205288.54
A142: 2013-07-25 | B142: Aaron M Huffman ck491633 | C142: R12403 | D142: 15 | F142: 205303.54
A143: 2013-07-25 | B143: Barbara Karbacka ck490506 | C143: R12403 | D143: 15 | F143: 205318.54
A144: 2013-07-25 | B144: Maretta C Kibler ck482006 | C144: R12403 | D144: 15 | F144: 205333.54
A145: 2013-07-25 | B145: Michael Kingzett ck496709 | C145: R12403 | D145: 15 | F145: 205348.54
A146: 2013-07-25 | B146: Angela Knapp ck497237 | C146: R12403 | D146: 15 | F146: 205363.54
A147: 2013-07-25 | B147: Stephanie H Lasher ck490510 | C147: R12403 | D147: 15 | F147: 205378.54
A148: 2013-07-25 | B148: Barbara J Lopez ck489420 | C148: R12403 | D148: 15 | F148: 205393.54
A149: 2013-07-25 | B149: Kaylee Mallory ck482013 | C149: R12403 | D149: 15 | F149: 205408.54
A150: 2013-07-25 | B150: Mariah Marshall ck490521 | C150: R12403 | D150: 15 | F150: 205423.54
A151: 2013-07-25 | B151: Brandi E Mathers ck482019 | C151: R12403 | D151: 15 | F151: 205438.54
A152: 2013-07-25 | B152: Kathleen McCreight ck490528 | C152: R12403 | D152: 15 | F152: 205453.54
A153: 2013-07-25 | B153: Tara B McCrone ck490529 | C153: R12403 | D153: 30 | F153: 205483.54
A154: 2013-07-25 | B154: Matthew Minarik ck483128 | C154: R12403 | D154: 15 | F154: 205498.54
A155: 2013-07-25 | B155: Jenny Nash ck493401 | C155: R12403 | D155: 30 | F155: =F154+D155-E155 -> 205528.54
A156: 2013-07-25 | B156: James Newsome ck499082 | C156: R12403 | D156: 15 | F156: 205543.54
A157: 2013-07-25 | B157: Jodi R Nicholas ck499252 | C157: R12403 | D157: 15 | F157: 205558.54
A158: 2013-07-25 | B158: Rebecca J Ollikainen ck489430 | C158: R12403 | D158: 30 | F158: 205588.54
A159: 2013-07-25 | B159: John M Palmer ck489433 | C159: R12403 | D159: 15 | F159: 205603.54
A160: 2013-07-25 | B160: Peter David Palmisano ck490544 | C160: R12403 | D160: 15 | F160: 205618.54
A161: 2013-07-25 | B161: Craig S Pavolko ck499090 | C161: R12403 | D161: 15 | F161: 205633.54
A162: 2013-07-25 | B162: Kenneth L Piper ck501298 | C162: R12403 | D162: 15 | F162: 205648.54
A163: 2013-07-25 | B163: Heidi L Robinson ck499102 | C163: R12403 | D163: 15 | F163: 205663.54
A164: 2013-07-25 | B164: Alfonzo J Rocco ck482030 | C164: R12403 | D164: 15 | F164: 205678.54
A165: 2013-07-25 | B165: Christina M Rodriequez ck490555 | C165: R12403 | D165: 45 | F165: 205723.54
A166: 2013-07-25 | B166: Benjamin Rodriquez ck485496 | C166: R12403 | D166: 15 | F166: 205738.54
A167: 2013-07-25 | B167: Maureen P Rogers ck499258 | C167: R12403 | D167: 15 | F167: 205753.54
A168: 2013-07-25 | B168: Debra L Scott ck495670 | C168: R12403 | D168: 15 | F168: 205768.54
A169: 2013-07-25 | B169: Jeanette Simmons ck482036 | C169: R12403 | D169: 15 | F169: 205783.54
A170: 2013-07-25 | B170: Jeanette Simmons ck483903 | C170: R12403 | D170: 60 | F170: 205843.54
A171: 2013-07-25 | B171: David G Simon ck483154 | C171: R12403 | D171: 30 | F171: 205873.54
A172: 2013-07-25 | B172: Douglas T Stranman ck486679 | C172: R12403 | D172: 15 | F172: 205888.54
A173: 2013-07-25 | B173: Doris J Tobias ck482041 | C173: R12403 | D173: 15 | F173: 205903.54
A174: 2013-07-25 | B174: Amy E Trice ck499119 | C174: R12403 | D174: 15 | F174: 205918.54
A175: 2013-07-25 | B175: Jeremy Ryan Waller ck485508 | C175: R12403 | D175: 30 | F175: 205948.54
A176: 2013-07-25 | B176: Johnathon W Watson ck486686 | C176: R12403 | D176: 15 | F176: 205963.54
A177: 2013-07-25 | B177: Cuyahoga County Sheriff ck502429 | C177: R12404 | D177: 11.99 | F177: 205975.53
A178: 2013-07-25 | B178: Andy Hershberger ck499221 | C178: R12404 | D178: 9 | F178: 205984.53
A179: 2013-07-25 | B179: Garland McGirr ck499246 | C179: R12404 | D179: 10.5 | F179: 205995.03
A180: 2013-07-25 | B180: Juanita A Title-Thorpe ck601662 | C180: R12404 | D180: 80.5 | F180: 206075.53
A181: 2013-08-02 | B181: Elsie Peterson ck500237 | C181: R12406 | D181: 123.8 | E181: 123.8 | F181: 206075.53 | H181: pd by ck 516220 8/20/13
A182: 2013-08-02 | B182: Louise Bucci ck502000 | C182: R12406 | D182: 10 | F182: =F181+D182-E182 -> 206085.53
A183: 2013-08-02 | B183: Harold Leroy Firster ck502027 | C183: R12406 | D183: 10 | E183: 10 | F183: 206085.53 | H183: pd by ck 517151 9/10/13
A184: 2013-08-02 | B184: Anthony D Germinaro ck484967 | C184: R12406 | D184: 10 | F184: 206095.53
A185: 2013-08-02 | B185: Judith A Matthy-Mathay ck485055 | C185: R12406 | D185: 10 | E185: 10 | F185: 206095.53 | H185: pd by ck 515684 8/13/13
A186: 2013-08-02 | B186: Jenny Nash ck4495241 | C186: R12406 | D186: 107.8 | F186: 206203.33
A187: 2013-08-02 | B187: Jenny Nash ck500224 | C187: R12406 | D187: 107.8 | F187: 206311.13
A188: 2013-08-02 | B188: Jenny Nash ck500224 | C188: R12406 | D188: 10 | F188: 206321.13
A189: 2013-08-02 | B189: Roberta Parsons ck500233 | C189: R12406 | D189: 10 | F189: 206331.13
A190: 2013-08-02 | B190: Courtney Snyder ck500322 | C190: R12406 | D190: 10 | F190: 206341.13
A191: 2013-08-02 | B191: Patricia Stevens ck500000 | C191: R12406 | D191: 117.8 | E191: 117.8 | F191: 206341.13 | H191: pd by ck 516223 8/20/13
A192: 2013-08-02 | B192: Miriam Thayer ck502138 | C192: R12406 | D192: 10 | F192: 206351.13
A193: 2013-08-02 | B193: Michelle Hall ck498818 | C193: R12407 | D193: 31.74 | F193: 206382.87
A194: 2013-08-02 | B194: Nick Paolucci ck495873 | C194: R12408 | D194: 465 | E194: 465 | F194: 206382.87 | H194: pd by ck 516219 8/20/13
A195: 2013-08-02 | B195: Amy Saxton ck490651 | C195: R12409 | D195: 21.45 | F195: 206404.32
A196: 2013-08-02 | B196: Alltel ck481367 | C196: R12410 | D196: 681.15 | F196: 207085.47
A197: 2013-08-02 | B197: Edge-O-Town Motel ck491282 | C197: R12411 | D197: 504 | F197: 207589.47
A198: 2013-08-02 | B198: Heather M Bissett ck502786 | C198: R12412 | D198: 51.66 | F198: 207641.13
A199: 2013-08-02 | B199: Bridget Hoff ck502830 | C199: R12412 | D199: 82.85 | F199: 207723.98
A200: 2013-08-02 | B200: Jessica Delfft ck481224 | C200: R12412 | D200: 30 | F200: 207753.98
... 38 more rows

Sheet 2012
B1: 2012 UNCLAIMED MONEY | C1: TYPE | D1: CHECK OR PAYIN# | E1: REVENUE | F1: EXPENSE | G1: BALANCE | I1: Case Number / Description
A2: DATE | B2: 2011 bal | G2: 318648.65
A3: 2012-05-24 | B3: TR TO TREAS DRETAC | C3: T11913 | F3: 58157.8 | G3: =G2+E3-F3 -> 260490.85 | I3: 2005,06,08 SHERIFF SALES UNCLAIMED
A4: 2012-05-24 | B4: TR TO PROS DRETAC | C4: T11913 | F4: 58157.79 | G4: =G3+E4-F4 -> 202333.06 | I4: 2005,06,08 SHERIFF SALES UNCLAIMED
A5: 2012-02-07 | B5: Comfort In Ashtabla | C5: ck | D5: 481887 | F5: 94.4 | G5: 202238.66
A6: 2012-02-23 | B6: Treasurers Office - Drawer Overage | C6: , p | D6: 83040 | E6: 10 | G6: 202248.66
A7: 2012-03-28 | B7: Douglas E Keller | C7: P | D7: 12-1488 | E7: 50 | G7: 202298.66 | I7: WCC - 2009TRD00183W
A8: 2012-03-28 | B8: Dale W Light | C8: P | D8: 12-1488 | E8: 90 | G8: 202388.66 | I8: WCC - 2009TRD00896W
A9: 2012-04-18 | B9: Rilchard L Sanders Jr | C9: P | D9: 12-1834 | E9: 20 | G9: 202408.66 | I9: WCC - 1994 CRA00187W
A10: 2012-04-18 | B10: Nicole M. Gugliotta | C10: P | D10: 12-1834 | E10: 149 | G10: 202557.66 | I10: WCC - 2006CI0001
A11: 2012-04-18 | B11: Amanda L Bailey | C11: P | D11: 12-1834 | E11: 5 | G11: 202562.66 | I11: WCC - 2009CRB00666W
A12: 2012-04-18 | B12: Noah D Love | C12: P | D12: 12-1834 | E12: 15 | G12: 202577.66 | I12: WCC - 2010CRB00597W
A13: 2012-04-18 | B13: Anthony B Duellman | C13: P | D13: 12-1834 | E13: 5 | G13: 202582.66 | I13: WCC - 2010TRD00781W
A14: 2012-04-18 | B14: Barbara D Marley | C14: P | D14: 12-1834 | E14: 5 | G14: 202587.66 | I14: WCC - 2010TRD02024W
A15: 2012-04-18 | B15: Daryl Rose | C15: P | D15: 12-1834 | E15: 5 | G15: 202592.66 | I15: WCC - 2011 TRD00139W
A16: 2012-05-30 | B16: Timothy Howson | C16: ck | D16: 489597 | F16: 15 | G16: 202577.66
A17: 2012-05-30 | B17: George Sabo | C17: ck | D17: 489603 | F17: 14.38 | G17: 202563.28
A18: 2012-07-30 | B18: Undiv Gen 2nd Half | C18: R | D18: 11994 | F18: 199.35 | G18: 202363.93
A19: 2012-06-22 | B19: Dale B Gibson | C19: P | D19: 12-002801 | E19: 25 | G19: 202388.93 | I19: WCC - 2000CRB00630W
A20: 2012-06-22 | B20: Nicholaus Evert | C20: P | D20: 12-002801 | E20: 20 | G20: 202408.93 | I20: WCC - 2009TRD02188W
A21: 2012-06-22 | B21: James G Martin | C21: P | D21: 12-002801 | E21: 5.04 | G21: 202413.97 | I21: WCC - 2009TRD02679W
A22: 2012-06-22 | B22: Gary M Kaplan | C22: P | D22: 12-002801 | E22: 5 | G22: 202418.97 | I22: WCC - 2010CRB00072W
A23: 2012-06-22 | B23: Angela Rice | C23: P | D23: 12-002801 | E23: 5 | G23: 202423.97 | I23: WCC - 2010CRB00074W
A24: 2012-06-22 | B24: Kelleen R Alexander | C24: P | D24: 12-002801 | E24: 21 | G24: 202444.97 | I24: WCC - 2010TRD00806W
A25: 2012-06-22 | B25: Scott A Row | C25: P | D25: 12-002801 | E25: 5 | G25: 202449.97 | I25: WCC - 2010TRD00850W
A26: 2012-09-11 | B26: Linder, Rolf M | C26: P | D26: 12-003990 | E26: 145 | G26: 202594.97 | I26: WCC - 2011 CRA 00672W
A27: 2012-10-05 | B27: Kelly Vannorman | C27: P | D27: 12-002951 | E27: 1 | G27: 202595.97 | I27: ECC - 08TRD472
A28: 2012-10-05 | B28: Kenneth R Lucas | C28: P | D28: 12-002951 | E28: 10 | G28: 202605.97 | I28: ECC- 08TRD970
A29: 2012-10-05 | B29: Donald Czerwinski Jr | C29: P | D29: 12-002951 | E29: 5 | G29: 202610.97 | I29: ECC - 08TRD852
A30: 2012-10-05 | B30: Stacey Shay | C30: P | D30: 12-002951 | E30: 3 | G30: 202613.97 | I30: ECC-08TRD204
A31: 2012-10-05 | B31: John C Janson | C31: P | D31: 12-002951 | E31: 10 | G31: 202623.97 | I31: ECC - 08TRD1307
A32: 2012-10-05 | B32: Kurtis Furorkawa | C32: P | D32: 12-002951 | E32: 5 | G32: 202628.97 | I32: ECC - 08TRD1569
A33: 2012-10-05 | B33: Keith Morris | C33: P | D33: 12-002951 | E33: 5 | G33: 202633.97 | I33: ECC - 08TRD2312
A34: 2012-10-05 | B34: William L Lydon | C34: P | D34: 12-002951 | E34: 10.8 | G34: 202644.77 | I34: ECC - 90TRD793
A35: 2012-10-05 | B35: Amanda Fairley | C35: P | D35: 12-002951 | E35: 10 | G35: 202654.77 | I35: ECC - 08TRD2433
A36: 2012-10-05 | B36: Erik D Rypinski | C36: P | D36: 12-002951 | E36: 10 | G36: 202664.77 | I36: ECC - 08TRD2879
A37: 2012-10-05 | B37: Robert Bowden | C37: P | D37: 12-002951 | E37: 7 | G37: 202671.77 | I37: ECC - 08TRD2870
A38: 2012-10-05 | B38: Roger B MacDonald | C38: P | D38: 12-002951 | E38: 10 | G38: 202681.77 | I38: ECC - 08TRD3340
A39: 2012-10-05 | B39: Arleta A Grenon | C39: P | D39: 12-002951 | E39: 10.55 | G39: 202692.32 | I39: ECC - 06CVI522
A40: 2012-10-05 | B40: Shawn R Kreider | C40: P | D40: 12-002951 | E40: 15 | G40: 202707.32 | I40: ECC - 08TRD3498
A41: 2012-10-05 | B41: Morgan & Pottinger | C41: P | D41: 12-002951 | E41: 3 | G41: 202710.32 | I41: ECC - 08CVF57
A42: 2012-10-05 | B42: Eric Warren Metz | C42: P | D42: 12-002951 | E42: 5 | G42: 202715.32 | I42: ECC - 09TRD906
A43: 2012-10-05 | B43: Aisha J Johnson | C43: P | D43: 12-002951 | E43: 5 | G43: 202720.32 | I43: ECC - 09TRD818
A44: 2012-10-05 | B44: Meilissa D Deangelis | C44: P | D44: 12-002951 | E44: 10 | G44: 202730.32 | I44: ECC - 09TRD1033
A45: 2012-10-05 | B45: Samantha A Morris | C45: P | D45: 12-002951 | E45: 5 | G45: 202735.32 | I45: ECC - 08TRD2903
A46: 2012-10-05 | B46: Jerod A Brenwald | C46: P | D46: 12-002951 | E46: 10 | G46: 202745.32 | I46: ECC - 08cCRB701
A47: 2012-10-05 | B47: Francis Varckette | C47: P | D47: 12-002951 | E47: 6 | G47: 202751.32 | I47: ECC - 09CVG458
A48: 2012-10-05 | B48: Jackie Sizemore | C48: P | D48: 12-002951 | E48: 6.05 | G48: 202757.37 | I48: ECC - 09CVI354
A49: 2012-10-05 | B49: Roger Mook | C49: P | D49: 12-002951 | E49: 5 | G49: 202762.37 | I49: ECC - 09TRC1254
A50: 2012-10-05 | B50: Ronald P Ruchtie | C50: P | D50: 12-002951 | E50: 2 | G50: 202764.37 | I50: ECC -10TRD1470
A51: 2012-10-05 | B51: Raymond Burns | C51: P | D51: 12-002951 | E51: 5 | G51: 202769.37 | I51: ECC - 10TRD1541
A52: 2012-10-05 | B52: Juanita Klemencic | C52: P | D52: 12-002951 | E52: 5 | G52: 202774.37 | I52: ECC - 10TRD1598
A53: 2012-10-05 | B53: Jessie R Tillinghast | C53: P | D53: 12-002951 | E53: 3 | G53: 202777.37 | I53: ECC - 10-TRD1858
A54: 2012-10-05 | B54: Verna L McMahon | C54: P | D54: 12-002951 | E54: 33.75 | G54: 202811.12 | I54: ECC - 05CVF5
A55: 2012-10-05 | B55: Tom Nguyen | C55: P | D55: 12-002951 | E55: 10 | G55: 202821.12 | I55: ECC - 10TRD1951
A56: 2012-10-05 | B56: Katrina Cozy | C56: P | D56: 12-002951 | E56: 6 | G56: 202827.12 | I56: ECC - 02CRA613
A57: 2012-10-05 | B57: Braden J Graves | C57: P | D57: 12-002951 | E57: 3.5 | G57: 202830.62 | I57: ECC - 05TRD819
A58: 2012-10-05 | B58: Marcia A Dulemba | C58: P | D58: 12-002951 | E58: 7.8 | G58: 202838.42 | I58: ECC - 05TRD2018
A59: 2012-10-05 | B59: Jason E Thomas | C59: P | D59: 12-002951 | E59: 5 | G59: 202843.42 | I59: ECC - 06TRD420
A60: 2012-10-05 | B60: Marvin Henry | C60: P | D60: 12-002951 | E60: 2 | G60: 202845.42 | I60: ECC - 06TRD720
A61: 2012-10-05 | B61: Christopher J Mason | C61: P | D61: 12-002951 | E61: 5 | G61: 202850.42 | I61: ECC - 06TRD382
A62: 2012-10-05 | B62: Kalyn B Green | C62: P | D62: 12-002951 | E62: 70 | G62: 202920.42 | I62: ECC - 06TRD2559
A63: 2012-10-05 | B63: Daniel J Evans | C63: P | D63: 12-002951 | E63: 10 | G63: 202930.42 | I63: ECC - 06TRD2157
A64: 2012-10-05 | B64: Michael Meese | C64: P | D64: 12-002951 | E64: 10 | G64: 202940.42 | I64: ECC - 06TRC741
A65: 2012-10-05 | B65: Nicole Neal | C65: P | D65: 12-002951 | E65: 10 | G65: 202950.42 | I65: ECC - 04CRB469
A66: 2012-10-05 | B66: Saad J Elamin | C66: P | D66: 12-002951 | E66: 3 | G66: 202953.42 | I66: ECC - 06TRD2624
A67: 2012-10-05 | B67: Lawrence D Garel | C67: P | D67: 12-002951 | E67: 5 | G67: 202958.42 | I67: ECC - 06TRD3730
A68: 2012-10-05 | B68: Christoper S Smith | C68: P | D68: 12-002951 | E68: 10 | G68: =G67+E68-F68 -> 202968.42 | I68: ECC - 07TRD22
A69: 2012-10-05 | B69: Dell J Olley | C69: P | D69: 12-002951 | E69: 10 | G69: 202978.42 | I69: ECC - 06TRD4405
A70: 2012-10-05 | B70: Edgar R Alvarez | C70: P | D70: 12-002951 | E70: 9 | G70: 202987.42 | I70: ECC - 06TRD4446
A71: 2012-10-05 | B71: Bruce Birlinghame | C71: P | D71: 12-002951 | E71: 3 | G71: 202990.42 | I71: ECC - 07TRD34
A72: 2012-10-05 | B72: Michael Sanford | C72: P | D72: 12-002951 | E72: 5 | G72: 202995.42 | I72: ECC - 06TRD3110
A73: 2012-10-05 | B73: Matthew Prichard | C73: P | D73: 12-002951 | E73: 10 | G73: 203005.42 | I73: ECC - 07TRD787
A74: 2012-10-05 | B74: Crystal Stockton | C74: P | D74: 12-002951 | E74: 4 | G74: 203009.42 | I74: ECC - 07TRD1157
A75: 2012-10-05 | B75: Andre Dominick | C75: P | D75: 12-002951 | E75: 5 | G75: 203014.42 | I75: ECC - 07TRD1791
A76: 2012-10-05 | B76: Kimberly Klemenok | C76: P | D76: 12-002951 | E76: 177.63 | G76: 203192.05 | I76: ECC - 06CVF68
A77: 2012-10-05 | B77: Kimberly Klemenok | C77: P | D77: 12-002951 | E77: 25.29 | G77: 203217.34 | I77: ECC - 04CVF570
A78: 2012-10-05 | B78: Kenneth R Yoder | C78: P | D78: 12-002951 | E78: 5 | G78: 203222.34 | I78: ECC - 07TRD2337
A79: 2012-10-05 | B79: Sunetta D Starks | C79: P | D79: 12-002951 | E79: 5 | G79: 203227.34 | I79: ECC - 07TRD1284
A80: 2012-10-05 | B80: Randy T Slovin | C80: P | D80: 12-002951 | E80: 235.01 | G80: 203462.35 | I80: ECC - 04CVF2
A81: 2012-10-05 | B81: Christopher Burns | C81: P | D81: 12-002951 | E81: 9 | G81: 203471.35 | I81: ECC - 07TRD2775
A82: 2012-10-05 | B82: Weltman Weinberg & Reis | C82: P | D82: 12-002951 | E82: 20 | G82: 203491.35 | I82: ECC - 05CVF26
A83: 2012-10-05 | B83: Orlando L Nelson | C83: P | D83: 12-002951 | E83: 5 | G83: 203496.35 | I83: ECC - 06CRB665
A84: 2012-10-05 | B84: Daniel Yates | C84: P | D84: 12-002951 | E84: 20 | G84: 203516.35 | I84: ECC - 06CRB781
A85: 2012-11-14 | B85: Nicholas Claypool | C85: CK | D85: 500375 | F85: 405.06 | G85: 203111.29
A86: 2012-11-28 | B86: Deryl Nazor | C86: CK | D86: 501010 | F86: 199.2 | G86: 202912.09
A87: 2012-11-28 | B87: ICX Corp to Ash Co Treas | C87: CK | D87: 501006 | F87: 156.1 | G87: 202755.99
A88: 2012-12-19 | B88: Denise Marie Crockett Estate | C88: P | D88: 12-005371 | E88: 26.02 | G88: 202782.01 | I88: Clk Crt - 2002CF746
A89: 2012-12-19 | B89: Ken Green | C89: P | D89: 12-005371 | E89: 175 | G89: 202957.01 | I89: Clk Crt - 2006CV1382
A90: 2012-12-19 | B90: Robert J Willis | C90: P | D90: 12-005371 | E90: 130 | G90: 203087.01 | I90: Clk Crt - 2005CV110
A91: 2012-12-19 | B91: Young Sucher & Guidurbaldi | C91: P | D91: 12-005371 | E91: 195 | G91: 203282.01 | I91: Clk Crt - 2008CV1274
A92: 2012-12-19 | B92: Robert A Bellas | C92: P | D92: 12-005371 | E92: 175 | G92: 203457.01 | I92: Clk Crt - 2006CV154
A93: 2012-12-19 | B93: Jacob Alan Schwenk | C93: P | D93: 12-005371 | E93: 11.56 | G93: 203468.57 | I93: Clk Crt - 2009DR374
A94: 2012-12-19 | B94: Wolpoff & Abramson LLP | C94: P | D94: 12-005371 | E94: 149.28 | G94: 203617.85 | I94: Clk Crt - 2008CV594
A95: 2012-12-19 | B95: Staci D Lowell | C95: P | D95: 12-005371 | E95: 2.68 | G95: 203620.53 | I95: Clk Crt - 2006DR20
A96: 2012-12-19 | B96: Gary M Goldfarb | C96: P | D96: 12-005371 | E96: 3.64 | G96: 203624.17 | I96: Clk Crt - 2009CV705
A97: 2012-12-19 | B97: Lawrence D Ensman | C97: P | D97: 12-005371 | E97: 30 | G97: 203654.17 | I97: Clk Crt - 1994JD972
A98: 2012-12-19 | B98: Manbir S Sandhu | C98: P | D98: 12-005371 | E98: 684 | G98: 204338.17 | I98: Clk Crt - 2008CF1163 & 1632
A99: 2012-12-19 | B99: Wolpoff & Abramson LLP | C99: P | D99: 12-005371 | E99: 195 | G99: 204533.17 | I99: Clk Crt - 2008CV594
A100: 2012-12-19 | B100: Cleveland Trencher Company | C100: P | D100: 12-005371 | E100: 130.83 | G100: 204664 | I100: Clk Crt - 2003CV802
A101: 2012-12-19 | B101: Mann Bracken LLP | C101: P | D101: 12-005371 | E101: 227.66 | G101: 204891.66 | I101: Clk Crt - 2008CV595 & 1086
A102: 2012-12-19 | B102: Michael Arcaro | C102: P | D102: 12-005371 | E102: 1325 | G102: 206216.66 | I102: Clk Crt - Sept 2010 Month End Ckl
A103: 2012-12-19 | B103: Angelic Dalrymple | C103: P | D103: 12-005371 | E103: 5.27 | G103: 206221.93 | I103: Clk Crt - 2004DR537
A104: 2012-12-19 | B104: Seth Adam Clark | C104: P | D104: 12-005371 | E104: 1 | G104: 206222.93 | I104: Clk Crt - 2010OPP336
A105: 2012-12-19 | B105: First American Contractor | C105: P | D105: 12-005371 | E105: 69.18 | G105: 206292.11 | I105: Clk Crt - 2010CA14
A106: 2012-12-19 | B106: Jason L Jackson | C106: P | D106: 12-005371 | E106: 203.18 | G106: 206495.29 | I106: Clk Crt - 2006CV1182
A107: 2012-12-19 | B107: James Brown | C107: P | D107: 12-005371 | E107: 69.12 | G107: 206564.41 | I107: Clk Crt - 2008CV9
A108: 2012-12-19 | B108: Mazanec Raskin Ryder & Keller Co | C108: P | D108: 12-005371 | E108: 271.13 | G108: 206835.54 | I108: Clk Crt - 2010CV714 & 2010CA32
A109: 2012-12-19 | B109: Michael D Joseph | C109: P | D109: 12-005371 | E109: 179 | G109: 207014.54 | I109: Clk Crt - 2007 CV176
G110: 207014.54
E112: =SUM(E3:E110) -> 5764.97 | F112: =SUM(F5:F110) -> 1083.49 | G112: =E112-F112 -> 4681.48
A113: 2012-05-24 | B113: TR TO DRETAC | F113: =F3+F4 -> 116315.59 | G113: =G112-F113 -> -111634.11

Sheet 2011
B1: 2011 UNCLAIMED MONEY | C1: TYPE | D1: CHECK OR PAYIN# | E1: REVENUE | F1: EXPENSE | G1: BALANCE | I1: Case Number / Description
A2: DATE | B2: 2010 bal | G2: 285324.62
A3: 2011-02-15 | B3: Belva Ankey | C3: P | D3: 78422 | E3: 5 | G3: =(G2-F3+E3) -> 285329.62 | I3: 2009CRB00971W
A4: 2011-03-15 | B4: S Narducci | C4: P | D4: 78760 | E4: 225 | G4: 285554.62 | I4: 2004TRD471
A5: 2011-03-15 | B5: S Narducci | C5: P | D5: 78760 | E5: 270 | G5: 285824.62 | I5: 2004CRB223
A6: 2011-03-15 | B6: K Overmyer | C6: P | D6: 78760 | E6: 360 | G6: 286184.62 | I6: 2006CRB157
A7: 2011-03-22 | B7: Treasurer Office | C7: P | D7: 78882 | E7: 3.2 | G7: 286187.82 | I7: drawer excess
A8: 2011-03-23 | B8: Pamela Bevington | C8: P | D8: 78889 | E8: 3 | G8: 286190.82 | I8: 2010TRD1176
A9: 2011-03-30 | B9: Auditor | C9: R | D9: 11294 | E9: 807.86 | G9: 286998.68 | I9: prior settlement unidentified
A10: 2011-05-17 | B10: Jerome Holub | C10: P | D10: 79545 | E10: 64 | G10: 287062.68 | I10: 2006cCVH442
A11: 2011-05-19 | B11: Treasurer Office | C11: P | D11: 79603 | E11: 0.05 | G11: 287062.73 | I11: drawer excess
A12: 2011-06-14 | B12: Corey M Harris | C12: P | D12: 79908 | E12: 170 | G12: 287232.73 | I12: 2009CRA00416W
A13: 2011-06-14 | B13: Jeanette L Jones | C13: P | D13: 79908 | E13: 10 | G13: 287242.73 | I13: 2010TRD01536W
A14: 2011-06-28 | B14: Michele Lee Valtman | C14: P | D14: 80069 | E14: 26.02 | G14: 287268.75 | I14: 2004DR164
A15: 2011-06-28 | B15: Koffel & Jump | C15: P | D15: 80069 | E15: 19.16 | G15: 287287.91 | I15: 2008CA67
A16: 2011-06-28 | B16: Jane Hawn Jackson | C16: P | D16: 80069 | E16: 1.74 | G16: 287289.65 | I16: 2008DR357
A17: 2011-07-12 | B17: Auditor | C17: R | D17: 11418 | F17: 231.12 | G17: 287058.53 | I17: correction R11294
A18: 2011-08-03 | B18: OCITA OH CO ck 416613 | C18: R | D18: 11459 | E18: 50 | G18: 287108.53
A19: 2011-08-03 | B19: Kathleen M Holmes ck 452676 | C19: R | D19: 11460 | E19: 107.5 | G19: 287216.03
A20: 2011-08-03 | B20: David Osborne ck 453675 | C20: R | D20: 11460 | E20: 5.6 | G20: 287221.63
A21: 2011-08-03 | B21: Rodger B Fuller ck 382758 | C21: R | D21: 11460 | E21: 35 | G21: 287256.63
A22: 2011-08-03 | B22: Eleanor P Abbott ck 381554 | C22: R | D22: 11460 | E22: 95 | G22: 287351.63
A23: 2011-08-03 | B23: June Haase ck 412794 | C23: R | D23: 11460 | E23: 100 | G23: 287451.63
A24: 2011-08-03 | B24: Frances Cervas ck 439907 | C24: R | D24: 11460 | E24: 10 | G24: 287461.63
A25: 2011-08-03 | B25: Kellie R Butler ck 439934 | C25: R | D25: 11460 | E25: 10 | G25: 287471.63
A26: 2011-08-03 | B26: Linda Pryately ck 440145 | C26: R | D26: 11460 | E26: 101.5 | G26: 287573.13
A27: 2011-08-05 | B27: Thornes BiLo Foods ck 389632 | C27: R | D27: 11461 | E27: 37.31 | G27: 287610.44
A28: 2011-08-05 | B28: Ronald M Rus ck 377276 | C28: R | D28: 11461 | E28: 30 | G28: 287640.44
A29: 2011-08-05 | B29: Ben Arthur ck 378720 | C29: R | D29: 11461 | E29: 15 | G29: 287655.44
A30: 2011-08-05 | B30: Colleen M Carraher ck 380511 | C30: R | D30: 11461 | E30: 15 | G30: 287670.44
A31: 2011-08-05 | B31: James B Dalrymple III ck 380512 | C31: R | D31: 11461 | E31: 15 | G31: 287685.44
A32: 2011-08-05 | B32: Thomas F Parks ck 381217 | C32: R | D32: 11461 | E32: 15 | G32: 287700.44
A33: 2011-08-05 | B33: Dustin Mascik ck 382632 | C33: R | D33: 11461 | E33: 15 | G33: 287715.44
A34: 2011-08-05 | B34: Douglas T Stranman ck 385782 | C34: R | D34: 11461 | E34: 15 | G34: 287730.44
A35: 2011-08-05 | B35: Deborah L Konegni ck 386961 | C35: R | D35: 11461 | E35: 15 | G35: 287745.44
A36: 2011-08-05 | B36: Robert J Volanski ck 386970 | C36: R | D36: 11461 | E36: 15 | G36: 287760.44
A37: 2011-08-05 | B37: Terry L Graeb Jr ck 387094 | C37: R | D37: 11461 | E37: 45 | G37: 287805.44
A38: 2011-08-05 | B38: Douglas T Stranman ck 387371 | C38: R | D38: 11461 | E38: 15 | G38: 287820.44
A39: 2011-08-05 | B39: Douglas T Stranman ck 388265 | C39: R | D39: 11461 | E39: 15 | G39: 287835.44
A40: 2011-08-05 | B40: Jennifer Flint-Atzemis ck 388279 | C40: R | D40: 11461 | E40: 15 | G40: 287850.44
A41: 2011-08-05 | B41: Melissa L Rezeszutek ck 388293 | C41: R | D41: 11461 | E41: 15 | G41: 287865.44
A42: 2011-08-05 | B42: Joel M Gross ck 388306 | C42: R | D42: 11461 | E42: 30 | G42: 287895.44
A43: 2011-08-05 | B43: Eric W Hutchinson ck 389295 | C43: R | D43: 11461 | E43: 15 | G43: 287910.44
A44: 2011-08-05 | B44: Douglas T Stranman ck 389900 | C44: R | D44: 11461 | E44: 15 | G44: 287925.44
A45: 2011-08-05 | B45: Douglas T Stranman ck 390070 | C45: R | D45: 11461 | E45: 15 | G45: 287940.44
A46: 2011-09-06 | B46: Lloyd A Banker Jr ck 390455 | C46: R | D46: 11461 | E46: 15 | G46: 287955.44
A47: 2011-09-06 | B47: Michael C Buck ck 390459 | C47: R | D47: 11461 | E47: 15 | G47: 287970.44
A48: 2011-09-06 | B48: Mike Salaben ck 390467 | C48: R | D48: 11461 | E48: 15 | G48: 287985.44
A49: 2011-09-06 | B49: Douglas T Stranman ck 391166 | C49: R | D49: 11461 | E49: 15 | G49: 288000.44
A50: 2011-09-06 | B50: John Harkins ck 391790 | C50: R | D50: 11461 | E50: 15 | G50: 288015.44
A51: 2011-09-06 | B51: Douglas T Stranman ck 392032 | C51: R | D51: 11461 | E51: 15 | G51: 288030.44
A52: 2011-09-06 | B52: Cindy Bundy ck 392285 | C52: R | D52: 11461 | E52: 15 | G52: 288045.44
A53: 2011-09-06 | B53: Richard J Mongell ck 392292 | C53: R | D53: 11461 | E53: 15 | G53: 288060.44
A54: 2011-09-06 | B54: Douglas T Stranman ck 393801 | C54: R | D54: 11461 | E54: 15 | G54: 288075.44
A55: 2011-09-06 | B55: Douglas T Stranman ck 393813 | C55: R | D55: 11461 | E55: 15 | G55: 288090.44
A56: 2011-09-06 | B56: George B Eastlick Jr ck 395311 | C56: R | D56: 11461 | E56: 15 | G56: 288105.44
A57: 2011-09-06 | B57: Deborah Miller ck395313 | C57: R | D57: 11461 | E57: 15 | G57: 288120.44
A58: 2011-09-06 | B58: Jessie Lockwood ck 395391 | C58: R | D58: 11461 | E58: 30 | G58: 288150.44
A59: 2011-09-06 | B59: Jerry Seames ck 396541 | C59: R | D59: 11461 | E59: 15 | G59: 288165.44
A60: 2011-09-06 | B60: Patty J Canfield ck 397476 | C60: R | D60: 11461 | E60: 15 | G60: 288180.44
A61: 2011-09-06 | B61: Leroy A Imhoff ck 397481 | C61: R | D61: 11461 | E61: 15 | G61: 288195.44
A62: 2011-09-06 | B62: Christopher D Wiler ck 397488 | C62: R | D62: 11461 | E62: 15 | G62: 288210.44
A63: 2011-09-06 | B63: Lisa Renee Hanson ck 398627 | C63: R | D63: 11461 | E63: 15 | G63: 288225.44
A64: 2011-09-06 | B64: Jason A Beardsley ck 400867 | C64: R | D64: 11461 | E64: 15 | G64: 288240.44
A65: 2011-09-06 | B65: Gregory D Fuller ck 400871 | C65: R | D65: 11461 | E65: 15 | G65: 288255.44
A66: 2011-09-06 | B66: Joseph P Davis ck 402069 | C66: R | D66: 11461 | E66: 15 | G66: 288270.44
A67: 2011-09-06 | B67: Daniel I Headley ck 402078 | C67: R | D67: 11461 | E67: 15 | G67: =(G66-F67+E67) -> 288285.44
A68: 2011-09-06 | B68: Sheri Harden ck 403969 | C68: R | D68: 11461 | E68: 15 | G68: 288300.44
A69: 2011-09-06 | B69: James Pierce-Ruhland ck 403972 | C69: R | D69: 11461 | E69: 15 | G69: 288315.44
A70: 2011-09-06 | B70: James Roux ck 403973 | C70: R | D70: 11461 | E70: 15 | G70: 288330.44
A71: 2011-09-06 | B71: Pamela Anne Martin ck 403986 | C71: R | D71: 11461 | E71: 15 | G71: 288345.44
A72: 2011-09-06 | B72: Joshua D Babcock ck 403991 | C72: R | D72: 11461 | E72: 15 | G72: 288360.44
A73: 2011-09-06 | B73: Megan A Spellman ck 405868 | C73: R | D73: 11461 | E73: 15 | G73: 288375.44
A74: 2011-09-06 | B74: Dennis C Dewalt ck 407562 | C74: R | D74: 11461 | E74: 15 | G74: 288390.44
A75: 2011-09-06 | B75: Michael A Gunter ck 407565 | C75: R | D75: 11461 | E75: 15 | G75: 288405.44
A76: 2011-09-06 | B76: Holly Marie Moravick ck 407573 | C76: R | D76: 11461 | E76: 15 | G76: 288420.44
A77: 2011-09-06 | B77: Jenine M English ck 411413 | C77: R | D77: 11461 | E77: 135 | G77: 288555.44
A78: 2011-09-06 | B78: Harry R Carnahan ck 411416 | C78: R | D78: 11461 | E78: 135 | G78: 288690.44
A79: 2011-09-06 | B79: Douglas M. Bowling ck 411472 | C79: R | D79: 11461 | E79: 15 | G79: 288705.44
A80: 2011-09-06 | B80: Christine F Kennedy ck 411484 | C80: R | D80: 11461 | E80: 15 | G80: 288720.44
A81: 2011-09-06 | B81: Jacob M Dietrich ck 411748 | C81: R | D81: 11461 | E81: 15 | G81: 288735.44
A82: 2011-09-06 | B82: Carl Nester ck 411756 | C82: R | D82: 11461 | E82: 15 | G82: 288750.44
A83: 2011-09-06 | B83: Leslie D Hill ck 419300 | C83: R | D83: 11461 | E83: 15 | G83: 288765.44
A84: 2011-09-06 | B84: Peggy J Molek ck 421227 | C84: R | D84: 11461 | E84: 15 | G84: 288780.44
A85: 2011-09-06 | B85: Kimberly F Britton ck423274 | C85: R | D85: 11461 | E85: 15 | G85: 288795.44
A86: 2011-09-06 | B86: Kevin M Bell ck 423310 | C86: R | D86: 11461 | E86: 15 | G86: 288810.44
A87: 2011-09-06 | B87: Valarie Stone ck 423369 | C87: R | D87: 11461 | E87: 15 | G87: 288825.44
A88: 2011-09-06 | B88: Michael A Schwartz ck 423371 | C88: R | D88: 11461 | E88: 15 | G88: 288840.44
A89: 2011-09-06 | B89: Donna M Pilkington ck 425262 | C89: R | D89: 11461 | E89: 45 | G89: 288885.44
A90: 2011-09-06 | B90: Steven R Lee ck 425269 | C90: R | D90: 11461 | E90: 15 | G90: 288900.44
A91: 2011-09-06 | B91: Richard Moore ck 425271 | C91: R | D91: 11461 | E91: 15 | G91: 288915.44
A92: 2011-09-06 | B92: Peter J Yokosuk ck 425283 | C92: R | D92: 11461 | E92: 15 | G92: 288930.44
A93: 2011-09-06 | B93: Ronald R Balcomb Sr ck 425300 | C93: R | D93: 11461 | E93: 15 | G93: 288945.44
A94: 2011-09-06 | B94: Nancy Parsons ck 425870 | C94: R | D94: 11461 | E94: 15 | G94: 288960.44
A95: 2011-09-06 | B95: Nathan E Foster ck 427390 | C95: R | D95: 11461 | E95: 15 | G95: 288975.44
A96: 2011-09-06 | B96: Aaron Artman ck 427394 | C96: R | D96: 11461 | E96: 15 | G96: 288990.44
A97: 2011-09-06 | B97: Maxwell William Seymour ck 429113 | C97: R | D97: 11461 | E97: 15 | G97: 289005.44
A98: 2011-09-06 | B98: Jeffrey A Helm ck 429139 | C98: R | D98: 11461 | E98: 15 | G98: 289020.44
A99: 2011-09-06 | B99: Donna M. Williams ck 429162 | C99: R | D99: 11461 | E99: 15 | G99: 289035.44
A100: 2011-09-06 | B100: Charles T Emery ll ck 430822 | C100: R | D100: 11461 | E100: 15 | G100: 289050.44
A101: 2011-09-06 | B101: Paul Mikulin ck 430826 | C101: R | D101: 11461 | E101: 15 | G101: 289065.44
A102: 2011-09-06 | B102: Eric Blenman ck 430868 | C102: R | D102: 11461 | E102: 15 | G102: 289080.44
A103: 2011-09-06 | B103: Charles Sarback ck 432127 | C103: R | D103: 11461 | E103: 15 | G103: 289095.44
A104: 2011-09-06 | B104: Phillip John Becar ck 432130 | C104: R | D104: 11461 | E104: 15 | G104: 289110.44
A105: 2011-09-06 | B105: Danielle Jackson ck 434393 | C105: R | D105: 11461 | E105: 15 | G105: 289125.44
A106: 2011-09-06 | B106: Charles P Lawson ck 436266 | C106: R | D106: 11461 | E106: 15 | G106: 289140.44 | I106: pd ck 522808 3/21/14
A107: 2011-09-06 | B107: Linda D Nagle ck 436271 | C107: R | D107: 11461 | E107: 15 | G107: 289155.44
A108: 2011-09-06 | B108: Ralph S Daniels ck 436647 | C108: R | D108: 11461 | E108: 15 | G108: 289170.44
A109: 2011-09-06 | B109: Yvetta Flack ck 436650 | C109: R | D109: 11461 | E109: 15 | G109: 289185.44
A110: 2011-09-06 | B110: Andrew P Kiphart ck 438546 | C110: R | D110: 11461 | E110: 15 | G110: 289200.44
A111: 2011-09-06 | B111: Nicole Kray ck 438547 | C111: R | D111: 11461 | E111: 15 | G111: 289215.44
A112: 2011-09-06 | B112: Robert D Wharram ck 441119 | C112: R | D112: 11461 | E112: 15 | G112: 289230.44
A113: 2011-09-06 | B113: Donalda Rodriquez ck 445058 | C113: R | D113: 11461 | E113: 15 | G113: 289245.44
A114: 2011-09-06 | B114: Maggie M Tackett ck 445060 | C114: R | D114: 11461 | E114: 15 | G114: 289260.44
A115: 2011-09-06 | B115: Audra Williams ck 446196 | C115: R | D115: 11461 | E115: 15 | G115: 289275.44
A116: 2011-09-06 | B116: David M Hyde ck 449060 | C116: R | D116: 11461 | E116: 15 | G116: 289290.44
A117: 2011-09-06 | B117: Sarah Mullen ck 449102 | C117: R | D117: 11461 | E117: 15 | G117: 289305.44
A118: 2011-09-06 | B118: Shannon C Briody ck 450825 | C118: R | D118: 11461 | E118: 15 | G118: 289320.44
A119: 2011-09-06 | B119: Samuel J Nelson ck 450838 | C119: R | D119: 11461 | E119: 15 | G119: 289335.44
A120: 2011-09-06 | B120: Shante Knapp ck 378138 | C120: R | D120: 11461 | E120: 8.7 | G120: 289344.14
A121: 2011-09-06 | B121: Kayla Rivera ck 382672 | C121: R | D121: 11461 | E121: 8.8 | G121: 289352.94
A122: 2011-09-06 | B122: Jessica Smith ck 383995 | C122: R | D122: 11461 | E122: 6.8 | G122: 289359.74
A123: 2011-09-06 | B123: Ruby A Moore ck 390019 | C123: R | D123: 11461 | E123: 7.7 | G123: 289367.44
A124: 2011-09-06 | B124: Merle Luce ck 391448 | C124: R | D124: 11461 | E124: 10.3 | G124: 289377.74
A125: 2011-09-06 | B125: Frank Pasqualetti ck 391489 | C125: R | D125: 11461 | E125: 12.8 | G125: 289390.54
A126: 2011-09-06 | B126: David W Hoke Jr ck 396570 | C126: R | D126: 11461 | E126: 8.1 | G126: 289398.64
A127: 2011-09-06 | B127: Robbie Sankey ck 396572 | C127: R | D127: 11461 | E127: 8.3 | G127: 289406.94
A128: 2011-09-06 | B128: Patricia Clay ck 406969 | C128: R | D128: 11461 | E128: 2.1 | G128: 289409.04
A129: 2011-09-06 | B129: Philip J Varckette ck 411528 | C129: R | D129: 11461 | E129: 8.5 | G129: 289417.54
A130: 2011-09-06 | B130: Todd E Gunter ck 411767 | C130: R | D130: 11461 | E130: 9.2 | G130: 289426.74
A131: 2011-09-06 | B131: Douglas K Loudermilk ck 413659 | C131: R | D131: 11461 | E131: 10.4 | G131: =(G130-F131+E131) -> 289437.14
A132: 2011-09-06 | B132: Deanna Moore ck 416876 | C132: R | D132: 11461 | E132: 8 | G132: 289445.14
A133: 2011-09-06 | B133: Tonya Druktenis ck 419278 | C133: R | D133: 11461 | E133: 7.9 | G133: 289453.04
A134: 2011-09-06 | B134: Tonya R Novak ck 421246 | C134: R | D134: 11461 | E134: 7.8 | G134: 289460.84
A135: 2011-09-06 | B135: Katrena Dibble ck 425344 | C135: R | D135: 11461 | E135: 7.6 | G135: 289468.44
A136: 2011-09-06 | B136: Lawrence S Hayes ck 425345 | C136: R | D136: 11461 | E136: 9.4 | G136: 289477.84
A137: 2011-09-06 | B137: Rebekah Lazo ck 425347 | C137: R | D137: 11461 | E137: 7.1 | G137: 289484.94
A138: 2011-09-06 | B138: Shannon L Pratschler ck 427354 | C138: R | D138: 11461 | E138: 7.7 | G138: 289492.64
A139: 2011-09-06 | B139: Karyn Smith ck 427356 | C139: R | D139: 11461 | E139: 10.6 | G139: 289503.24
A140: 2011-09-06 | B140: Donna Coleman ck 429164 | C140: R | D140: 11461 | E140: 8.6 | G140: 289511.84
A141: 2011-09-06 | B141: Connie J Braat ck 433082 | C141: R | D141: 11461 | E141: 6.1 | G141: 289517.94
A142: 2011-09-06 | B142: Kenny L Brown ck 433083 | C142: R | D142: 11461 | E142: 8.4 | G142: 289526.34
A143: 2011-09-06 | B143: Michael Green ck 433084 | C143: R | D143: 11461 | E143: 8 | G143: 289534.34
A144: 2011-09-06 | B144: Amanda L Ericksen ck 435125 | C144: R | D144: 11461 | E144: 10 | G144: 289544.34
A145: 2011-09-06 | B145: Shelly Davis ck 441169 | C145: R | D145: 11461 | E145: 6 | G145: 289550.34
A146: 2011-09-06 | B146: Nathan Rodriquez ck 441171 | C146: R | D146: 11461 | E146: 8.2 | G146: 289558.54
A147: 2011-09-06 | B147: Robyn R Nelson ck 443304 | C147: R | D147: 11461 | E147: 9.9 | G147: 289568.44
A148: 2011-09-06 | B148: Amanda Davis ck 445073 | C148: R | D148: 11461 | E148: 8 | G148: 289576.44
A149: 2011-09-06 | B149: Hector Picaso ck 453393 | C149: R | D149: 11461 | E149: 8.2 | G149: 289584.64
A150: 2011-09-06 | B150: Chauntelle Hunt ck 453910 | C150: R | D150: 11461 | E150: 8.3 | G150: 289592.94
A151: 2011-09-06 | B151: Corey D Culbertson ck 455558 | C151: R | D151: 11461 | E151: 7.8 | G151: 289600.74
A152: 2011-09-06 | B152: William J Spang ck 381185 | C152: R | D152: 11502 | E152: 15 | G152: 289615.74
A153: 2011-09-06 | B153: Mark A Pickett ck 390042 | C153: R | D153: 11502 | E153: 15 | G153: 289630.74
A154: 2011-09-06 | B154: Laura L Wilson ck 396271 | C154: R | D154: 11502 | E154: 15 | G154: 289645.74
A155: 2011-09-06 | B155: Denis C Edixon ck 396272 | C155: R | D155: 11502 | E155: 15 | G155: 289660.74
A156: 2011-09-06 | B156: David R Tinney ck 423391 | C156: R | D156: 11502 | E156: 15 | G156: 289675.74
A157: 2011-09-06 | B157: Barbara J Orr ck 435132 | C157: R | D157: 11502 | E157: 15 | G157: 289690.74
A158: 2011-09-06 | B158: Diane Shelko ck 435135 | C158: R | D158: 11502 | E158: 15 | G158: 289705.74
A159: 2011-09-06 | B159: Amanda Barnes ck 435140 | C159: R | D159: 11502 | E159: 15 | G159: 289720.74
A160: 2011-09-06 | B160: James E Kilnar ck 435145 | C160: R | D160: 11502 | E160: 15 | G160: 289735.74
A161: 2011-09-06 | B161: Patricia Clay ck 378577 | C161: R | D161: 11502 | E161: 9.6 | G161: 289745.34
A162: 2011-09-06 | B162: Alisha Morton ck 378578 | C162: R | D162: 11502 | E162: 12 | G162: 289757.34
A163: 2011-09-06 | B163: Frank Pasqualetti ck 390021 | C163: R | D163: 11502 | E163: 6 | G163: 289763.34
A164: 2011-09-06 | B164: Christopher J Anderson ck 390032 | C164: R | D164: 11502 | E164: 9 | G164: 289772.34
A165: 2011-09-06 | B165: John W Casbohm ck 390034 | C165: R | D165: 11502 | E165: 6 | G165: 289778.34
A166: 2011-09-06 | B166: George Zeigler ck 390058 | C166: R | D166: 11502 | E166: 6.6 | G166: 289784.94
A167: 2011-09-06 | B167: Joel H Lindsey ck 390062 | C167: R | D167: 11502 | E167: 14 | G167: 289798.94
A168: 2011-09-06 | B168: Frank Pasqualetti ck 390064 | C168: R | D168: 11502 | E168: 10.8 | G168: 289809.74
A169: 2011-09-06 | B169: George Zeigler ck 395385 | C169: R | D169: 11502 | E169: 7.1 | G169: 289816.84
A170: 2011-09-06 | B170: Theodore West ck 412391 | C170: R | D170: 11502 | E170: 9 | G170: 289825.84
A171: 2011-09-06 | B171: Tammy L Santana ck 413655 | C171: R | D171: 11502 | E171: 6 | G171: 289831.84
A172: 2011-09-06 | B172: Barbara West ck 443333 | C172: R | D172: 11502 | E172: 12 | G172: 289843.84
A173: 2011-09-06 | B173: Ricky Hilliard ck 43336 | C173: R | D173: 11502 | E173: 7 | G173: 289850.84
A174: 2011-09-06 | B174: Kristie Organisak ck 443338 | C174: R | D174: 11502 | E174: 6.5 | G174: 289857.34
A175: 2011-09-06 | B175: Ashley Brown ck 449791 | C175: R | D175: 11502 | E175: 6 | G175: 289863.34
A176: 2011-09-06 | B176: David E Casey ck 387349 | C176: R | D176: 11503 | E176: 15 | G176: 289878.34
A177: 2011-09-06 | B177: Edmund J Maksymonwicz ck 398192 | C177: R | D177: 11503 | E177: 15 | G177: 289893.34
A178: 2011-09-06 | B178: Donald W Crites ck 398199 | C178: R | D178: 11503 | E178: 15 | G178: 289908.34
A179: 2011-09-06 | B179: James A Egeland ck 398203 | C179: R | D179: 11503 | E179: 15 | G179: 289923.34
A180: 2011-09-06 | B180: Nancy Blatt ck 398222 | C180: R | D180: 11503 | E180: 15 | G180: 289938.34
A181: 2011-09-06 | B181: Patricia L Ketola ck 427447 | C181: R | D181: 11503 | E181: 15 | G181: 289953.34
A182: 2011-09-06 | B182: Ralph Wetherbee ck 427456 | C182: R | D182: 11503 | E182: 15 | G182: 289968.34
A183: 2011-09-06 | B183: Anthony Falzone ck 433101 | C183: R | D183: 11503 | E183: 15 | G183: 289983.34
A184: 2011-09-06 | B184: Bevdena L Russo ck 433108 | C184: R | D184: 11503 | E184: 15 | G184: 289998.34
A185: 2011-09-06 | B185: Dennis Starr ck 433118 | C185: R | D185: 11503 | E185: 30 | G185: 290028.34
A186: 2011-09-06 | B186: Linda D Zimmerman ck 435095 | C186: R | D186: 11503 | E186: 15 | G186: 290043.34
A187: 2011-09-06 | B187: Shane Gregory ck 435105 | C187: R | D187: 11503 | E187: 15 | G187: 290058.34
A188: 2011-09-06 | B188: Laura R Rice ck 435107 | C188: R | D188: 11503 | E188: 15 | G188: 290073.34
A189: 2011-09-06 | B189: Joseph R Everly ck 418446 | C189: R | D189: 11503 | E189: 6 | G189: 290079.34
A190: 2011-09-06 | B190: Dianna Brenneman ck 418454 | C190: R | D190: 11503 | E190: 8.2 | G190: 290087.54
A191: 2011-09-06 | B191: Thomas Steadman ck 385828 | C191: R | D191: 11505 | E191: 15 | G191: 290102.54
A192: 2011-09-06 | B192: Greg Wassie ck 388368 | C192: R | D192: 11505 | E192: 15 | G192: 290117.54
A193: 2011-09-06 | B193: Rosemary L Emery-Hill ck 388381 | C193: R | D193: 11505 | E193: 15 | G193: 290132.54
A194: 2011-09-06 | B194: Cheryce Kelley ck 425353 | C194: R | D194: 11505 | E194: 15 | G194: 290147.54
A195: 2011-09-06 | B195: Justin Blakeslee ck 425357 | C195: R | D195: 11505 | E195: 15 | G195: =(G194-F195+E195) -> 290162.54
A196: 2011-08-30 | B196: Timothy B Rizzo ck 460289 | C196: R | D196: 11515 | E196: 9.4 | G196: 290171.94
A197: 2011-09-06 | B197: J & W Paint Company ck 365136 | C197: R | D197: 11516 | E197: 10.72 | F197: 10.72 | G197: 290171.94 | I197: pd ck 474490 10/14/11
A198: 2011-09-06 | B198: Hyatt Regency Columbus ck 370477 | C198: R | D198: 11516 | E198: 135 | G198: 290306.94
A199: 2011-09-06 | B199: David Miller ck 400506 | C199: R | D199: 11516 | E199: 24.6 | G199: 290331.54
A200: 2011-09-06 | B200: Elizabeth Savage ck 404854 | C200: R | D200: 11516 | E200: 3.2 | G200: 290334.74
... 223 more rows

Sheet 2010
B1: 2010 UNCLAIMED MONEY | C1: TYPE | D1: CHECK OR PAYIN# | E1: REVENUE | F1: EXPENSE | G1: BALANCE | I1: Case Name | J1: Case Number
A2: DATE | B2: 2009 bal ADJUSTED PER 2010 CASH REPORT | G2: 283223.53
A3: 2010-03-23 | B3: Treasurer - overpayment | C3: P | D3: 74630 | E3: 2.5 | G3: =(G2-F3+E3) -> 283226.03
A4: 2010-03-09 | B4: Western Court | C4: P | D4: 74490 | E4: 522 | G4: =(G3-F4+E4) -> 283748.03 | I4: J. Showman | J4: 1998CVF00133W
A5: 2010-03-09 | B5: Western Court | C5: P | D5: 74490 | E5: 90 | G5: 283838.03 | I5: D. Tames-Murrillo | J5: 2001CRB00269W
A6: 2010-03-09 | B6: Western Court | C6: P | D6: 74490 | E6: 13.5 | G6: 283851.53 | I6: B. Pollard | J6: 2004CVF00659W
A7: 2010-03-09 | B7: Western Court | C7: P | D7: 74490 | E7: 225 | G7: 284076.53 | I7: A. Santiago | J7: 2005CRA00080W
A8: 2010-03-09 | B8: Western Court | C8: P | D8: 74490 | E8: 90 | G8: 284166.53 | I8: N. Wilson | J8: 2005CRB00075W
A9: 2010-03-09 | B9: Western Court | C9: P | D9: 74490 | E9: 325.18 | G9: 284491.71 | I9: D. Cmarik | J9: 2005CVF00344W
A10: 2010-03-09 | B10: Western Court | C10: P | D10: 74490 | E10: 225 | G10: 284716.71 | I10: P. Neill | J10: 2006CRA00859W
A11: 2010-03-09 | B11: Western Court | C11: P | D11: 74490 | E11: 8.5 | G11: 284725.21 | I11: P. Beesler | J11: 2007CRB00032W
A12: 2010-03-09 | B12: Western Court | C12: P | D12: 74490 | E12: 15 | G12: 284740.21 | I12: R. Janson | J12: 2007TRD00148W
A13: 2010-03-09 | B13: Western Court | C13: P | D13: 74490 | E13: 20 | G13: 284760.21 | I13: C. Keague | J13: 2007TRD00449W
A14: 2010-03-09 | B14: Western Court | C14: P | D14: 74490 | E14: 0 | G14: 284760.21 | I14: D. Stanisa | J14: 2008CRB00220W
A15: 2010-03-09 | B15: Western Court | C15: P | D15: 74490 | E15: 10 | G15: 284770.21 | I15: G. Hallam III | J15: 2008CRB00608W
A16: 2010-03-09 | B16: Western Court | C16: P | D16: 74490 | E16: 10 | G16: 284780.21 | I16: D. Hopkins | J16: 2008CVF00976W
A17: 2010-03-09 | B17: Western Court | C17: P | D17: 74490 | E17: 30 | G17: 284810.21 | I17: M. Dobay | J17: 2008TRD00746W
A18: 2010-03-09 | B18: Western Court | C18: P | D18: 74490 | E18: 10 | G18: 284820.21 | I18: J. Babic | J18: 2008TRD01421W
A19: 2010-03-09 | B19: Western Court | C19: P | D19: 74490 | E19: 2 | G19: 284822.21 | I19: R. Perry | J19: 2008TRD03001W
A20: 2010-03-09 | B20: Western Court | C20: P | D20: 74490 | E20: 10 | G20: 284832.21 | I20: M. Penttila | J20: 2009TRD00350W
A21: 2010-03-09 | B21: Western Court | C21: P | D21: 74490 | E21: 30 | G21: 284862.21 | I21: G. Sekula | J21: 2009TRD00820W
A22: 2010-03-09 | B22: Western Court | C22: P | D22: 74490 | E22: 20 | G22: 284882.21 | I22: J. Kinlaw | J22: 2009TRD01057W
A23: 2010-04-13 | B23: Western court | C23: P | D23: 74895 | E23: 270 | G23: 285152.21 | I23: D.Stanisa | J23: 2008CRB00220W
A24: 2010-06-08 | B24: Western Court | C24: P | D24: 75503 | E24: 10 | G24: 285162.21
A25: 2010-07-14 | B25: Clerk Courts | C25: P | D25: 75910 | E25: 1 | G25: 285163.21 | I25: Franklin Blair Title Agency | J25: 2008 NO 6
A26: 2010-07-14 | B26: Clerk Courts | C26: P | D26: 75910 | E26: 30.97 | G26: 285194.18 | I26: E. Nunez Jr. | J26: 2007CV945
A27: 2010-07-14 | B27: Clerk Courts | C27: P | D27: 75910 | E27: 21.31 | G27: 285215.49 | I27: Aronson,Fineman & Davis | J27: 2006CV412
A28: 2010-07-14 | B28: Clerk Courts | C28: P | D28: 75910 | E28: 9.02 | G28: 285224.51 | I28: G. Goldfarb | J28: 2008CV367
A29: 2010-07-14 | B29: Clerk Courts | C29: P | D29: 75910 | E29: 100 | G29: 285324.51 | I29: Hahn Loesser Parks | J29: 2007CV1141
A30: 2010-09-23 | B30: Treasurers drawer overage | C30: P | D30: 76692 | E30: 0.11 | G30: 285324.62
E32: =SUM(E3:E31) -> 2101.09 | F32: =SUM(F3:F31) -> 0 | G32: =E32-F32 -> 2101.09
B35: 2010 cash that can be claimed by general fund in 2017 | G35: 2101.09

Sheet 2016 05-09 payover
B1: 2016 UNCLAIMED MONEY | C1: TYPE | D1: CHECK OR PAYIN# | E1: REVENUE | F1: EXPENSE | G1: BALANCE
A2: DATE | B2: 2016 CASH | G2: 267356.26
B3: (yrs + Shrf Sale Tab)
D5: 2007 TOTALS | E5: ='2007'!E78 -> 11156.65 | F5: ='2007'!F78 -> 518.4 | G5: =SUM(E5-F5) -> 10638.25
D6: 2008 TOTALS | E6: ='2008'!E58 -> 31332.78 | F6: ='2008'!F58 -> 720 | G6: =SUM(E6-F6) -> 30612.78
D7: 2009 TOTALS | E7: ='2009'!E25 -> 3066.39 | F7: ='2009'!F25 -> 7979.27 | G7: -4912.88
D8: 2009 TR TO CO GEN | F8: 200000 | G8: =SUM(E8-F8) -> -200000 | H8: years 2004 and pror
D9: 2010 TOTALS | E9: ='2010'!E32 -> 2101.09 | F9: ='2010'!F32 -> 0 | G9: 2101.09
D10: 2011 TOTALS | E10: ='2011'!E422 -> 35030.5 | F10: ='2011'!F422 -> 1706.47 | G10: 33324.03
D11: 2012 TOTALS | E11: ='2012'!E112 -> 5764.97 | F11: ='2012'!F112 -> 1083.49 | G11: 4681.48
D12: 2012 TO DRETAC | F12: 116315.59 | G12: -116315.59
D13: 2013 TOTALS | E13: ='2013'!D240 -> 11866.13 | F13: ='2013'!E240 -> 7127.32 | G13: 4738.81
D14: 2014 TOTALS | E14: ='2014'!D125 -> 6549.69 | F14: ='2014'!E125 -> 1438.79 | G14: 5110.9
D15: 2015 TOTALS | E15: ='2015'!D93 -> 4241.02 | F15: ='2015'!E93 -> 680.81 | G15: 3560.21
D16: 2016 TOTALS | E16: 65143.52 | F16: 37716.04 | G16: =E16-F16 -> 27427.48
D17: 2106 TR TO CO GEN | F17: 160000 | G17: =E17-F17 -> -160000 | H17: years 2005 - 2009
D18: SHERIFF SALES tab | E18: ='shrf sales'!D12 -> 48563.27 | F18: ='shrf sales'!E12 -> 0 | G18: =E18-F18 -> 48563.27
D23: 2016 CASH BAL | G23: =G2 -> 267356.26 | I23: DRETAC : sheriff sale TR 5/2012
C24: MINUS | D24: 2010-2015 yr cash bal | E24: & Shrf Sle | G24: =G9+G10+G11+G13+G14+G15+G18 -> 102079.79 | I24: 2008 | J24: 2006 | K24: 2005
C25: Minus | D25: 2016 Shf Sales To Land Bank | G25: 37716.04 | I25: =27237.03-7979.27 -> 19257.76 | J25: 15797.08 | K25: 81260.75
C26: Minus | D26: 2016 TR to Co General | G26: 160000 | H26: yrs 2005 - 2009
D27: CASH THAT CAN BE MOVED | G27: =G23-G24-G25-G26 -> -32439.57
J31: CASH RPT
I32: rev | J32: exp | K32: cash
H33: 2009 cash bal | K33: 283223.53
H34: 2010 | I34: 2101.09 | J34: 0 | K34: 285324.62
H35: 2011 | I35: 35030.5 | J35: 1706.47 | K35: 318648.65
B36: RED TABS Years Cash Turned Over to Co General | H36: 2012 | I36: 5764.97 | J36: 117399.08 | K36: 207014.54
H37: 2013 | I37: 11866.63 | J37: 7127.32 | K37: 211752.35
H38: 2014 | I38: 52759.69 | J38: 1439.79 | K38: 263072.75
H39: 2015 | I39: 4241.02 | J39: 680.81 | K39: 266632.96
H40: 2016 | I40: 4719.56 | J40: 197716.04 | K40: 74359.78
I43: =SUM(I34:I42) -> 116483.46 | J43: =SUM(J34:J42) -> 326069.51 | K43: =K33+I43-J43 -> 73637.48

Sheet 2009
B1: 2009 UNCLAIMED MONEY | C1: TYPE | D1: CHECK OR PAYIN# | E1: REVENUE | F1: EXPENSE | G1: BALANCE | I1: Case Name | J1: Case Number
A2: DATE | G2: 488198.8
A3: 2009-03-10 | B3: Ash Co Treasurer | C3: P | D3: 70160 | E3: 127.4 | G3: =(G2-F3+E3) -> 488326.2 | I3: 2/25/08 Thru 2/5/09
A4: 2009-05-10 | B4: Mechling, Charles D | C4: check | D4: 413890 | F4: 7979.27 | G4: =(G3-F4+E4) -> 480346.93 | I4: Mechling, Charles Dale | J4: 04CV1124
A5: 2009-06-01 | B5: Eastern Court Overage | C5: P | D5: 71215 | E5: 128.97 | G5: 480475.9
A6: 2009-06-04 | B6: Gruhin, Michael H | C6: P | D6: 71293 | E6: 1.85 | G6: 480477.75 | I6: Gruhin, Michael H. | J6: 2005CV543
A7: 2009-06-04 | B7: Hakundy, Judith | C7: P | D7: 71293 | E7: 178.01 | G7: 480655.76 | I7: Hakundy, Judith | J7: 2006CV117
A8: 2009-06-04 | B8: Goldfarb, Gary M | C8: P | D8: 71293 | E8: 23.26 | G8: 480679.02 | I8: Goldfarb, Gary M. | J8: 2007CV91
A9: 2009-06-04 | B9: Kulp, Robin | C9: P | D9: 71293 | E9: 6.32 | G9: 480685.34 | I9: Kulp, Robin | J9: 1997DR343
A10: 2009-06-04 | B10: Richardson, Martin Craig | C10: P | D10: 71293 | E10: 57.2 | G10: 480742.54 | I10: Richardson, Martin Craig | J10: 2006DR558
A11: 2009-06-04 | B11: Ciocco, Mary Beth | C11: P | D11: 71293 | E11: 150 | G11: 480892.54 | I11: Ciocco, Mary Bath | J11: 2005CV451
A12: 2009-06-04 | B12: The Combie Law Firm | C12: P | D12: 71293 | E12: 55.52 | G12: 480948.06 | I12: The Crombie Law Firm | J12: 2005DR401
A13: 2009-06-04 | B13: Wynn, Robert S | C13: P | D13: 71293 | E13: 33 | G13: 480981.06 | I13: Wynn, Robert S. | J13: 2002CV475
A14: 2009-06-04 | B14: Morris, Robert Alan | C14: P | D14: 71293 | E14: 78.36 | G14: 481059.42 | I14: Morris, Robert Alan | J14: 2007DR311
A15: 2009-06-04 | B15: Sky Bank | C15: P | D15: 71293 | E15: 55.87 | G15: 481115.29 | I15: Sky Bank | J15: 2005CV23
A16: 2009-06-05 | B16: Nbill, Jami | C16: P | D16: 71300 | E16: 30 | G16: 481145.29 | I16: Neill, Jami | J16: 2007TRD02996W
A17: 2009-07-30 | B17: Airtouch support | C17: P | D17: 71958 | E17: 22 | G17: 481167.29 | I17: Ciocco, Mary Bath
A18: 2009-07-30 | B18: Electronic Data Syst | C18: P | D18: 71958 | E18: 183.94 | G18: 481351.23 | I18: Electronic Data Systems Corp.
A19: 2009-07-30 | B19: Ameribank | C19: P | D19: 71958 | E19: 1023.27 | G19: 482374.5 | I19: Ameribank
A20: 2009-10-28 | B20: Western Court | C20: P | D20: 72969 | E20: 225 | G20: 482599.5 | I20: Rauth, Nicole M. | J20: 2000CRA00284W
A21: 2009-12-29 | B21: Network Equip & LPS Property | C21: P | D21: 73643 | E21: 686.42 | G21: 483285.92 | I21: Network Equip.& LPS Property
G22: 483285.92
A23: 2009-10-16 | B23: TRANSFER TO CO GEN | D23: 2004 AND PRIOR | F23: 200000 | G23: 283285.92
E25: =SUM(E2:E24) -> 3066.39 | F25: 7979.27 | G25: -4912.88
A26: 2011-10-27 | B26: back up paperwork does not match payin
B27: $61.46 off

Sheet 2008
B1: 2008 UNCLAIMED MONEY | C1: TYPE | D1: CHECK OR PAYIN# | E1: REVENUE | F1: EXPENSE | G1: BALANCE | H1: Case Number
A2: DATE | G2: 457585.3
A3: 2008-01-31 | B3: Mechling, Charles | C3: P | D3: 64605 CL 5/21/09 | E3: 7979.27 | G3: =(G2-F3+E3) -> 465564.57 | H3: 04CV1124
A4: 2008-01-31 | B4: Sprague, Richard P | C4: P | D4: 64605 | E4: 441.35 | G4: =(G3-F4+E4) -> 466005.92
A5: 2008-01-31 | B5: GB Home Equity LLC | C5: P | D5: 64605 | E5: 11065.67 | G5: 477071.59
A6: 2008-01-31 | B6: Hathaway Appraisal Services | C6: P | D6: 64605 | E6: 5409.66 | G6: 482481.25
A7: 2008-01-31 | B7: Myers, James & Shelly | C7: P | D7: 64605 | E7: 2341.08 | G7: 484822.33
A8: 2008-03-19 | B8: David Chamblin-Rodriquez | C8: P | D8: 65323 | E8: 225 | G8: 485047.33 | H8: 2006 CRA 00720W
A9: 2008-03-19 | B9: James R Staley | C9: P | D9: 65323 | E9: 1350 | G9: 486397.33 | H9: 2006 CRA 01056W
A10: 2008-03-19 | B10: Christopher L Spade | C10: P | D10: 65323 | E10: 97 | G10: 486494.33 | H10: 2007 CRA 00124W
A11: 2008-03-19 | B11: Michael J Hardin | C11: P | D11: 65323 CL 4/10/08 | E11: 225 | G11: 486719.33 | H11: 2007 CRB 00050W
A12: 2008-03-19 | B12: Jasone E Aponte | C12: P | D12: 65323 | E12: 20 | G12: 486739.33 | H12: 2007 TRD 01861W
A13: 2008-03-19 | B13: Thomas C Camp | C13: P | D13: 65323 | E13: 30 | G13: 486769.33 | H13: 2007 TRD 02326W
A14: 2008-03-19 | B14: Lori F Sidwell | C14: P | D14: 65323 CL 5/15/08 | E14: 225 | G14: 486994.33 | H14: 2008 CRA 00046W
A15: 2008-04-03 | B15: Robin Skaggs ck 355724 | C15: R | D15: 9387 | E15: 6 | G15: 487000.33
A16: 2008-04-03 | B16: Gary Jeffrey ck 361454 | C16: R | D16: 9387 | E16: 8.6 | G16: 487008.93
A17: 2008-04-03 | B17: Mariah Williams ck 361613 | C17: R | D17: 9387 | E17: 6 | G17: 487014.93
A18: 2008-04-03 | B18: Mark Tennant ck 363208 | C18: R | D18: 9387 | E18: 500 | G18: 487514.93
A19: 2008-04-03 | B19: Melissa Candela ck 366424 | C19: R | D19: 9387 | E19: 6 | G19: 487520.93
A20: 2008-04-03 | B20: Kathleen Twining ck 370048 | C20: R | D20: 9387 | E20: 30 | G20: 487550.93
A21: 2008-04-03 | B21: Terez Demko ck 371572 | C21: R | D21: 9387 | E21: 15 | G21: 487565.93
A22: 2008-04-10 | B22: Michael J Hardin | C22: CK | D22: 383952 | F22: 225 | G22: 487340.93 | H22: 2007 CRB 00050W
A23: 2008-04-16 | B23: Douglas Montgomery ck 355731 | C23: R | D23: 9411 | E23: 8 | G23: 487348.93
A24: 2008-04-16 | B24: Julia Mounger ck 357803 | C24: R | D24: 9411 | E24: 5.43 | G24: 487354.36
A25: 2008-04-16 | B25: Cindy Mcgee ck 359864 | C25: R | D25: 9411 | E25: 30 | G25: 487384.36
A26: 2008-04-16 | B26: Duane L Watson ck 359911 | C26: R | D26: 9411 | E26: 15 | G26: 487399.36
A27: 2008-04-16 | B27: Eugene Zerby ck 360641 | C27: R | D27: 9411 | E27: 6 | G27: 487405.36
A28: 2008-04-16 | B28: Darla J Vargo ck 360670 | C28: R | D28: 9411 | E28: 15 | G28: 487420.36
A29: 2008-04-16 | B29: Dennis S Ferguson ck 361384 | C29: R | D29: 9411 | E29: 15 | G29: 487435.36
A30: 2008-04-16 | B30: Katherine A Krince ck 361460 | C30: R | D30: 9411 | E30: 6 | G30: 487441.36
A31: 2008-04-16 | B31: James H Brown Jr ck 362949 | C31: R | D31: 9411 | E31: 15 | G31: 487456.36
A32: 2008-04-16 | B32: Alan E Canfield ck 362972 | C32: R | D32: 9411 | E32: 15 | G32: 487471.36
A33: 2008-04-16 | B33: Elvira M Brummitt ck 362998 | C33: R | D33: 9411 | E33: 15 | G33: 487486.36
A34: 2008-04-16 | B34: Ronald P Crim ck 363004 | C34: R | D34: 9411 | E34: 15 | G34: 487501.36
A35: 2008-04-17 | B35: Karen Sweeney | C35: ck | D35: Payin 51595 - 7/5/05 | F35: 270 | G35: 487231.36
A36: 2008-05-15 | B36: Van Mason (Sidwell) | C36: ck | D36: 836602 | F36: 225 | G36: 487006.36
A37: 2008-06-05 | B37: Williams, Sennett&Schully | C37: P | D37: 66449 | E37: 151.44 | G37: 487157.8 | H37: 2004CV410
A38: 2008-06-05 | B38: Connie M Mahoney | C38: P | D38: 66449 | E38: 78.15 | G38: =(G37-F38+E38) -> 487235.95 | H38: 2005 DR 446
A39: 2008-06-05 | B39: Thomas P Aldrich III | C39: P | D39: 66449 | E39: 13.58 | G39: 487249.53 | H39: 2001 CV 224
A40: 2008-06-05 | B40: Daniel W Dreyfus Law Office | C40: P | D40: 66449 | E40: 12.38 | G40: 487261.91 | H40: 2002 CV 699
A41: 2008-06-05 | B41: Robert E Zulandt | C41: P | D41: 66449 | E41: 66.11 | G41: 487328.02 | H41: 2005 DR 510
A42: 2008-06-05 | B42: Caleb Gaul | C42: P | D42: 66449 | E42: 2.75 | G42: 487330.77 | H42: 2006 CV 470
A43: 2008-06-05 | B43: Catherine Parkman | C43: P | D43: 66449 | E43: 16.61 | G43: 487347.38 | H43: 2004 CV 865
A44: 2008-06-05 | B44: Climaco Lefkowitz Peka Wilcox & | C44: P | D44: 66449 | E44: 1.3 | G44: 487348.68 | H44: 2004 CV 846
A45: 2008-07-31 | B45: Marilyn Bedogne | C45: R | D45: 9649 | E45: 17.5 | G45: 487366.18
A46: 2008-12-09 | B46: Eleanor Abbott | C46: R | D46: 9842 | E46: 95 | G46: 487461.18
A47: 2008-12-09 | B47: Common Pleas Juror | C47: R | D47: 9842 | E47: 165 | G47: 487626.18
A48: 2008-12-09 | B48: Common Pleas Witness | C48: R | D48: 9842 | E48: 42 | G48: 487668.18
A49: 2008-12-09 | B49: Eastern Court Witness | C49: R | D49: 9842 | E49: 34.1 | G49: 487702.28
A50: 2008-12-09 | B50: Timothy Lillis | C50: R | D50: 9842 | E50: 15 | G50: 487717.28
A51: 2008-12-10 | B51: Common Pleas Witness | C51: R | D51: 9843 | E51: 22.2 | G51: 487739.48
A52: 2008-12-10 | B52: D Nugent | C52: R | D52: 9843 | E52: 45 | G52: 487784.48
A53: 2008-12-10 | B53: Common Pleas Juror | C53: R | D53: 9843 | E53: 60 | G53: 487844.48
A54: 2008-12-10 | B54: Common Pleas Juror | C54: R | D54: 9845 | E54: 90 | G54: 487934.48
A55: 2028-12-10 | B55: Common Pleas Juror | C55: R | D55: 9846 | E55: 263.6 | G55: 488198.08
D58: 2008 TOTALS | E58: =SUM(E2:E57) -> 31332.78 | F58: =SUM(F2:F57) -> 720 | G58: =E58-F58 -> 30612.78
G59: 30612.78

Sheet 2007
B1: 2007 UNCLAIMED MONEY | D1: CHECK OR PAYIN# | E1: REVENUE | F1: EXPENSE | G1: BALANCE | I1: Case Number
A2: DATE | G2: 446947.05
A3: 2007-01-16 | B3: ROSEANNA KRENISKY UNCLAIMED CK#327456 | C3: R | D3: 8314 | E3: 116.35 | G3: ='2008'!G3 -> 465564.57
A4: 2007-01-16 | B4: SEAN T. CARSON UNCLAIMED CK#324917 | C4: R | D4: 8315 | E4: 15 | G4: =(G3-F4+E4) -> 465579.57
A5: 2007-01-31 | B5: UNCLAIMED MONEY 1/07 | C5: P | D5: 59544 | E5: 0.04 | G5: =(G4-F5+E5) -> 465579.61
A6: 2007-02-07 | B6: CHERYL BLANKENSHIP UNCLAIMED CK#324890 | C6: R | D6: 8339 | E6: 15 | G6: =(G5-F6+E6) -> 465594.61
A7: 2007-02-07 | B7: ROBERT A MATHIAS JR UNCLAIMED CK#325926 | C7: R | D7: 8339 | E7: 15 | G7: 465609.61
A8: 2007-02-07 | B8: OHIO DEPT OF TRANSPORTATION UNCL CK#326174 | C8: R | D8: 8340 | E8: 718.2 | G8: 466327.81
A9: 2007-02-07 | B9: UHHS LAURELWOOD HOSPITAL UNCL CK#325194 | C9: R | D9: 8341 | E9: 185.07 | G9: 466512.88
A10: 2007-02-07 | B10: TARA VANDEVENDER UNCLAIMED CK#327956 | C10: R | D10: 8342 | E10: 8.2 | G10: 466521.08
A11: 2007-02-23 | B11: CARLY GRUBBS UNCLAIMED CK#334893 | C11: R | D11: 8350 | E11: 9.2 | G11: 466530.28
A12: 2007-02-23 | B12: CARLY GRUBBS UNCLAIMED CK#336647 | C12: R | D12: 8350 | E12: 11 | G12: 466541.28
A13: 2007-03-01 | B13: ELEANOR P. ABBOTT UNCLAIMED CK#328493 | C13: R | D13: 8388 | E13: 25 | G13: 466566.28
A14: 2007-03-01 | B14: ELEANOR P. ABBOTT UNCLAIMED CK#329273 | C14: R | D14: 8389 | E14: 95 | G14: 466661.28
A15: 2007-03-01 | B15: JAMES SLOAN UNCLAIMED CK#331189 | C15: R | D15: 8390 | E15: 15 | G15: 466676.28
A16: 2007-03-01 | B16: ALAN L VAN KRAMER UNCLAIMED CK#331153 | C16: R | D16: 8390 | E16: 15 | G16: 466691.28
A17: 2007-03-28 | B17: ADAM W. BURKHART UNCLAIMED CK#338968 | C17: R | D17: 8445 | E17: 6 | G17: 466697.28
A18: 2007-04-05 | B18: RALPH BALL UNCLAIMED CK#337509 | C18: R | D18: 8468 | E18: 7.5 | G18: 466704.78
A19: 2007-04-19 | B19: UNCLAIMED MONEY 3/07 WESTERN COURT | C19: P | D19: 60694 | E19: 300 | G19: 467004.78
B20: ---BRIAN P HOWARD $225 | G20: 467004.78 | I20: 02TRD362
B21: MICHAEL A KEYES $75 | I21: 01CRB563
A22: 2007-04-25 | B22: MITCHELL FELIX UNCLAIMED CK#337498 | C22: R | D22: 8507 | E22: 8.2 | G22: =(G20-F22+E22) -> 467012.98
A23: 2007-05-08 | B23: RICHARD LEE WICK UNCLAIMED CK#339697 | C23: R | D23: 8566 | E23: 8 | G23: 467020.98
A24: 2007-05-08 | B24: RICHARD LEE WICK UNCLAIMED CK#338965 | C24: R | D24: 8567 | E24: 9 | G24: 467029.98
A25: 2007-05-08 | B25: CHRISTOPHER J HARRIS UNCLAIMED CK#459447 | C25: R | D25: 8568 | E25: 0.7 | G25: 467030.68
A26: 2007-05-09 | B26: UNCLAIMED MONEY 4/07 WESTERN COUNTY COURT | C26: P | D26: 60982 | E26: 6540.54 | G26: 473571.22
A27: 2007-05-24 | B27: CLERK OF COURTS UNCLAIMED FUNDS | C27: P | D27: 61197 | E27: 260.62 | G27: 473831.84
A28: 2007-06-04 | B28: NANCY FRANK UNCLAIMED CK#341114 | C28: R | D28: 8620 | E28: 15 | G28: 473846.84
A29: 2007-06-04 | B29: EMILY NELSON UNCLAIMED CK#343502 | C29: R | D29: 8620 | E29: 7.6 | G29: 473854.44
A30: 2007-06-04 | B30: CHARLENE M. COLE UNCLAIMED CK#340250 | C30: R | D30: 8620 | E30: 8.4 | G30: 473862.84
A31: 2007-06-04 | B31: JOHN K. BAILEY UNCLAIMED CK#338967 | C31: R | D31: 8620 | E31: 7.8 | G31: 473870.64
A32: 2007-06-04 | B32: RHONDA HIBDON UNCLAIMED CK#338972 | C32: R | D32: 8620 | E32: 8.3 | G32: 473878.94
A33: 2007-06-04 | B33: JOSEPH J. HOLY III UNCLAIMED CK#338973 | C33: R | D33: 8620 | E33: 8.8 | G33: 473887.74
A34: 2007-06-04 | B34: HUNTINGTON NATIONAL BANK UNCL CK#337172 | C34: R | D34: 8621 / CL 6/21/07 | E34: 448.4 | G34: 474336.14
A35: 2007-06-06 | B35: T. BUSCH AUTOMOTIVE | C35: CK | D35: 360861 | F35: 70 | G35: 474266.14
B36: --UNCLAIMED CK 284975 10/5/04 $45 R7043 | G36: 474266.14
B37: --UNCLAIMED CK 299261 4/11/05 $25 R7451 | G37: 474266.14
A38: 2007-06-21 | B38: HUNTINGTON NATIONAL BANK UNCL CK#337172 | C38: CK | D38: 361934 | F38: 448.4 | G38: 473817.74
A39: 2007-06-28 | B39: FOR 5/07 | C39: P | D39: 61661 | E39: 1635.86 | G39: =(G38-F39+E39) -> 475453.6
A40: 2007-10-19 | B40: PETER JANSON IV UNCL CK 346063 | C40: RE | D40: 8961 | E40: 70 | G40: 475523.6
A41: 2007-10-19 | B41: ELEANOR ABBOTT UNCL CK 345717 | C41: RE | D41: 8961 | E41: 95 | G41: 475618.6
A42: 2007-10-19 | B42: SHELLEY KAY MARSHALL UNCL CK 340087 | C42: RE | D42: 8962 | E42: 15 | G42: 475633.6
A43: 2007-10-19 | B43: JAMES M FORGAN UNCL CK 345340 | C43: RE | D43: 8962 | E43: 15 | G43: 475648.6
A44: 2007-10-19 | B44: ROBERT J MONAHAN UNCL CK 345350 | C44: RE | D44: 8962 | E44: 15 | G44: 475663.6
A45: 2007-10-19 | B45: GREGORY LYLE UNCL CK 346555 | C45: RE | D45: 8962 | E45: 15 | G45: 475678.6
A46: 2007-10-19 | B46: KEELY L CIMINO UNCL CK 347715 | C46: RE | D46: 8962 | E46: 15 | G46: 475693.6
A47: 2007-10-19 | B47: PHILIP M COLTON UNCL CK 347748 | C47: RE | D47: 8962 | E47: 45 | G47: 475738.6
A48: 2007-10-19 | B48: JAMES T LOVE UNCL CK 347750 | C48: RE | D48: 8962 | E48: 45 | G48: 475783.6
A49: 2007-10-19 | B49: MARY ANN BURCH UNCL CK 350683 | C49: RE | D49: 8962 | E49: 15 | G49: 475798.6
A50: 2007-10-19 | B50: JULIUS D HALL UNCL CK 350688 | C50: RE | D50: 8962 | E50: 15 | G50: 475813.6
A51: 2007-10-19 | B51: JACOB A SCAFURO UNCL CK 350694 | C51: RE | D51: 8962 | E51: 15 | G51: 475828.6
A52: 2007-10-19 | B52: GRACE SHIREY UNCL CK 351877 | C52: RE | D52: 8962 | E52: 15 | G52: 475843.6
A53: 2007-10-19 | B53: ASHLEY FLEISCHER UNCL CK 353133 | C53: RE | D53: 8963 | E53: 6 | G53: 475849.6
A54: 2007-10-19 | B54: DYLANA MAE GLOVER UNCL CK 353135 | C54: RE | D54: 8963 | E54: 6 | G54: 475855.6
A55: 2007-10-19 | B55: JOSH BROWN UNCL CK 340247 | C55: RE | D55: 8963 | E55: 10 | G55: 475865.6
A56: 2007-10-19 | B56: ROBERT ALLEN STREETS UNCL CK 341096 | C56: RE | D56: 8963 | E56: 7.1 | G56: 475872.7
A57: 2007-10-19 | B57: LOUIS WALDO UNCL CK 346485 | C57: RE | D57: 8963 | E57: 9.7 | G57: 475882.4
A58: 2007-10-19 | B58: PETE M PETERSON UNCL CK 347632 | C58: RE | D58: 8963 | E58: 6 | G58: 475888.4
A59: 2007-10-19 | B59: JOAN L SMITH UNCL CK 347633 | C59: RE | D59: 8963 | E59: 10.5 | G59: 475898.9
A60: 2007-10-19 | B60: WENSDEE PAWLOWSKI UNCL CK 353126 | C60: RE | D60: 8963 | E60: 12.6 | G60: 475911.5
A61: 2007-10-19 | B61: CHASTITY EICHELE UNCL CK 353132 | C61: RE | D61: 8963 | E61: 4.8 | G61: 475916.3
A62: 2007-10-19 | B62: REBECCA J MASON UNCL CK 351844 | C62: RE | D62: 8964 | E62: 15 | G62: 475931.3
A63: 2007-10-19 | B63: STEFANIE NAGY UNCL CK 344419 | C63: RE | D63: 8965 | E63: 6 | G63: 475937.3
A64: 2007-10-19 | B64: MARY LEAF UNCL CK 344424 | C64: RE | D64: 8965 | E64: 6 | G64: 475943.3
A65: 2007-10-19 | B65: PEIGHTON A RAY UCL CK 344427 | C65: RE | D65: 8965 | E65: 6.15 | G65: 475949.45
A66: 2007-10-19 | B66: RICHARD LEE WICK UNCL CK 344431 | C66: RE | D66: 8965 | E66: 8 | G66: 475957.45
A67: 2007-10-19 | B67: SUZANNE BYKO UNCL CK 344432 | C67: RE | D67: 8965 | E67: 6 | G67: 475963.45
A68: 2007-10-19 | B68: BRENDA HRAGA UNCL CK 349482 | C68: RE | D68: 8966 | E68: 15 | G68: 475978.45
A69: 2007-10-19 | B69: DUSTIN ANDERSON UNCL CK 349470 | C69: RE | D69: 8967 | E69: 6 | G69: 475984.45
A70: 2007-10-19 | B70: DENISE M PRESTON UNCL CK 349472 | C70: RE | D70: 8967 | E70: 6 | G70: 475990.45
A71: 2007-10-19 | B71: BRAD PHILBRICK UNCL CK 349473 | C71: RE | D71: 8967 | E71: 6 | G71: =(G70-F71+E71) -> 475996.45
A72: 2007-10-19 | B72: NATHAN TACKETT UNCL CK 343513 | C72: RE | D72: 8968 | E72: 15 | G72: 476011.45
A73: 2007-10-19 | B73: SHAUN WISER UNCL CK 351026 | C73: RE | D73: 8968 | E73: 15 | G73: 476026.45
A74: 2007-10-19 | B74: HEATHERLIE MCQUEENEY UNCL CK 342775 | C74: RE | D74: 8969 | E74: 20 | G74: 476046.45
A75: 2007-10-19 | B75: OHIO DEPT OF TRANSPORTATION UNCL CK#343176 | C75: RE | D75: 8970 | E75: 18.24 | G75: 476064.69
A76: 2007-10-19 | B76: STEPHEN F OLENIK UNCL CK 341010 | C76: RE | D76: 8971 | E76: 21.78 | G76: 476086.47
D78: 2007 TOTALS | E78: =SUM(E2:E77) -> 11156.65 | F78: =SUM(F2:F76) -> 518.4 | G78: =E78-F78 -> 10638.25

Sheet 2006
B1: 2006 UNCLAIMED MONEY | D1: CHECK OR PAYIN# | E1: REVENUE | F1: EXPENSE | G1: BALANCE | H1: Case Number
A2: DATE | G2: 427819.44
A3: 2006-01-24 | B3: PAUL W HUDDLESTON UNCL CK#296445 | C3: CK | D3: 320449 | F3: 20 | G3: =(G2-F3+E3) -> 427799.44
A4: 2006-01-24 | B4: TREASURER'S OVERPAYMENT ACCOUNT | C4: P | D4: 54219 | E4: 8.98 | G4: 427808.42
A5: 2006-01-30 | B5: ORA D. HUGHES UNCL CK#429240 | C5: R | D5: 7433 | E5: 0.73 | G5: 427809.15
A6: 2006-02-01 | B6: SHEKEYLA COLEMAN CK#299813 | C6: R | D6: 7448 | E6: 20 | G6: =(G5-F6+E6) -> 427829.15
A7: 2006-02-01 | B7: MATTHEW HATHY CK#299417 | C7: R | D7: 7449 | E7: 9 | G7: 427838.15
A8: 2006-02-01 | B8: SHIRLEY HOWLAND CK#300329 | C8: R | D8: 7450 | E8: 7.5 | G8: 427845.65
A9: 2006-02-01 | B9: T. BUSCH AUTOMOTIVE CK#299261 | C9: R | D9: 7451 CL 6/6/07 | E9: 25 | G9: 427870.65
A10: 2006-02-01 | B10: GAYLE S. WILBER CK#422308 | C10: R | D10: 7452 | E10: 16.96 | G10: 427887.61
A11: 2006-02-07 | B11: VOID CK#307642 CHRISTINA L. POULTER | C11: CK | D11: 307642 CL 2/7/06 | E11: 20 | G11: 427907.61
A12: 2006-02-07 | B12: CHRISTINA POULTER UNCL CK#307642 | C12: CK | D12: 321409 | F12: 20 | G12: 427887.61
A13: 2006-02-13 | B13: LORETTA TRATAR UNCL CK#307150 | C13: R | D13: 7463 | E13: 500 | G13: 428387.61
A14: 2006-02-13 | B14: MCKAIG CONTRACTING UNCL CK#307206 | C14: R | D14: 7464 | E14: 19.43 | G14: 428407.04
A15: 2006-02-23 | B15: HELLER FINANCIAL LEASING INC. UNCL CK#297265 | C15: CK | D15: 322905 | F15: 128.1 | G15: 428278.94
A16: 2006-03-01 | B16: AXA EQUITABLE UNCL CK#309757 | C16: R | D16: 7518 | E16: 262.73 | G16: 428541.67
A17: 2006-03-01 | B17: SHERRY FAULK UNCL CK#304365 | C17: R | D17: 7519 | E17: 6 | G17: 428547.67
A18: 2006-03-10 | B18: TRACY COLE UNCL CK#303337 | C18: R | D18: 7526 | E18: 7.7 | G18: 428555.37
A19: 2006-03-10 | B19: RANDALL JONES UNCL CK#303338 | C19: R | D19: 7526 | E19: 7 | G19: 428562.37
A20: 2006-03-10 | B20: CHRISTOPHER S. WEBER UNCLAIMED CK#303341 | C20: R | D20: 7526 | E20: 7.7 | G20: 428570.07
A21: 2006-03-10 | B21: BETTY HERAKOVIC UNCLAIMED CK#302143 | C21: R | D21: 7527 | E21: 1.48 | G21: 428571.55
A22: 2006-03-10 | B22: T. BUSCH AUTOMOTIVE UNCLAIMED CK#300589 | C22: R | D22: 7528 | E22: 100.12 | G22: 428671.67
A23: 2006-03-10 | B23: CURTIS GRIFFITH UNCL CK#249313 | C23: CK | D23: 324269 | F23: 500 | G23: 428171.67
A24: 2006-03-13 | B24: CHRISTOPHER S. WEBER UNCLAIMED CK#317021 | C24: R | D24: 7541 | E24: 10 | G24: 428181.67
A25: 2006-03-13 | B25: SARAH A. HAMMERS UNCLAIMED CK#316988 | C25: R | D25: 7542 | E25: 15 | G25: 428196.67
A26: 2006-03-16 | B26: ERIE CO. COURTHOUSE UNCLAIMED CK#308578 | C26: R | D26: 7559 | E26: 68 | G26: 428264.67
A27: 2006-03-16 | B27: ROBERT B. LEE UNCLAIMED CK#307436 | C27: R | D27: 7560 | E27: 15 | G27: 428279.67
A28: 2006-03-16 | B28: ROBERT B. LEE UNCLAIMED CK#307462 | C28: R | D28: 7560 | E28: 15 | G28: 428294.67
A29: 2006-03-16 | B29: ROBERT B. LEE UNCLAIMED CK#307448 | C29: R | D29: 7560 | E29: 15 | G29: 428309.67
A30: 2006-03-16 | B30: LOUANN LAZORIK UNCLAIMED CK#308267 | C30: R | D30: 7561 | E30: 108.02 | G30: 428417.69
A31: 2006-04-05 | B31: ERIC BLENMAN UNCLAIMED CK#304375 | C31: R | D31: 7616 CL 8/9/06 | E31: 15 | G31: 428432.69
A32: 2006-04-05 | B32: RAY HART UNCLAIMED CK#317431 | C32: R | D32: 7617 | E32: 11 | G32: 428443.69
A33: 2006-04-05 | B33: RAY HART UNCLAIMED CK#317444 | C33: R | D33: 7617 | E33: 10 | G33: 428453.69
A34: 2006-04-05 | B34: DAVID A GOODIEL JR UNCLAIMED CK#317468 | C34: R | D34: 7617 | E34: 7.4 | G34: 428461.09
A35: 2006-04-05 | B35: ANOLA G. MARSHALL-HANNA UNCL CK#318738 | C35: R | D35: 7618 | E35: 15 | G35: 428476.09
A36: 2006-04-28 | B36: JAMES GAMBREL UNCLAIMED CK#311757 | C36: R | D36: 7655 | E36: 5.44 | G36: 428481.53
A37: 2006-04-28 | B37: OWEN STONE UNCLAIMED CK#310214 | C37: R | D37: 7655 | E37: 4.88 | G37: =(G36-F37+E37) -> 428486.41
A38: 2006-04-28 | B38: VERONICA BENNETT UNCLAIMED CK#311744 | C38: R | D38: 7655 | E38: 19.02 | G38: 428505.43
A39: 2006-05-01 | B39: WALZ POSTAL SOLUTIONS UNCL CK#307873 | C39: R | D39: 7656 | E39: 507.89 | G39: 429013.32
A40: 2006-05-31 | B40: UNCLAIMED FUNDS 5/06 | C40: P | D40: 56232 | E40: 835.37 | G40: 429848.69
A41: 2006-06-08 | B41: ERIN M. TAYLOR UNCLAIMED CK#434810 | C41: R | D41: 7739 | E41: 7.48 | G41: 429856.17
A42: 2006-06-08 | B42: JACOB WHEELER UNCLAIMED CK#308957 | C42: R | D42: 7740 | E42: 20 | G42: 429876.17
A43: 2006-06-27 | B43: UNCLAIMED FUNDS 6/06 | C43: P | D43: 56638 | E43: 15797.08 | G43: 445673.25
B44: Unknown- $561.84
B45: Harris- $1082.24
B46: Prickett-$4.00 | H46: 10CV43
B47: Preston-$2519.72 | H47: 99CV503
B48: Bankers Trust-$2411.58 | H48: 02CV176
B49: Javitch-$52.00 | H49: 03CV925
B50: Ferguson-$8106.70 | H50: 04CV541
B51: Country-wide home loans-$150.00 | H51: 04CV1247
B52: Luper-$552.00 | H52: 04CV1247
B53: Sky Bank-$357.00 | H53: 04CV901
A54: 2006-06-30 | B54: JAMES M. FORGAN UNCLAIMED CK#309907 | C54: R | D54: 7801 | E54: 7.4 | G54: =(G43-F54+E54) -> 445680.65
A55: 2006-07-07 | B55: JENNIFER BODENBENDER UNCLAIMED CK#310191 | C55: R | D55: 7826 | E55: 24.57 | G55: 445705.22
A56: 2006-07-07 | B56: KELLY VIGON UNCLAIMED CK#310216 | C56: R | D56: 7826 | E56: 4.58 | G56: 445709.8
A57: 2006-07-07 | B57: MATTHEW BUTLER UNCLAIMED CK#312148 | C57: R | D57: 7827 | E57: 15 | G57: 445724.8
A58: 2006-07-07 | B58: MATTHEW BUTLER UNCLAIMED CK#310849 | C58: R | D58: 7827 | E58: 15 | G58: 445739.8
A59: 2006-07-07 | B59: JOHN MANICCIA UNCLAIMED CK#309927 | C59: R | D59: 7828 | E59: 9.6 | G59: 445749.4
A60: 2006-07-07 | B60: VITAL RECORDS UNCLAIMED CK#312121 | C60: R | D60: 7829 | E60: 15 | G60: 445764.4
A61: 2006-08-02 | B61: MATTHEW BUTLER UNCLAIMED CK#312690 | C61: R | D61: 7891 | E61: 15 | G61: 445779.4
A62: 2006-08-02 | B62: GORDON L MOORE JR UNCLAIMED CK#312287 | C62: R | D62: 7891 | E62: 15 | G62: 445794.4
A63: 2006-08-02 | B63: WENDY ANN WINCHELL UNCLAIMED CK#316984 | C63: R | D63: 7891 | E63: 15 | G63: 445809.4
A64: 2006-08-02 | B64: DEPT OF HEALTH UNCLAIMED CK#312241 | C64: R | D64: 7892 | E64: 4 | G64: 445813.4
A65: 2006-08-02 | B65: ANGELIC HOMES UNCLAIMED CK#319374 | C65: R | D65: 7893 | E65: 500 | G65: 446313.4
A66: 2006-08-02 | B66: JOE BERTONE UNCLAIMED CK#316075 | C66: R | D66: 7894 | E66: 95 | G66: 446408.4
A67: 2006-08-09 | B67: ERIC BLENMAN UNCLAIMED CK#304375 | C67: CK | D67: 337372 | F67: 15 | G67: 446393.4
A68: 2006-08-09 | B68: AMBER GEOFFRION UNCLAIMED CK#321057 | C68: R | D68: 7936 | E68: 8 | G68: 446401.4
A69: 2006-08-09 | B69: JOHNNIE T. KIRK UNCLAIMED CK#320691 | C69: R | D69: 7936 | E69: 8.8 | G69: 446410.2
A70: 2006-08-15 | B70: GORDON L MOORE JR UNCLAIMED CK#312287 | C70: CK | D70: 337881 CL/8/15/06 | F70: 15 | G70: 446395.2
A71: 2006-09-14 | B71: MATTHEW BUTLER UNCLAIMED CK#314649 | C71: R | D71: 8028 | E71: 15 | G71: 446410.2
A72: 2006-09-14 | B72: MATTHEW BUTLER UNCLAIMED CK#316983 | C72: R | D72: 8028 | E72: 15 | G72: 446425.2
A73: 2006-09-14 | B73: MATTHEW BUTLER UNCLAIMED CK#317367 | C73: R | D73: 8028 | E73: 15 | G73: 446440.2
A74: 2006-09-14 | B74: ANDREW HOMMES UNCLAIMED CK#317406 | C74: R | D74: 8029 | E74: 8.8 | G74: 446449
A75: 2006-09-14 | B75: ELEANOR P. ABBOTT UNCLAIMED CK#315894 | C75: R | D75: 8030 | E75: 95 | G75: 446544
A76: 2006-10-17 | B76: UNCLAIMED MONEY 10/06 | C76: P | D76: 58161 | E76: 51.75 | G76: 446595.75
A77: 2006-10-26 | B77: AMANDA RENEE THOMPSON UNCLAIMED CK#317455 | C77: R | D77: 8115 | E77: 6 | G77: 446601.75
A78: 2006-10-30 | B78: MILDRED FIX UNCLAIMED CK#324700 | C78: R | D78: 8121 | E78: 20 | G78: 446621.75
A79: 2006-11-16 | B79: UNCLAIMED MONEY 10/06 | C79: P | D79: 58568 | E79: 10 | G79: 446631.75
A80: 2006-11-28 | B80: M. PATRICIA MAY UNCLAIMED CK#321091 | C80: R | D80: 8210 | E80: 15 | G80: 446646.75
A81: 2006-11-28 | B81: MATTHEW BUTLER UNCLAIMED CK#320531 | C81: R | D81: 8211 | E81: 15 | G81: 446661.75
A82: 2006-11-28 | B82: MATTHEW BUTLER UNCLAIMED CK#320542 | C82: R | D82: 8211 | E82: 15 | G82: 446676.75
A83: 2006-11-28 | B83: ROBERT ALDERMAN UNCLAIMED CK#320557 | C83: R | D83: 8211 | E83: 15 | G83: 446691.75
A84: 2006-11-28 | B84: RODRICK BARNES II UNCLAIMED CK#320683 | C84: R | D84: 8212 | E84: 9.4 | G84: 446701.15
A85: 2006-11-28 | B85: SCOTT GREGG UNCLAIMED CK#320680 | C85: R | D85: 8212 | E85: 6 | G85: 446707.15
A86: 2006-11-28 | B86: LEVI REGISTER UNCLAIMED CK#320675 | C86: R | D86: 8212 | E86: 8.8 | G86: 446715.95
A87: 2006-12-07 | B87: NATHAN J HINES UNCLAIMED CK#321462 | C87: R | D87: 8240 | E87: 9 | G87: 446724.95
A88: 2006-12-07 | B88: RICHARD GABEL UNCLAIMED CK#323360 | C88: R | D88: 8241 | E88: 17 | G88: 446741.95
A89: 2006-12-07 | B89: SPRINT UNCLAIMED CK#321136 | C89: R | D89: 8242 | E89: 205.1 | G89: 446947.05
D94: 2006 TOTALS | E94: =SUM(E2:E89) -> 19825.71 | F94: =SUM(F2:F89) -> 698.1 | G94: =SUM(E94-F94) -> 19127.61

Sheet 2005
B1: 2005 UNCLAIMED MONEY | D1: CHECK OR PAYIN# | E1: REVENUE | F1: EXPENSE | G1: BALANCE
A2: DATE
G3: 359640.24
A4: 2005-01-19 | B4: G. ROSSITER CK#272032 | C4: R | D4: 6511 | E4: 20 | G4: =(G3-F4+E4) -> 359660.24
A5: 2005-01-19 | B5: J. NEEDLER CK#275143 | C5: R | D5: 6511 | E5: 20 | G5: 359680.24
A6: 2005-01-19 | B6: R. TINKER CK#269211 | C6: R | D6: 6511 | E6: 20 | G6: 359700.24
A7: 2005-01-19 | B7: T. FURMAN CK#267890 | C7: R | D7: 6511 | E7: 20 | G7: 359720.24
A8: 2005-01-19 | B8: G. HAMALAINEN CK#269271 | C8: R | D8: 6512 | E8: 20 | G8: 359740.24
A9: 2005-01-19 | B9: L. GLEASON CK#266984 | C9: R | D9: 6513 | E9: 5 | G9: 359745.24
A10: 2005-01-19 | B10: M. WINCHELL CK#269164 | C10: R | D10: 6514 | E10: 4.18 | G10: 359749.42
A11: 2005-01-19 | B11: D. LONGSTREET CK#270349 | C11: R | D11: 6515 | E11: 20 | G11: 359769.42
A12: 2005-01-19 | B12: J. LITWILER CK#270308 | C12: R | D12: 6516 | E12: 20 | G12: 359789.42
A13: 2005-01-27 | B13: DONNA MAYER UNCLAIMED CK#264413 | C13: CK | D13: 294178 | F13: 40 | G13: 359749.42
A14: 2005-02-07 | B14: BRITT SCHWOTZER CK#270343 | C14: R | D14: 6569 | E14: 20 | G14: 359769.42
A15: 2005-02-07 | B15: KRISTIE KINAS WEAVER CK#269904 | C15: R | D15: 6569 | E15: 20 | G15: 359789.42
A16: 2005-02-07 | B16: JD'S PIZZA CK#272190 | C16: R | D16: 6570 | E16: 17 | G16: 359806.42
A17: 2005-02-07 | B17: KORI R SHELDON CK#272024 | C17: R | D17: 6571 | E17: 8 | G17: 359814.42
A18: 2005-02-07 | B18: MEGAN J. KLEIN CK#270190 | C18: R | D18: 6572 CL 3/2/05 | E18: 2.63 | G18: 359817.05
A19: 2005-02-07 | B19: RYAN HAMILTON CK#272289 | C19: R | D19: 6573 | E19: 6.5 | G19: 359823.55
A20: 2005-02-07 | B20: SANDRA BROWN CK#272137 | C20: R | D20: 6574 | E20: 20 | G20: 359843.55
A21: 2005-03-02 | B21: MEGAN J. KLEIN UNCLAIMED CK#270190 | C21: CK | D21: 296712 | F21: 2.63 | G21: 359840.92
A22: 2005-03-02 | B22: TYE R. TYSON CK#278460 | C22: R | D22: 6633 | E22: 8 | G22: 359848.92
A23: 2005-03-02 | B23: ALLTEL CK#272699 | C23: R | D23: 6634 | E23: 75.48 | G23: 359924.4
A24: 2005-03-02 | B24: D. PENTEK CK#272993 | C24: R | D24: 6635 | E24: 20 | G24: 359944.4
A25: 2005-03-02 | B25: D. ORSUTO CK#273011 | C25: R | D25: 6635 | E25: 20 | G25: 359964.4
A26: 2005-03-02 | B26: J. MARTIN CK#273019 | C26: R | D26: 6635 | E26: 60 | G26: 360024.4
A27: 2005-03-02 | B27: TREASURER OF STATE CK#273325 | C27: R | D27: 6636 | E27: 226.44 | G27: 360250.84
A28: 2005-03-07 | B28: SECURITY TECHNOLOGIES CK#278197 | C28: R | D28: 6644 | E28: 138 | G28: 360388.84
A29: 2005-03-07 | B29: JOHN P BUDY CK#279856 | C29: R | D29: 6645 | E29: 6 | G29: 360394.84
A30: 2005-03-07 | B30: JOANN KLAUS CK#282356 | C30: R | D30: 6646 | E30: 20 | G30: 360414.84
A31: 2005-03-11 | B31: BEVERLY BURDETTE CK#280967 | C31: R | D31: 6663 | E31: 8 | G31: 360422.84
A32: 2005-04-11 | B32: UNCLAIMED MONEY WESTERN CTY CT | C32: P | D32: 50440 | E32: 702.6 | G32: 361125.44
A33: 2005-04-27 | B33: ANTHONY FIX CK#275153 | C33: R | D33: 6749 CL 8/12/05 | E33: 20 | G33: 361145.44
A34: 2005-04-27 | B34: EDWARD BURNS CK#275476 | C34: R | D34: 6749 | E34: 20 | G34: 361165.44
A35: 2005-04-27 | B35: JOHN SHAMRAY CK#277183 | C35: R | D35: 6750 | E35: 6 | G35: 361171.44
A36: 2005-04-27 | B36: C. VENTURELLA CK#296363 | C36: R | D36: 6751 | E36: 9 | G36: =(G35-F36+E36) -> 361180.44
A37: 2005-04-27 | B37: G. BUTTE JR. CK#296369 | C37: R | D37: 6751 | E37: 6.2 | G37: 361186.64
A38: 2005-04-27 | B38: J. MCNUTT CK#296372 | C38: R | D38: 6751 | E38: 10 | G38: 361196.64
A39: 2005-05-12 | B39: K. COSME CK#286931 | C39: R | D39: 6758 | E39: 8 | G39: 361204.64
A40: 2005-05-12 | B40: M. MOREFIELD CK#282587 | C40: R | D40: 6758 | E40: 20 | G40: 361224.64
A41: 2005-05-12 | B41: G. MCGIRR CK#285957 | C41: R | D41: 6758 | E41: 10.4 | G41: 361235.04
A42: 2005-05-11 | B42: UNCLAIMED FUNDS 04/05 | C42: P | D42: 50852 | E42: 65 | G42: 361300.04
A43: 2005-04-13 | B43: UNCLAIMED FUNDS 04/05 | C43: P | D43: 50476 | E43: 6924.25 | G43: 368224.29
A44: 2005-05-31 | B44: W. PARKOMAKI CK#283879 | C44: R | D44: 6834 | E44: 8 | G44: 368232.29
A45: 2005-05-31 | B45: L. PERFETTO CK#279621 | C45: R | D45: 6836 | E45: 6 | G45: 368238.29
A46: 2005-05-27 | B46: UNCLAIMED MONEY SHERIFF $24,359.19 | C46: P | D46: 51098 CL6/9/06 | E46: 81260.75 | G46: 449499.04
A47: 2005-06-02 | B47: D. PERFETTO CK#279867 | C47: R | D47: 6839 | E47: 6.6 | G47: 449505.64
A48: 2005-06-02 | B48: R. ROTH JR. CK#281045 | C48: R | D48: 6839 | E48: 20 | G48: 449525.64
A49: 2005-06-02 | B49: S. ROSS CK#280974 | C49: R | D49: 6839 | E49: 8 | G49: 449533.64
A50: 2005-06-02 | B50: LITTON LOAN SERVICING, LP | C50: R | D50: 6840 | E50: 708 | G50: 450241.64
A51: 2005-06-09 | B51: CHARLES RALPH UNCLAIMED CK RE:PAYIN 51098 | C51: CK | D51: 304119 | F51: 8119.73 | G51: 442121.91
A52: 2005-06-09 | B52: JESSICA (RALPH) BRASS UNCL CK RE:PAYIN 51098 | C52: CK | D52: 304120 | F52: 8119.73 | G52: 434002.18
A53: 2005-06-14 | B53: DARLA RALPH FOR LISA RALPH RE:PAYIN 51098 | C53: CK | D53: 304445 | F53: 8119.73 | G53: 425882.45
A54: 2005-06-15 | B54: G. KOROVICH CK#282602 | C54: R | D54: 6881 | E54: 20 | G54: 425902.45
A55: 2005-07-20 | B55: SALLY RICHARDS UNCL CK RE:PAYIN 106254 | C55: CK | D55: 306833 | F55: 40 | G55: 425862.45
A56: 2005-07-25 | B56: ALLEGHENY CO SHERIFF DEPT CK#284648 | C56: R | D56: 7005 | E56: 53 | G56: 425915.45
A57: 2005-07-25 | B57: JEREMIAH BELT CK#283288 | C57: R | D57: 7006 | E57: 20 | G57: 425935.45
A58: 2005-07-25 | B58: CHRISTINA POULTER CK#283996 | C58: R | D58: 7006 CL 7/28/05 | E58: 20 | G58: 425955.45
A59: 2005-07-25 | B59: CHRISTINA WARD CK#284087 | C59: R | D59: 7006 | E59: 40 | G59: 425995.45
A60: 2005-07-25 | B60: NICOLE WHITING CK#283883 | C60: R | D60: 7007 | E60: 6 | G60: 426001.45
A61: 2005-07-25 | B61: JACK SCHWEITZER JR. CK#283251 | C61: R | D61: 7008 | E61: 11 | G61: 426012.45
A62: 2005-07-25 | B62: CHRISTOPHER WALKER CK#283241 | C62: R | D62: 7009 | E62: 20 | G62: 426032.45
A63: 2005-07-25 | B63: SHEILA BENCAR CK#290358 | C63: R | D63: 7010 | E63: 20 | G63: 426052.45
A64: 2005-07-25 | B64: PATRICIA A STEVENSON CK#292133 | C64: R | D64: 7010 | E64: 20 | G64: 426072.45
A65: 2005-07-25 | B65: EUGENE M. SZABO CK#287586 | C65: R | D65: 7011 | E65: 20 | G65: 426092.45
A66: 2005-07-25 | B66: RACHEL SHOENBERGER CK#286929 | C66: R | D66: 7012 | E66: 8 | G66: 426100.45
A67: 2005-07-28 | B67: CHRISTINA POULTER CK#283996 UNCL MONEY | C67: CK | D67: 307642 | F67: 20 | G67: 426080.45
A68: 2005-08-02 | B68: JESSICA LOTT CK#287019 | C68: R | D68: 7039 | E68: 20 | G68: =(G67-F68+E68) -> 426100.45
A69: 2005-08-02 | B69: ORWELL AREA JT REC DISTRICT CK#285211 | C69: R | D69: 7040 CL 8/12/05 | E69: 106.28 | G69: 426206.73
A70: 2005-08-02 | B70: ORWELL AREA JT REC DISTRICT CK#285169 | C70: R | D70: 7041 CL 8/12/05 | E70: 463.23 | G70: 426669.96
A71: 2005-08-02 | B71: JAMES R. PETRUSO CK#285082 | C71: R | D71: 7042 | E71: 14 | G71: 426683.96
A72: 2005-08-02 | B72: T. BUSCH AUTOMOTIVE CK#284975 | C72: R | D72: 7043 CL 6/6/07 | E72: 45 | G72: 426728.96
A73: 2005-08-10 | B73: FRANCES PUDDER CK#291728 | C73: R | D73: 7053 | E73: 20 | G73: 426748.96
A74: 2005-08-12 | B74: ORWELL AREA JT REC DIST CK#285211, 285169 | C74: CK | D74: 308579 | F74: 569.51 | G74: 426179.45
A75: 2005-08-12 | B75: ANTHONY FIX CK#275153 UNCL MONEY | C75: CK | D75: 308582 | F75: 20 | G75: 426159.45
A76: 2005-09-12 | B76: ELEANOR ABBOTT CK#288491 | C76: R | D76: 7120 | E76: 85 | G76: 426244.45
A77: 2005-09-12 | B77: CHAD M. BROWN CK#290489 | C77: R | D77: 7120 | E77: 8 | G77: 426252.45
A78: 2005-09-12 | B78: EDWARD A CIGANY CK#290357 | C78: R | D78: 7120 | E78: 20 | G78: 426272.45
A79: 2005-09-12 | B79: MARK LICATE CK#290478 | C79: R | D79: 7120 CL 2/23/06 | E79: 20 | G79: 426292.45
A80: 2005-09-16 | B80: CINGULAR INTERACTIVE CK#293655 | C80: R | D80: 7127 | E80: 235.46 | G80: 426527.91
A81: 2005-10-12 | B81: KARELYN THOMAS CK#298567 UNCL MONEY | C81: R | D81: 7208 | E81: 23.2 | G81: 426551.11
A82: 2005-10-24 | B82: MARK LICATE CK#290478 UNCL MONEY | C82: CK | D82: 313921 | F82: 20 | G82: 426531.11
A83: 2005-10-25 | B83: NICOLE WORDEN CK#312219 | C83: R | D83: 7234 | E83: 15 | G83: 426546.11
A84: 2005-11-08 | B84: HELLER FINANCIAL LEASING CK#297265 | C84: R | D84: 7270 CL 2/23/06 | E84: 128.1 | G84: 426674.21
A85: 2005-11-08 | B85: KING BURGESS CK#299414 | C85: R | D85: 7271 CL 1/24/06 | E85: 6 | G85: 426680.21
A86: 2005-12-15 | B86: SHERI COLLINS CK#296384 | C86: R | D86: 7367 | E86: 8 | G86: 426688.21
A87: 2005-12-15 | B87: PAUL W. HUDDLESTON CK#296445 | C87: R | D87: 7367 | E87: 20 | G87: 426708.21
A88: 2006-07-05 | B88: UNCLAIMED MONEY 7/05 | C88: P | D88: 51595 CL 4/16/08-270.00 | E88: 504.84 | G88: 427213.05
A89: 2006-07-20 | B89: ESTATE OF JAMES BOGGESS | C89: P | D89: 51774 | E89: 234.42 | G89: 427447.47
A90: 2006-07-22 | B90: UNCLAIMED FUNDS 07/05 | C90: P | D90: 51806 | E90: 371.97 | G90: 427819.44
E92: =SUM(E4:E91) -> 93250.53 | F92: =SUM(F4:F91) -> 25071.33
F93: =E92-F92 -> 68179.2

Sheet 2004
B1: 2004 UNCLAIMED MONEY | D1: CHECK OR PAYIN# | E1: REVENUE | F1: EXPENSE | G1: BALANCE
A2: DATE
G3: 332660.27
A4: 2003-01-08 | B4: LILLIE WARNER 60-019-00-019-00 | C4: P | D4: 44196 | E4: 95.72 | G4: =(G3-F4+E4) -> 332755.99
A5: 2004-02-04 | B5: LEO WARSING CK#237142 | C5: R | D5: 5684 | E5: 20 | G5: =(G4-F5+E5) -> 332775.99
A6: 2004-02-04 | B6: COLLEEN STAILEY CK#236739 | C6: R | D6: 5685 | E6: 54 | G6: 332829.99
A7: 2004-02-04 | B7: VITAL RECORDS CK#237584 | C7: R | D7: 5686 | E7: 10 | G7: 332839.99
A8: 2004-02-04 | B8: CHERI BISHOP CK#237322 | C8: R | D8: 5687 | E8: 10 | G8: 332849.99
A9: 2004-02-04 | B9: SCOTT SACKETT CK#240394 | C9: R | D9: 5688 | E9: 20.3 | G9: 332870.29
A10: 2004-02-11 | B10: ASHLEY LOGGINS CK#237304 | C10: R | D10: 5704 | E10: 6 | G10: 332876.29
A11: 2004-02-11 | B11: DONALD F GOSSETT CK#237290 | C11: R | D11: 5704 | E11: 6 | G11: 332882.29
A12: 2004-02-11 | B12: JEANNA WALKUP CK#237310 | C12: R | D12: 5705 | E12: 6 | G12: 332888.29
A13: 2004-02-11 | B13: RYAN WALKUP CK#237309 | C13: R | D13: 5705 | E13: 6.2 | G13: 332894.49
A14: 2004-02-11 | B14: ADAM HARJU CK#239138 | C14: R | D14: 5706 CL 4/8/04 | E14: 20 | G14: 332914.49
A15: 2004-02-11 | B15: WILLIAM MURPHY CK#239143 | C15: R | D15: 5706 | E15: 20 | G15: 332934.49
A16: 2004-02-19 | B16: RETURN OF FUNDS TO ALLTEL REPL CK161267 | C16: CK | D16: 265549 | F16: 1174.29 | G16: 331760.2
A17: 2004-02-24 | B17: JOHN L. SPADE CK#247764 | C17: R | D17: 5738 | E17: 120 | G17: 331880.2
A18: 2004-03-09 | B18: STAR BEACON CK#242294 | C18: R | D18: 5743 | E18: 832.2 | G18: 332712.4
A19: 2004-03-09 | B19: MICHAEL OSLEJSEK CK#240178 | C19: R | D19: 5744 | E19: 6 | G19: 332718.4
A20: 2004-03-09 | B20: PATRICIA CARR CK#241955 | C20: R | D20: 5745 | E20: 20 | G20: 332738.4
A21: 2004-03-09 | B21: WENDY SIMPSON CK#241962 | C21: R | D21: 5746 | E21: 9 | G21: 332747.4
A22: 2004-03-09 | B22: RODEST BLACK CK#240157 | C22: R | D22: 5747 | E22: 6 | G22: 332753.4
A23: 2004-03-09 | B23: SHERI COLLINS CK#240159 | C23: R | D23: 5747 | E23: 8 | G23: 332761.4
A24: 2004-03-09 | B24: THOMAS P CLEMENS JR CK#240152 | C24: R | D24: 5747 | E24: 8 | G24: 332769.4
A25: 2004-04-08 | B25: ADAM HARJU CK#239138 REPL CHECK | C25: CK | D25: 270386 | F25: 20 | G25: 332749.4
A26: 2004-04-20 | B26: JOSHUA E CHURCH CK#243010 | C26: R | D26: 5867 | E26: 6.6 | G26: 332756
A27: 2004-05-11 | B27: WARSING, JAMES WJW ENTERPRISES PAYIN 45430 | C27: CK | D27: 273166 | F27: 755.9 | G27: 332000.1
A28: 2004-06-07 | B28: ADAM SIMONS CK#246829 | C28: R | D28: 5977 | E28: 8 | G28: 332008.1
A29: 2004-06-07 | B29: HAROLD WARD CK#246831 | C29: R | D29: 5977 | E29: 6 | G29: 332014.1
A30: 2004-06-07 | B30: LEE HUNT CK#246827 | C30: R | D30: 5977 | E30: 11 | G30: 332025.1
A31: 2004-06-07 | B31: ROBERT D STELL CK#248389 | C31: R | D31: 5977 | E31: 8 | G31: 332033.1
A32: 2004-06-07 | B32: JESSICA L MILLS CK#248388 | C32: R | D32: 5977 | E32: 20 | G32: 332053.1
A33: 2004-06-07 | B33: ANTHONY TAI FLEISSNER CK#255110 | C33: R | D33: 5977 | E33: 6 | G33: 332059.1
A34: 2004-06-07 | B34: JOHN C. SICKAFOOSE CK#250709 | C34: R | D34: 5978 | E34: 10 | G34: 332069.1
A35: 2004-06-07 | B35: CORY S. DARBY CK#252693 | C35: R | D35: 5978 | E35: 7.4 | G35: 332076.5
A36: 2004-06-07 | B36: SUSAN OBHOF CK#248025 | C36: R | D36: 5978 | E36: 6.05 | G36: 332082.55
A37: 2004-06-07 | B37: WILLIE WALKER CK#248024 | C37: R | D37: 5978 | E37: 6.1 | G37: 332088.65
A38: 2004-06-07 | B38: MARK D. CAMERON CK#250100 | C38: R | D38: 5979 | E38: 20 | G38: 332108.65
A39: 2004-06-07 | B39: ROBERT B. EDWARDS CK#246355 | C39: R | D39: 5980 | E39: 20 | G39: 332128.65
A40: 2004-06-07 | B40: MARCEL ALEXANDER CK#246251 | C40: R | D40: 5981 | E40: 12 | G40: 332140.65
A41: 2004-06-07 | B41: ASHTABULA CO. BAR ASSOC CK#255745 | C41: R | D41: 5982 | E41: 1300 | G41: 333440.65
A42: 2004-06-07 | B42: MOORE'S FARM & TRACTOR SERVICE CK#254055 | C42: R | D42: 5983 | E42: 21.73 | G42: 333462.38
A43: 2004-06-07 | B43: CURTIS GRIFFITH CK#249313 | C43: R | D43: 5984 CL 3/10/06 | E43: 500 | G43: 333962.38
A44: 2004-06-07 | B44: TREASURER OF STATE OF OHIO CK#255437 | C44: R | D44: 5985 | E44: 225 | G44: 334187.38
A45: 2004-07-21 | B45: PAULA BELL UNCLAIMED CK7918 1997CR185 | C45: CK | D45: 278905 | F45: 125.27 | G45: 334062.11
A46: 2004-08-20 | B46: DOMINIC DLUGOS CK#255083 | C46: R | D46: 6144 | E46: 3.65 | G46: 334065.76
A47: 2004-08-20 | B47: VITAL RECORDS CK#252515 | C47: R | D47: 6145 | E47: 4 | G47: 334069.76
A48: 2004-08-20 | B48: JAMES D FAWLEY, JUROR CK#263238 | C48: R | D48: 6146 | E48: 20 | G48: 334089.76
A49: 2004-08-20 | B49: THOMAS SESPICO CK#261331 | C49: R | D49: 6147 | E49: 11 | G49: 334100.76
A50: 2004-08-20 | B50: FARRELL WEGER CK#280976 | C50: R | D50: 6147 | E50: 6 | G50: 334106.76
A51: 2004-10-26 | B51: ROBERT DEKLAVEN CK#256472 | C51: R | D51: 6331 | E51: 11 | G51: 334117.76
A52: 2004-10-26 | B52: DAVID A CUCCARO CK#256471 | C52: R | D52: 6331 | E52: 11 | G52: 334128.76
A53: 2004-10-26 | B53: APPLEWOOD CENTER CK#260488 | C53: R | D53: 6332 | E53: 194.96 | G53: 334323.72
A54: 2004-10-26 | B54: JD'S PIZZA CK#258561 | C54: R | D54: 6333 CL 10/29/04 | E54: 17 | G54: 334340.72
A55: 2004-10-26 | B55: KRISTEN A. BOWSER CK#259295 | C55: R | D55: 6334 | E55: 20 | G55: 334360.72
A56: 2004-10-26 | B56: NANCY SINTIC CK#259196 | C56: R | D56: 6335 | E56: 20 | G56: 334380.72
A57: 2004-10-26 | B57: RALPH A. TRESSLER CK#263304 | C57: R | D57: 6336 | E57: 20 | G57: 334400.72
A58: 2004-10-26 | B58: CHRISTA HENDRICKS CK#269184 | C58: R | D58: 6337 | E58: 6 | G58: 334406.72
A59: 2004-10-29 | B59: JD'S PIZZA UNCLAIMED CK#258561 | C59: CK | D59: 287023 | F59: 17 | G59: 334389.72
A60: 2004-12-13 | B60: KATHLEEN THOM CK#269210 | C60: R | D60: 6449 | E60: 20 | G60: 334409.72
A61: 2004-12-13 | B61: DONNA M. MAYER CK#264413 | C61: R | D61: 6449 CL 1/27/05 | E61: 40 | G61: 334449.72
A62: 2004-12-13 | B62: APPLEWOOD CENTER CK#264444 | C62: R | D62: 6450 | E62: 193.24 | G62: 334642.96
A63: 2004-12-13 | B63: APPLEWOOD CENTER CK#262052 | C63: R | D63: 6451 | E63: 87.8 | G63: 334730.76
A64: 2004-12-13 | B64: GARTH E STEVENS II CK#265688 | C64: R | D64: 6452 | E64: 8 | G64: 334738.76
A65: 2004-12-13 | B65: JOSHUA S TRIMBATH CK#265796 | C65: R | D65: 6453 | E65: 20 | G65: 334758.76
A66: 2004-12-13 | B66: TRISHA THOMPSON CK#262528 | C66: R | D66: 6454 | E66: 6 | G66: 334764.76
A67: 2004-12-21 | B67: KENNETH HOUCK CK#269150 | C67: R | D67: 6485 | E67: 1.45 | G67: 334766.21 | H67: 334766.21

Sheet 2003
B1: 2003 UNCLAIMED MONEY | D1: CHECK OR PAYIN# | E1: REVENUE | F1: EXPENSE | G1: BALANCE
G3: 305420.49
A4: 2003-02-18 | B4: CLERK OF COURTS UNCLAIMED FUNDS | C4: P | D4: 34427 | E4: 2429.96 | G4: =(G3+E4) -> 307850.45
A5: 2003-03-19 | B5: STALE DATED CK203582 JAMES PRENTICE | C5: R | D5: 4877 | E5: 25 | G5: 307875.45
A6: 2003-03-19 | B6: STALE DATED CK211669 MARILYN SMITH | C6: R | D6: 4878 | E6: 9 | G6: 307884.45
A7: 2003-03-19 | B7: STALE DATED CK211104 DANIEL PETROVICH | C7: R | D7: 4879 | E7: 25 | G7: 307909.45
A8: 2003-03-19 | B8: STALE DATED CK206094 ANGEL GARCIA | C8: R | D8: 4880 | E8: 6 | G8: 307915.45
A9: 2003-03-19 | B9: STALE DATED CK206100 JAMES A JACKSON | C9: R | D9: 4881 | E9: 8 | G9: 307923.45
A10: 2003-05-27 | B10: STALE DATED CK212388 AMY BETH ZHENG | C10: R | D10: 5061 | E10: 8 | G10: 307931.45
A11: 2003-05-28 | B11: UNCLAIMED FUNDS FROM SHERIFF'S SALE | C11: T | D11: 5062 CL/5/29/03-3060.60 | E11: 26027.29 | G11: 333958.74
A12: 2003-05-29 | B12: RETURN OF FUNDS-ASH. CO. SHERIFF | C12: CK | D12: 242651 | F12: 3060.6 | G12: =(G11+E12-F12) -> 330898.14
A13: 2003-06-11 | B13: STALE DATED CK218221 ANGELA GILLIAN | C13: R | D13: 5114 | E13: 6 | G13: =(G12+E13-F13) -> 330904.14
A14: 2003-06-11 | B14: STALE DATED CK214897 CINDY MCGEE | C14: R | D14: 5115 | E14: 20 | G14: 330924.14
A15: 2003-06-11 | B15: STALE DATED CK218222 DEBBIE GOODRICH | C15: R | D15: 5116 | E15: 10 | G15: 330934.14
A16: 2003-06-11 | B16: STALE DATED CK341948 DEBORAH LEE MCLEOD | C16: R | D16: 5117 | E16: 1.44 | G16: 330935.58
A17: 2003-06-11 | B17: STALE DATED CK218230 JESSE KOLFF | C17: R | D17: 5118 | E17: 9.2 | G17: 330944.78
A18: 2003-06-11 | B18: STALE DATED CK215847 LINDA RAE FRAHM | C18: R | D18: 5119 | E18: 40 | G18: 330984.78
A19: 2003-07-08 | B19: STALE DATED CK219833 FRANK PIERT | C19: R | D19: 5189 | E19: 6 | G19: 330990.78
A20: 2003-07-08 | B20: STALE DATED CK220250 ELAINE CHRISTEN | C20: R | D20: 5189 | E20: 20 | G20: 331010.78
A21: 2003-07-09 | B21: UNCLAIMED FUNDS FROM SHERIFF'S SALE | C21: P | D21: 37432 | E21: 1306.36 | G21: 332317.14
A22: 2003-07-21 | B22: UNCLAIMED CK#229297 BG MANAGEMENT | C22: R | D22: 5223 | E22: 9.95 | G22: 332327.09
A23: 2003-08-11 | B23: UNCLAIMED CK222852 ILENE BAKER | C23: R | D23: 5267 | E23: 20 | G23: 332347.09
A24: 2003-08-11 | B24: UNCLAIMED CK222865 LINDA NERAD | C24: R | D24: 5267 | E24: 20 | G24: 332367.09
A25: 2003-09-17 | B25: UNCLAIMED CK231570 ROBERT ALDERMAN | C25: R | D25: 5340 | E25: 40 | G25: 332407.09
A26: 2003-09-17 | B26: UNCLAIMED CK350007 DEBORAH LEE MCLEOD | C26: R | D26: 5341 | E26: 5.78 | G26: 332412.87
A27: 2003-09-17 | B27: UNCLAIMED CK226775 JACKIE ASHLEY | C27: R | D27: 5342 | E27: 8 | G27: 332420.87
A28: 2003-09-17 | B28: UNCLAIMED CK226891 JEREMY MCGHEE | C28: R | D28: 5343 | E28: 20 | G28: 332440.87
A29: 2003-09-17 | B29: UNCLAIMED CK226134 WASHINGTON ELEM. | C29: R | D29: 5344 | E29: 11 | G29: 332451.87
A30: 2003-10-22 | B30: UNCLAIMED CK228324 JOANN YAEGER, JUROR | C30: R | D30: 5427 | E30: 40 | G30: 332491.87
A31: 2003-12-11 | B31: UNCLAIMED CK231531 CHRISTOPHER DEFINA | C31: R | D31: 5523 | E31: 20 | G31: 332511.87
A32: 2003-12-11 | B32: UNCLAIMED CK231486 PAUL DOMBROWSKI | C32: R | D32: 5523 | E32: 20 | G32: 332531.87
A33: 2003-12-11 | B33: UNCLAIMED CK231590 GREGORY LYLE | C33: R | D33: 5524 | E33: 6 | G33: 332537.87
A34: 2003-12-11 | B34: UNCLAIMED CK231551 TONY WILLIAMS | C34: R | D34: 5524 | E34: 8 | G34: 332545.87
A35: 2003-12-11 | B35: UNCLAIMED CK234159 DONALD J SCHROEDER | C35: R | D35: 5551 | E35: 20 | G35: 332565.87
A36: 2003-12-11 | B36: UNCLAIMED CK234149 DONALD J SCHROEDER | C36: R | D36: 5551 | E36: 20 | G36: 332585.87
A37: 2003-12-11 | B37: UNCLAIMED CK233383 DONALD J SCHROEDER | C37: R | D37: 5551 | E37: 20 | G37: 332605.87
A38: 2003-12-11 | B38: UNCLAIMED CK234562 JAMIE CHAPIN | C38: R | D38: 5552 | E38: 6 | G38: 332611.87
A39: 2003-12-11 | B39: UNCLAIMED CK234556 NEAL STEWART | C39: R | D39: 5552 | E39: 8.4 | G39: 332620.27
A40: 2003-12-11 | B40: UNCLAIMED CK234094 PATRICIA PARCO | C40: R | D40: 5552 | E40: 6 | G40: 332626.27
A41: 2003-12-11 | B41: UNCLAIMED CK234172 FRANCINE COREY | C41: R | D41: 5553 | E41: 8 | G41: 332634.27
A42: 2003-12-11 | B42: UNCLAIMED CK234176 COREY THORNTON | C42: R | D42: 5553 | E42: 6 | G42: 332640.27
A43: 2003-12-11 | B43: UNCLAIMED CK234582 BEVERLY JACOBSON | C43: R | D43: 5554 | E43: 20 | G43: 332660.27

Sheet 2002
B1: 2002 UNCLAIMED MONEY | D1: CHECK OR PAYIN# | E1: REVENUE | F1: EXPENSE | G1: BALANCE
G2: 301932.2
A3: 01/17 | B3: SHERIFFS DEPT UNCLAIMED SEE LIST | C3: P | D3: 28862 | E3: 658.32 | G3: =G2+E3-F3 -> 302590.52
A4: 02/05 | B4: STALE DATED CK 172668 WILLENE KIRBY | C4: R | D4: 3908 | E4: 25 | G4: 302615.52
A5: 02/05 | B5: STALE DATED CK 171417 VITAL RECORDS | C5: R | D5: 3909 | E5: 4 | G5: 302619.52
A6: 02/05 | B6: STALE DATED CK 172092 OH SCHOOL FACILITIES | C6: R | D6: 3910 | E6: 6.34 | G6: 302625.86
A7: 03/05 | B7: STALE DATED CK174752 MICHELLE WELLS | C7: R | D7: 3979 | E7: 6 | G7: 302631.86
A8: 03/05 | B8: STALE DATED CK 290709 VELMATINE SMITH | C8: R | D8: 3980 | E8: 1.17 | G8: 302633.03
A9: 04/22 | B9: STALE DATED CK 179332 DANIEL C PETROVICH | C9: R | D9: 4060 CL 5/23/02 | E9: 25 | G9: 302658.03
A10: 04/22 | B10: STALE DATED CK 179534 TRACIE TOWNER | C10: R | D10: 4061 | E10: 8 | G10: 302666.03
A11: 04/22 | B11: EASTERN CTY COURT UNCLAIMED SEE LIST | C11: P | D11: 30243 | E11: 6.7 | G11: 302672.73
A12: 05/01 | B12: COMMON PLEAS COURT UNCLAIMED SEE LIST | C12: P | D12: 30401 | E12: 11580.39 | G12: 314253.12
A13: 05/23 | B13: RETURN OF FUNDS TO DANIEL C PETROVICH | C13: CK | D13: 211104 | F13: 25 | G13: 314228.12
A14: 06/04 | B14: STALE DATED CK 188470 VICTORIA SASSMANNH | C14: R | D14: 4183 | E14: 10 | G14: 314238.12
A15: 06/04 | B15: STALE DATED CK 190249 CHAD M BROWN | C15: R | D15: 4184 | E15: 8 | G15: 314246.12
A16: 06/04 | B16: STALE DATED CK 210851 LAURA PEBBLES | C16: R | D16: 4185 | E16: 85 | G16: 314331.12
A17: 06/12 | B17: STALE DATED CK 181900 BP PRODUCTS, NORTH | C17: R | D17: 4199 | E17: 19.49 | G17: 314350.61
A18: 06/12 | B18: STALE DATED CK 183831 DAVID MEZERKOR | C18: R | D18: 4200 | E18: 50 | G18: 314400.61
A19: 06/12 | B19: STALE DATED CK 182085 GINA CIFELLI | C19: R | D19: 4201 | E19: 8 | G19: 314408.61
A20: 06/12 | B20: STALE DATED CK 181760 PAT KIFER | C20: R | D20: 4202 | E20: 30 | G20: 314438.61
A21: 07/23 | B21: STALE DATED CK 190705 ERIE CO SHERIFFS DEPT | C21: R | D21: 4290 | E21: 76 | G21: 314514.61
A22: 07/23 | B22: STALE DATED CK 190116 MARLENE BEAVERS | C22: R | D22: 4291 | E22: 6 | G22: 314520.61
A23: 07/23 | B23: STALE DATED CK 320043 JULIE ZETLAW | C23: R | D23: 4292 | E23: 0.02 | G23: 314520.63
A24: 09/10 | B24: STALE DATED CK 195031 ANNIE B HENSON | C24: R | D24: 4400 | E24: 85 | G24: 314605.63
A25: 09/10 | B25: STALE DATED CK 195862 LINDA M WESTON | C25: R | D25: 4401 | E25: 25 | G25: 314630.63
A26: 09/10 | B26: STALE DATED CK 192035 PIZZA JOE'S | C26: R | D26: 4402 | E26: 45.16 | G26: 314675.79
A27: 09/10 | B27: STALE DATED CK 192493 VITAL RECORDS | C27: R | D27: 4403 | E27: 4 | G27: 314679.79
A28: 09/10 | B28: STALE DATED CK 320038 DAWN WILLIAMS | C28: R | D28: 4404 | E28: 0.34 | G28: 314680.13
A29: 09/10 | B29: STALE DATED CK 191926 LAKE CO ASSOC CHIEF | C29: R | D29: 4405 | E29: 35 | G29: 314715.13
A30: 10/08 | B30: STALE DATED CK 196756 KEY BANK | C30: R | D30: 4452 | E30: 79.56 | G30: 314794.69
A31: 10/08 | B31: STALE DATED CK 198444 SHARP ELECTRONICS | C31: R | D31: 4453 | E31: 286.55 | G31: 315081.24
A32: 10/08 | B32: STALE DATED CK 198659 DANIEL SWAN | C32: R | D32: 4454 | E32: 6 | G32: 315087.24
A33: 11/22 | B33: STALE DATED CK 199687 SONJA HUNT | C33: R | D33: 4564 | E33: 14 | G33: 315101.24
A34: 11/22 | B34: STALE DATED CK 200477 DARRELL J THOMAS | C34: R | D34: 4565 | E34: 25 | G34: 315126.24
A35: 11/22 | B35: STALE DATED CK 200730 ROBERT E BAXTER | C35: R | D35: 4566 | E35: 125 | G35: 315251.24
A36: 11/22 | B36: STALE DATED CK 199888 BETH RAY | C36: R | D36: 4567 | E36: 8.37 | G36: 315259.61
A37: 12/13 | B37: STALE DATED CK 201119 TREVOR TRASK | C37: R | D37: 4628 | E37: 14 | G37: 315273.61
A38: 12/13 | B38: STALE DATED CK 210715 GREG AUGUSTYNIAK | C38: R | D38: 4629 | E38: 25 | G38: 315298.61
A39: 12/30 | B39: RETURN OF FUNDS-ROMEROCK ASSOCIATION | G39: 315298.61
B40: ----MICHAEL MARIANO &MARTHA MARTIN | C40: CK | D40: 229730 | F40: 9878.12 | G40: 305420.49

Sheet 2001
B1: 2001 UNCLAIMED MONEY | D1: CHECK OR PAYIN# | E1: REVENUE | F1: EXPENSE | G1: BALANCE
G2: 276851.31
A3: 02/02 | B3: STALE DATED CK 142788 NORMAN SUPPLEE | C3: R | D3: 2924 | E3: 22.5 | G3: =G2+E3-F3 -> 276873.81
A4: 02/02 | B4: STALE DATED CK 143444 MARILYN GIRMAN | C4: R | D4: 2923 | E4: 5 | G4: 276878.81
A5: 02/07 | B5: JUVENILE COURT UNCLAIMED SEE LIST | C5: P | D5: 24041 | E5: 446.63 | G5: 277325.44
A6: 02/27 | B6: STALE DATED CK 144597 SHERRY FREEMAN | C6: R | D6: 3003 | E6: 16 | G6: 277341.44
A7: 02/27 | B7: STALE DATED CK 144307 CHONI L NEAL | C7: R | D7: 3004 | E7: 6 | G7: 277347.44
A8: 02/27 | B8: STALE DATED CK 144599 MICHAEL MEREDITH | C8: R | D8: 3005 | E8: 8 | G8: 277355.44
A9: 05/23 | B9: STALE DATED CK 146620 KRISTA M KNUEBEL | C9: R | D9: 3228 | E9: 45 | G9: 277400.44
A10: 05/23 | B10: STALE DATED CK 151056 TREASURER,STATE OF | C10: R | D10: 3229 | E10: 150 | G10: 277550.44
A11: 05/23 | B11: STALE DATED CK 151226 CHONI L NEAL | C11: R | D11: 3230 | E11: 6 | G11: 277556.44
A12: 05/23 | B12: STALE DATED CK 151677 SUE JOHNSON | C12: R | D12: 3231 | E12: 30 | G12: 277586.44
A13: 05/30 | B13: EASTERN COUNTY COURT UNCLAIMED SEE LIST | C13: P | D13: 25114 | E13: 81 | G13: 277667.44
A14: 06/07 | B14: CLERK OF COURTS UNCLAIMED SEE LIST | C14: P | D14: 25854 | E14: 8368.27 | G14: 286035.71
A15: 06/09 | B15: LAND SALE #1 3/26/01 | C15: R | D15: 3283 | E15: 13203.88 | G15: 299239.59
B16: -MICHAEL J MARIANO $6618.01 | G16: 299239.59
B17: -MARTHA A MARTIN $3260.11 | G17: 299239.59
B18: -MELVYN SUSHIS $1256.07 | G18: 299239.59
B19: -ALONZO H. & DAISY THORNTON $2069.69 | G19: 299239.59
A20: 06/20 | B20: STALE DATED CK 156000 ALLTEL CORP | C20: R | D20: 3324 | E20: 28.36 | G20: 299267.95
A21: 06/20 | B21: STALE DATED CK 155447 CLEVELAND STATE UNIV | C21: R | D21: 3325 | E21: 2552.25 | G21: 301820.2 | K21: 301932.2
A22: 06/20 | B22: STALE DATED CK 153634 JASON TISCH | C22: R | D22: 3326 | E22: 6 | G22: 301826.2 | I22: 2002-12-30 | J22: 2001-06-09 | K22: -9878.12
A23: 06/20 | B23: STALE DATED CK 154242 MARK T KORFF | C23: R | D23: 3327 | E23: 9 | G23: 301835.2 | I23: 2004-02-19 | J23: 2001-10-30 | K23: -1174.29
A24: 08/24 | B24: STALE DATED CK 156549 BRENNA MARIE WHITE | C24: R | D24: 3455 | E24: 6 | G24: 301841.2 | I24: 2004-07-21 | J24: 1997-CR-185 | K24: -125.27
A25: 08/24 | B25: STALE DATED CK 158355 BRUCE THOMPSON | C25: R | D25: 3456 | E25: 45 | G25: 301886.2
A26: 08/24 | B26: STALE DATED CK 156340 GE CAPITAL CORP | C26: R | D26: 3457 | E26: 222.01 | G26: 302108.21
A27: 08/24 | B27: STALE DATED CK 156550 JAMES J ETTINGER | C27: R | D27: 3458 | E27: 6 | G27: 302114.21
A28: 08/24 | B28: STALE DATED CK 156181 SHARP ELECTRONICS | C28: R | D28: 3459 | E28: 81.87 | G28: 302196.08 | K28: =SUM(K21:K27) -> 290754.52
A29: 08/24 | B29: STALE DATED CK 156520 SHAWN R STEVENS | C29: R | D29: 3460 | E29: 8 | G29: 302204.08
A30: 08/24 | B30: STALE DATED CK 159595 ANNIE B HENSON | C30: R | D30: 3461 | E30: 5 | G30: 302209.08
A31: 08/24 | B31: STALE DATED CK 159860 STEPHEN LABOUNTY | C31: R | D31: 3462 | E31: 8 | G31: 302217.08
A32: 08/24 | B32: STALE DATED CK 160785 ST OF OHIO DEPT OF NAT | C32: R | D32: 3463 | E32: 5307.75 | G32: 307524.83
A33: 08/24 | B33: STALE DATED CK 280773 ROSIA CLARK | C33: R | D33: 3522 | E33: 0.47 | G33: 307525.3
A34: 10/15 | B34: RETURN OF FUNDS TO D. JOLLY FR LAND SALE | G34: 307525.3
B35: -ALONZO&DAISY THORNTON | C35: CK | D35: 191770 | F35: 2069.69 | G35: 305455.61
A36: 10/30 | B36: STALE DATED CK 161267 ALLTEL | C36: R | D36: 3665 | E36: 1174.29 | G36: 306629.9
A37: 10/30 | B37: STALE DATED CK 161445 ALLTEL | C37: R | D37: 3666 | E37: 91.08 | G37: 306720.98
A38: 10/30 | B38: STALE DATED CK 284261 GLORIA JEAN STILLS | C38: R | D38: 3667 | E38: 7.95 | G38: 306728.93
A39: 10/30 | B39: STALE DATED CK 164199 KIMBERLY MILBRANDT | C39: R | D39: 3668 | E39: 6 | G39: 306734.93
A40: 10/30 | B40: STALE DATED CK 161891 PAUL YOB | C40: R | D40: 3669 | E40: 6 | G40: 306740.93
A41: 10/30 | B41: STALE DATED CK 161887 WAYNE LOMAS | C41: R | D41: 3670 | E41: 22.5 | G41: 306763.43
A42: 11/09 | B42: WESTERN CTY COURT UNCLAIMED SEE LIST | C42: P | D42: 27959 | E42: 224 | G42: 306987.43
A43: 12/11 | B43: STALE DATED CK 168034 RICH HUMMEL | C43: R | D43: 3764 | E43: 240 | G43: 307227.43
A44: 12/11 | B44: STALE DATED CK 168803 BP OF JEFFERSON | C44: R | D44: 3783 | E44: 10 | G44: 307237.43
A45: 12/11 | B45: STALE DATED CK 170783 CLINT KINGSTON | C45: R | D45: 3784 | E45: 2.52 | G45: 307239.95
A46: 12/28 | B46: RETURN OF FUNDS TO LTV STEEL COMPANY | G46: 307239.95
B47: -ST OF OHIO DEPT OF NATURAL RESOURCES | C47: CK | D47: 198410 | F47: 5307.75 | G47: 301932.2

Sheet 2000
B1: 2000 UNCLAIMED MONEY | D1: CHECK OR PAYIN# | E1: REVENUE | F1: EXPENSE | G1: BALANCE
G2: 276730.42
A3: 01/05 | B3: UNCLAIMED MONEY IRA H. WADE 98CV450 | C3: P | D3: 19071 | E3: 360.09 | G3: =G2+E3-F3 -> 277090.51
A4: 01/13 | B4: STATE DATED CK 112302 ERNEST BURTON | C4: RE | D4: 1919 | E4: 8.4 | G4: 277098.91
A5: 01/26 | B5: LAND SALE 11/99 PER C. LOVAS | C5: RE | D5: 1966 | E5: 256.5 | G5: 277355.41
A6: 01/27 | B6: BETTY A. FRABUTT REFUND LAND SALE #1 1999 | C6: CK | D6: 138125 | F6: 12.34 | G6: 277343.07
A7: 02/10 | B7: STALE DATED CK 113680 MATTHEW KEMP | C7: RE | D7: 1971 | E7: 6 | G7: 277349.07
A8: 03/02 | B8: WESTERN COURT UNCLAIMED SEAN E STANAFORD | C8: P | D8: 19912 | E8: 25 | G8: 277374.07
A9: 03/23 | B9: STALE DATED CK 117009 MERRY L MACK | C9: RE | D9: 2115 | E9: 6 | G9: 277380.07
A10: 03/23 | B10: STALE DATED CK 119131 KENNETH SKARUPPA | C10: RE | D10: 2116 | E10: 6 | G10: 277386.07
A11: 03/23 | B11: STALE DATED CK 118349 SWEDISH PASTRY SHOP | C11: RE | D11: 2117 | E11: 32.4 | G11: 277418.47
A12: 03/23 | B12: STALE DATED CK 115060 SWEDISH PASTRY SHOP | C12: RE | D12: 2118 | E12: 32.4 | G12: 277450.87
A13: 03/23 | B13: STALE DATED CK 114855 DAVE BALLENGER | C13: RE | D13: 2119 | E13: 8 | G13: 277458.87
A14: 03/23 | B14: STALE DATED CK 114871 CREGG VAUGH | C14: RE | D14: 2120 | E14: 8 | G14: 277466.87
A15: 03/23 | B15: STALE DATED CK 116196 SCOTT G FRANCIS | C15: RE | D15: 2121 | E15: 20 | G15: 277486.87
A16: 03/23 | B16: STALE DATED CK 116201 KATHLEEN V SWEZEY | C16: RE | D16: 2122 | E16: 20 | G16: 277506.87
A17: 03/23 | B17: STALE DATED CK 116203 MARTHA CEPHAS | C17: RE | D17: 2123 | E17: 19 | G17: 277525.87
A18: 04/07 | B18: SEEK & FIND AUCTION CO - JIM MALYUK, WATERCRAFT | C18: P | D18: 19723 | E18: 242.08 | G18: 277767.95
A19: 04/11 | B19: EASTERN COURT UNCLAIMED SEE ATTACHED | C19: P | D19: 19847 | E19: 28.9 | G19: 277796.85
A20: 04/14 | B20: STALE DATED CK 127969 CARSON ESTEP | C20: RE | D20: 2177 | E20: 10.5 | G20: 277807.35
A21: 04/14 | B21: STALE DATED CK 121213 VAUGH E PAINE | C21: RE | D21: 2178 | E21: 20 | G21: 277827.35
A22: 04/14 | B22: STALE DATED CK 121874 SCOTT L GREEN | C22: RE | D22: 2179 | E22: 6.6 | G22: 277833.95
A23: 05/02 | B23: STALE DATED CK 240467 JOHN M. NAGLE | C23: RE | D23: 2216 | E23: 570.75 | G23: 278404.7
A24: 05/09 | B24: EASTERN COURT UNCLAIMED STEPHEN A. COOPER | C24: P | D24: 20255 | E24: 10 | G24: 278414.7
A25: 05/15 | B25: MOBILE HOME UNCLAIMED MCPHERSON,OBHOF,MUNGER | C25: RE | D25: 2232 | E25: 45.96 | G25: 278460.66
A26: 06/02 | B26: ROSEANN MUNGER REFUND MH UNCLAIMED MONEY | C26: CK | D26: 149047 | F26: 3.76 | G26: 278456.9
A27: 06/06 | B27: CLERK OF COURTS UNCLAIMED SEE LIST | C27: P | D27: 20628 | E27: 185.66 | G27: 278642.56
A28: 06/23 | B28: SCOTT FRANCIS CK#116196 | C28: CK | D28: 150349 | F28: 20 | G28: 278622.56
A29: 06/26 | B29: STALE DATED CK 124741 JAMES DAVID ANDERSON | C29: RE | D29: 2336 | E29: 6 | G29: 278628.56
A30: 06/26 | B30: STALE DATED CK 125427 ANTHONY SHOLTIS | C30: RE | D30: 2337 | E30: 6 | G30: 278634.56
A31: 06/26 | B31: STALE DATED CK 123369 KELLY L. CONNOLLY | C31: RE | D31: 2338 | E31: 20 | G31: 278654.56
A32: 06/26 | B32: STALE DATED CK 123118 ASHTABULA DRIVING SCHOOL | C32: RE | D32: 2339 | E32: 50 | G32: 278704.56
A33: 06/27 | B33: MK PROPERTIES LAND SALE #1 | C33: CK | D33: 151058 | F33: 5700 | G33: 273004.56
A34: 06/29 | B34: STALE DATED CK 125163 DENNIS SEARLS | C34: RE | D34: 2385 | E34: 6 | G34: 273010.56
A35: 06/30 | B35: STALE DATED CK 248615 AMY J THOMAS | C35: RE | D35: 2386 | E35: 38.25 | G35: =G34+E35-F35 -> 273048.81
A36: 07/07 | B36: JAMES DAVID ANDERSON CK#124741 | C36: CK | D36: 151314 | F36: 6 | G36: 273042.81
A37: 07/12 | B37: WESTERN COURT UNCLAIMED SEE ATTACHED | C37: P | D37: 21132 | E37: 92 | G37: 273134.81
A38: 08/02 | B38: STALE DATED CK 126913 STEVEN E PERRY | C38: RE | D38: 2467 | E38: 12 | G38: 273146.81
A39: 08/02 | B39: STALE DATED CK 126920 JAMES NEEL | C39: RE | D39: 2468 | E39: 8 | G39: 273154.81
A40: 08/16 | B40: VOIDED CK 138125 BETTY FRABUTT STALE DATED | C40: V | D40: 138125 | E40: 12.34 | G40: 273167.15
A41: 08/16 | B41: BETTY A. FRABUTT CK 154571 REPLACES 138125 | C41: CK | D41: 154571 | F41: 12.34 | G41: 273154.81
A42: 09/08 | B42: STALE DATED CK 131906 PUERTO RICO DEPT OF HEALTH | C42: RE | D42: 2555 | E42: 5 | G42: 273159.81
A43: 09/08 | B43: STALE DATED CK 132293 SWEDISH PASTRY SHOP | C43: RE | D43: 2556 | E43: 38.9 | G43: 273198.71
A44: 09/12 | B44: TREASURER UNCLAIMED OWENS INDUSTRIAL & SPANG | C44: P | D44: 21993 | E44: 177.53 | G44: 273376.24
A45: 11/06 | B45: STALE DATED CK 136437 HARGIS H HALL | C45: R | D45: 2723 | E45: 8 | G45: 273384.24
A46: 11/06 | B46: STALE DATED CK 136438 BRYAN G HERD | C46: R | D46: 2724 | E46: 6 | G46: 273390.24
A47: 11/06 | B47: STALE DATED CK 136444 MERCEDES BANKSTON | C47: R | D47: 2725 | E47: 11 | G47: 273401.24
A48: 11/14 | B48: LAND SALE PER C. LOVAS | C48: R | D48: 2759 | E48: 3336.17 | G48: 276737.41
A49: 12/08 | B49: STALE DATED CK 139009 JOSEPH H. DOWNIE III | C49: R | D49: 2813 | E49: 22.5 | G49: 276759.91
A50: 12/08 | B50: STALE DATED CK 139040 THERESCA KNAPP | C50: R | D50: 2814 | E50: 8 | G50: 276767.91
A51: 12/08 | B51: STALE DATED CK 138413 ALLEN J. TANTARI JR | C51: R | D51: 2815 | E51: 9 | G51: 276776.91
A52: 12/08 | B52: STALE DATED CK 140095 NICOLE L. KOONTZ | C52: R | D52: 2816 | E52: 12.4 | G52: 276789.31
A53: 12/08 | B53: STALE DATED CK 140096 ROSEANNE STAAB | C53: R | D53: 2817 | E53: 14 | G53: 276803.31
A54: 12/08 | B54: STALE DATED CK 138646 SHANK'S SALES & SERVICE | C54: R | D54: 2818 | E54: 48 | G54: 276851.31

Sheet 1999
B1: 1999 UNCLAIMED MONEY | D1: CHECK OR PAYIN# | E1: REVENUE | F1: EXPENSE | G1: BALANCE
G2: 236181.14
A3: 01/29 | B3: SHERIFF INMATE ACCT 1997 UNCLAIMED MONIES | C3: P | D3: 14691 | E3: 212.66 | G3: =G2+E3-F3 -> 236393.8
A4: 01/29 | B4: SHERIFF INMATE ACCT 1996 UNCLAIMED MONIES | C4: P | D4: 14690 | E4: 166.55 | G4: 236560.35
A5: 02/08 | B5: CLARENCE PILWALLIS REPLACES CK CLERK OF COURTS | C5: CK | D5: 110082 | F5: 34.36 | G5: 236525.99
A6: 02/05 | B6: JOYCE SPONTARELLI REPLACES CK#8071 96 UNCLAIM | C6: CK | D6: 109929 | F6: 8.53 | G6: 236517.46
A7: 02/24 | B7: S. NICKLE-MESSISCO CLAIMING 1996 65-002-30-049-00 | C7: CK | D7: 111527 | F7: 1021.26 | G7: 235496.2
A8: 02/25 | B8: STALE DATED CK 71560 PAUL R WNEK | C8: RE | D8: 997 | E8: 13 | G8: 235509.2
A9: 02/25 | B9: STALE DATED CK 76431 NANCY BROADSTREET | C9: RE | D9: 998 | E9: 10 | G9: 235519.2
A10: 02/25 | B10: STALE DATED CK 68539 CINDY L CALLAHAN | C10: RE | D10: 999 | E10: 10 | G10: 235529.2
A11: 02/25 | B11: STALE DATED CK 69799 CINDY L CALLAHAN | C11: RE | D11: 1000 | E11: 10 | G11: 235539.2
A12: 02/25 | B12: STALE DATED CK 76739 DEAN BUTTERFIELD | C12: RE | D12: 1001 | E12: 10 | G12: 235549.2
A13: 02/25 | B13: STALE DATED CK 80300 RICK RIMEL | C13: RE | D13: 1002 | E13: 10 | G13: 235559.2
A14: 02/25 | B14: STALE DATED CK 78109 SHARON SHOOK | C14: RE | D14: 1003 | E14: 12 | G14: 235571.2
A15: 02/25 | B15: STALE DATED CK 75891 TREVOR D TRASK | C15: RE | D15: 1004 | E15: 8 | G15: 235579.2
A16: 02/25 | B16: STALE DATED CK 68919 RICKY TURNER | C16: RE | D16: 1005 | E16: 8 | G16: 235587.2
A17: 02/25 | B17: STALE DATED CK 77769 STEFFEL HOFSTETTER | C17: RE | D17: 1006 | E17: 10 | G17: 235597.2
A18: 02/25 | B18: STALE DATED CK 75465 JOSH LIDDY | C18: RE | D18: 1007 | E18: 6 | G18: 235603.2
A19: 02/25 | B19: STALE DATED CK 67723 DALE GREEN | C19: RE | D19: 1008 | E19: 6 | G19: 235609.2
A20: 02/25 | B20: STALE DATED CK 78012 LORETTA LOTT | C20: RE | D20: 1009 | E20: 6 | G20: 235615.2
A21: 02/25 | B21: STALE DATED CK 77168 LOUISE V SMITH | C21: RE | D21: 1010 | E21: 6 | G21: 235621.2
A22: 02/25 | B22: STALE DATED CK 73503 BRANDY POTTER | C22: RE | D22: 1011 | E22: 15 | G22: 235636.2
A23: 03/04 | B23: SHERIFF UNCLAIMED MONIES PD TO TREAS DEC | C23: P | D23: 15305 | E23: 25684.08 | G23: 261320.28
A24: 03/15 | B24: STALE DATED CK 91363 TRENT LOOMIS | C24: RE | D24: 1042 | E24: 10 | G24: 261330.28
A25: 03/15 | B25: STALE DATED CK 91403 LANCE R MCCOLLUM | C25: RE | D25: 1043 | E25: 30 | G25: 261360.28
A26: 03/15 | B26: STALE DATED CK 88792 JEFFREY A HINKLE II | C26: RE | D26: 1044 | E26: 7.4 | G26: 261367.68
A27: 03/15 | B27: STALE DATED CK 84744 NICOLE LEMIRE | C27: RE | D27: 1045 | E27: 6.2 | G27: 261373.88
A28: 03/15 | B28: STALE DATED CK 81344 BRENDA HEADLEY | C28: RE | D28: 1046 | E28: 10 | G28: 261383.88
A29: 03/15 | B29: STALE DATED CK 87143 SUE CHAFFIN | C29: RE | D29: 1047 | E29: 6 | G29: 261389.88
A30: 03/15 | B30: STALE DATED CK 89484 DAPHNE KISSEL | C30: RE | D30: 1048 | E30: 6 | G30: 261395.88
A31: 03/15 | B31: STALE DATED CK 89486 DIANA L LEWIS | C31: RE | D31: 1049 | E31: 6 | G31: 261401.88
A32: 03/15 | B32: STALE DATED CK 82520 ALFRED LEWIS JR | C32: RE | D32: 1050 | E32: 6 | G32: 261407.88
A33: 03/15 | B33: STALE DATED CK 80452 ANGELA WARNER | C33: RE | D33: 1051 | E33: 6 | G33: 261413.88
A34: 04/06 | B34: STALE DATED CK 93562 PETER S VOYTKO JR | C34: RE | D34: 1091 | E34: 10 | G34: 261423.88
A35: 04/06 | B35: STALE DATED CK 92034 JON R BAKER | C35: RE | D35: 1092 | E35: 8 | G35: =G34+E35-F35 -> 261431.88
A36: 04/06 | B36: STALE DATED CK 93763 MASTAFA O CURTIS SILER | C36: RE | D36: 1093 | E36: 6 | G36: 261437.88
A37: 04/16 | B37: LAND SALE PER C. LOVAS | C37: RE | D37: 1121 | E37: 7272.18 | G37: 268710.06
A38: 04/16 | B38: LAND SALE PER C. LOVAS FLORENCE HEDRICK | C38: RE | D38: 1122 | E38: 426.81 | G38: 269136.87
A39: 04/21 | B39: EASTERN COURT UNCLAIMED MONIES | C39: P | D39: 15892 | E39: 51.7 | G39: 269188.57
A40: 05/04 | B40: LAND SALE PER C. LOVAS | C40: RE | D40: 1196 | E40: 845.47 | G40: 270034.04
A41: 05/04 | B41: CLERK OF COURTS UNCLAIMED MONIES 4/99 | C41: P | D41: 16068 | E41: 950.39 | G41: 270984.43
A42: 05/11 | B42: STALE DATED CK 96706 SHANNON L KIRCHESH | C42: RE | D42: 1199 | E42: 6 | G42: 270990.43
A43: 05/11 | B43: STALE DATED CK 96709 STEPHEN RICHARDSON | C43: RE | D43: 1200 | E43: 6 | G43: 270996.43
A44: 05/11 | B44: STALE DATED CK 96718 ORLANDO NELSON | C44: RE | D44: 1201 | E44: 6 | G44: 271002.43
A45: 05/11 | B45: STALE DATED CK 96437 OLLIE FERGUSON | C45: RE | D45: 1202 | E45: 840.57 | G45: 271843
A46: 06/11 | B46: WESTERN COURT UNCLAIMED MONIES | C46: P | D46: 16498 | E46: 108.44 | G46: 271951.44
A47: 06/11 | B47: STALE DATED CK 98836 RAYMOND P SANFORD | C47: RE | D47: 1321 | E47: 20 | G47: 271971.44
A48: 06/11 | B48: STALE DATED CK 98848 PATRICIA L RICE | C48: RE | D48: 1322 | E48: 10 | G48: 271981.44
A49: 06/11 | B49: STALE DATED CK 97123 LARRY A RUFFO JR | C49: RE | D49: 1323 | E49: 8 | G49: 271989.44
A50: 06/11 | B50: STALE DATED CK 96831 CARLOUS STURGILL | C50: RE | D50: 1324 | E50: 10 | G50: 271999.44
A51: 06/11 | B51: STALE DATED CK 93772 TED BLANKENSHIP | C51: RE | D51: 1325 | E51: 6 | G51: 272005.44
A52: 06/18 | B52: STALE DATED CK 97328 ASHTABULA TOWNSHIP | C52: RE | D52: 1336 | E52: 237.5 | G52: 272242.94
A53: 07/13 | B53: STALE DATED CK 98974 DET LARRY ELLISON | C53: RE | D53: 1421 | E53: 14 | G53: 272256.94
A54: 07/13 | B54: STALE DATED CK 99722 KEVIN M LAMBERT | C54: RE | D54: 1422 | E54: 10 | G54: 272266.94
A55: 07/13 | B55: STALE DATED CK 99735 DAVID I MOORE | C55: RE | D55: 1423 | E55: 10 | G55: 272276.94
A56: 07/13 | B56: STALE DATED CK 215917 VIRGINIA L LAKOTA | C56: RE | D56: 1424 | E56: 18.58 | G56: 272295.52
A57: 08/09 | B57: STALE DATED CK 102239 ROBERT F WOODWORTH | C57: RE | D57: 1498 | E57: 10 | G57: 272305.52
A58: 09/28 | B58: STALE DATED CK 103322 CUYAHOGA COUNTY CORONERS | C58: RE | D58: 1605 | E58: 1300 | G58: 273605.52
A59: 09/28 | B59: STALE DATED CK 104985 CUYAHOGA COUNTY CORONERS | C59: RE | D59: 1606 | E59: 1300 | G59: 274905.52
A60: 09/28 | B60: STALE DATED CK 103695 CAROL A. BROWN | C60: RE | D60: 1607 | E60: 10 | G60: 274915.52
A61: 09/28 | B61: STALE DATED CK 103722 STEVEN SCHONEMAN | C61: RE | D61: 1608 | E61: 10 | G61: 274925.52
A62: 09/28 | B62: STALE DATED CK 103711 AUGUSTUS POWELL | C62: RE | D62: 1609 | E62: 8 | G62: 274933.52
A63: 09/28 | B63: STALE DATED CK 103828 RALPH RUEBEL | C63: RE | D63: 1610 | E63: 10 | G63: 274943.52
A64: 09/28 | B64: STALE DATED CK 103821 LATASHA JACKSON | C64: RE | D64: 1611 | E64: 6.1 | G64: 274949.62
A65: 09/28 | B65: STALE DATED CK 103822 NICOLE PENTEK | C65: RE | D65: 1612 | E65: 6.1 | G65: 274955.72
A66: 09/28 | B66: STALE DATED CK 103921 LAURA S. BURGARD | C66: RE | D66: 1613 | E66: 10 | G66: 274965.72
A67: 10/08 | B67: STALE DATED CK 105603 CAROL A. BROWN | C67: RE | D67: 1629 | E67: 20 | G67: =G66+E67-F67 -> 274985.72
A68: 10/08 | B68: STALE DATED CK 105676 CUYAHOGA COUNTY CORNER | C68: RE | D68: 1630 | E68: 890 | G68: 275875.72
A69: 10/08 | B69: STALE DATED CK 107491 CUYAHOGA COUNTY CORONER | C69: RE | D69: 1631 | E69: 650 | G69: 276525.72
A70: 10/08 | B70: STALE DATED CK 106284 GTE WIRELESS | C70: RE | D70: 1632 | E70: 181.7 | G70: 276707.42
A71: 11/08 | B71: STALE DATED CK 107778 STELLA L. THOMAS | C71: RE | D71: 1715 | E71: 10 | G71: 276717.42
A72: 12/10 | B72: STALE DATED CK 110017 VICKIE BENNETT | C72: RE | D72: 1810 | E72: 8 | G72: 276725.42
A73: 12/28 | B73: WINDOW #1 OVERAGE 5-7-99 | C73: P | D73: 18990 | E73: 5 | G73: 276730.42
G74: 276730.42

Sheet 1998
B1: 1998 UNCLAIMED MONEY | D1: CHECK OR PAYIN# | E1: REVENUE | F1: EXPENSE | G1: BALANCE
G2: 197120.51
A3: 1/30 | B3: CH SUPP ENFORCE UNCLAIMED FUNDS | C3: P | D3: 109561 | E3: 25210.85 | G3: =G2+E3-F3 -> 222331.36
A4: 2/3 | B4: REMINGER & REMINGER REPLACE CK | C4: CK | D4: 82432 | F4: 100 | G4: 222231.36
A5: 2/3 | B5: SHERIFF DEPT UNCLAIM MONEY 2-98 | C5: P | D5: 109617 | E5: 11667.59 | G5: 233898.95
A6: 4/15 | B6: WESTERN CO COURT UNCLAIM 4-98 | C6: P | D6: 11515 | E6: 27 | G6: 233925.95
A7: 4/15 | B7: EASTERN CO COURT UNCLAIM 4-98 | C7: P | D7: 11520 | E7: 38.4 | G7: 233964.35
A8: 4/22 | B8: C. CHESTLOCK STALE CK 75883 | C8: RE | D8: 74 | E8: 8 | G8: 233972.35
A9: 4/22 | B9: SCM CHEMICALS STALE CK 75462 | C9: RE | D9: 75 | E9: 202.68 | G9: 234175.03
A10: 4/22 | B10: M. JEFFORDS STALE CK 80263, 80337 | C10: RE | D10: 76 | E10: 20 | G10: 234195.03
A11: 4/22 | B11: L. NEWSOME STALE CK 72942 | C11: RE | D11: 77 | E11: 6 | G11: 234201.03
A12: 4/24 | B12: L. NEWSOME REPLACE CK | C12: CK | D12: 88360 | F12: 6 | G12: 234195.03
A13: 4/24 | B13: M. JEFFORDS REPLACE CK | C13: CK | D13: 88361 | F13: 20 | G13: 234175.03
A14: 4/24 | B14: SCM CHEMICALS STALE CK 88362 | C14: CK | D14: 88362 | F14: 202.68 | G14: 233972.35
A15: 4/24 | B15: C. CHESTLOCK REPLACE CK 88363 | C15: CK | D15: 88363 | F15: 8 | G15: 233964.35
A16: 4/29 | B16: D. ASKEY STALE CK 76464 | C16: RE | D16: 93 | E16: 10 | G16: 233974.35
A17: 4/29 | B17: J. PALO STALE CK 71563 | C17: RE | D17: 94 | E17: 30.16 | G17: 234004.51
A18: 4/29 | B18: PLYMOUTH ELEMENTARY STALE CK 71519 | C18: RE | D18: 95 | E18: 65 | G18: 234069.51
A19: 4/29 | B19: S. ELTRINGHAM STALE CK 64030 | C19: RE | D19: 96 | E19: 20 | G19: 234089.51
A20: 4/29 | B20: COOK DRUGS STALE CK 56043 | C20: RE | D20: 97 | E20: 134.26 | G20: 234223.77
A21: 4/29 | B21: G. DISTEL STALE CK 56059 | C21: RE | D21: 98 | E21: 2.99 | G21: 234226.76
A22: 4/29 | B22: A. PELTOLA STALE CK 72690 | C22: RE | D22: 99 | E22: 10 | G22: 234236.76
A23: 4/29 | B23: D. ASKEY REPLACE CK | C23: CK | D23: 88860 | F23: 10 | G23: 234226.76
A24: 4/29 | B24: J. PALO REPLACE CK | C24: CK | D24: 88861 | F24: 30.16 | G24: 234196.6
A25: 4/29 | B25: PLYMOUTH ELEMENTARY REPLACE CK | C25: CK | D25: 88862 | F25: 65 | G25: 234131.6
A26: 4/29 | B26: S. ELTRINGHAM REPLACE CK | C26: CK | D26: 88863 | F26: 20 | G26: 234111.6
A27: 4/29 | B27: COOK DRUGS REPLACE CK | C27: CK | D27: 88864 | F27: 134.26 | G27: 233977.34
A28: 4/29 | B28: G. DISTEL REPLACE CK | C28: CK | D28: 88865 | F28: 2.99 | G28: 233974.35
A29: 4/29 | B29: A. PELTOLA REPLACE CK | C29: CK | D29: 88866 | F29: 10 | G29: 233964.35
A30: 5/5 | B30: CLERK OF COURTS UNCLAIM MONEY 4-98 | C30: P | D30: 11770 | E30: 675.95 | G30: 234640.3
A31: 5/8 | B31: E. GRYCZAN STALE CK 67664 | C31: RE | D31: 130 | E31: 10 | G31: 234650.3
A32: 5/8 | B32: THOMSON PENN-OHIO STALE CK 70362 | C32: RE | D32: 131 | E32: 185.28 | G32: 234835.58
A33: 5/8 | B33: W. BROWN STALE CK 63164 | C33: RE | D33: 133 | E33: 15 | G33: 234850.58
A34: 5/11 | B34: DR. A. WILKINSON WOULD NOT ACCEPT CK88664 | C34: RE | D34: 134 | E34: 8 | G34: 234858.58
A35: 5/11 | B35: COMMON PLEAS CK 81477 C. FARMER NOT DELIV | C35: RE | D35: 135 | E35: 6 | G35: =G34+E35-F35 -> 234864.58
A36: 5/11 | B36: COMMON PLEAS CK 81481 T. FARMER NOT DELIV | C36: RE | D36: 136 | E36: 6 | G36: 234870.58
A37: 5/11 | B37: THOMSON PENN-OHIO REPLACE CK | C37: CK | D37: 89500 | F37: 185.28 | G37: 234685.3
A38: 5/11 | B38: ELAINE GRYCZAN REPLACE CK | C38: CK | D38: 89501 | F38: 10 | G38: 234675.3
A39: 5/11 | B39: W. BROWN REPLACE CK | C39: CK | D39: 89545 | F39: 15 | G39: 234660.3
A40: 5/12 | B40: P. DANIELS STALE WITNESS CK 62733 | C40: RE | D40: 140 | E40: 8.4 | G40: 234668.7
A41: 5/13 | B41: PHYLLIS DANIELS REPLACE CK | C41: CK | D41: 89815 | F41: 8.4 | G41: 234660.3
A42: 5/14 | B42: STALE DATED CK 54747 P. MCINTYRE ASH MUNI CT | C42: RE | D42: 141 | E42: 6 | G42: 234666.3
A43: 5/14 | B43: STALE DATED CK 75588 M. RITCHIE COMMON PLEA | C43: RE | D43: 142 | E43: 11 | G43: 234677.3
A44: 5/19 | B44: CLOSURE OF BOND & COUPON ACCT | C44: P | D44: 11921 | E44: 146.42 | G44: 234823.72
A45: 5/21 | B45: VOIDED CK 75460 STALE DATED | C45: RE | D45: 177 | E45: 1296.78 | G45: 236120.5
A46: 5/22 | B46: AMERICAN STEEL & WIRE CORP REPLACE CK | C46: CK | D46: 91311 | F46: 1296.78 | G46: 234823.72
A47: 6/2 | B47: VOIDED CK 64298 STALE DATED | C47: RE | D47: 189 | E47: 10 | G47: 234833.72
A48: 6/2 | B48: MARGARET COBLENTZ REPLACED CK 64298 | C48: CK | D48: 91860 | F48: 10 | G48: 234823.72
A49: 6/10 | B49: MELONY RITCHIE REPLACED CK 75888 | C49: CK | D49: 92605 | F49: 11 | G49: 234812.72
A50: 6/29 | B50: VOIDED CK 48792 STATE OF OHIO | C50: RE | D50: 258 | E50: 1.64 | G50: 234814.36
A51: 7/31 | B51: C. PETERSON STALE DATED CK#74066 | C51: RE | D51: 386 | E51: 159.07 | G51: 234973.43
A52: 11/2 | B52: UNCLAIMED MONEY 10/98 PATRICIA SMITH | C52: P | D52: 13885 | E52: 45.24 | G52: 235018.67
A53: 11/12 | B53: WM L JENKINS | C53: CK | D53: 103872 | F53: 242.4 | G53: 234776.27
A54: 11/19 | B54: UNCLAIMED MONEY WIND #2 OVER APRIL | C54: P | D54: 14040 | E54: 5 | G54: 234781.27
A55: 11/25 | B55: STALE DATED CK 61336 MARION CO SHERIFF DEPT | C55: RE | D55: 729 | E55: 4.22 | G55: 234785.49
A56: 11/25 | B56: STALE DATED CK 43976 NATIONAL RECYCLING COALITION | C56: RE | D56: 730 | E56: 100 | G56: 234885.49
A57: 11/25 | B57: STALE DATED CK 65671 JAMES L HUGHES | C57: RE | D57: 731 | E57: 7.8 | G57: 234893.29
A58: 11/25 | B58: STALE DATED CK 45889 ALAN J ALTONEN | C58: RE | D58: 732 | E58: 8 | G58: 234901.29
A59: 11/25 | B59: STALE DATED CK 60988 ALAN J ALTONEN | C59: RE | D59: 733 | E59: 6 | G59: 234907.29
A60: 11/25 | B60: STALE DATED CK 18213 LILLIAN BONNER | C60: RE | D60: 734 | E60: 216 | G60: 235123.29
A61: 11/25 | B61: STALE DATED CK 59799 MARK D CAMERON | C61: RE | D61: 735 | E61: 10 | G61: 235133.29
A62: 11/25 | B62: STALE DATED CK 53565 DAVID CHECH | C62: RE | D62: 736 | E62: 6 | G62: 235139.29
A63: 11/25 | B63: STALE DATED CK 47371 GINA DAVIS | C63: RE | D63: 737 | E63: 8 | G63: 235147.29
A64: 11/25 | B64: STALE DATED CK 52321 LEWIS ERNI | C64: RE | D64: 738 | E64: 10 | G64: 235157.29
A65: 11/25 | B65: STALE DATED CK 46081 JOY ESTOCK | C65: RE | D65: 739 | E65: 427.6 | G65: 235584.89
A66: 11/25 | B66: STALE DATED CK 55646 KENNETH D FIELDS | C66: RE | D66: 740 | E66: 10 | G66: 235594.89
A67: 11/25 | B67: STALE DATED CK 56467 KENNETH D FIELDS | C67: RE | D67: 741 | E67: 10 | G67: =G66+E67-F67 -> 235604.89
A68: 11/25 | B68: STALE DATED CK 64889 JAMES H GIBSON JR | C68: RE | D68: 742 | E68: 2.26 | G68: 235607.15
A69: 11/25 | B69: STALE DATED CK 29283 WILLIAM R HERSHEY | C69: RE | D69: 743 | E69: 9.5 | G69: 235616.65
A70: 11/25 | B70: STALE DATED CK 54757 MATTHEW D JOHNSON | C70: RE | D70: 744 | E70: 6 | G70: 235622.65
A71: 11/25 | B71: STALE DATED CK 46547 LDDS WORLDCOM | C71: RE | D71: 745 | E71: 12.43 | G71: 235635.08
A72: 11/25 | B72: STALE DATED CK 34150 LAKESIDE ELECTRONICS | C72: RE | D72: 746 | E72: 186.26 | G72: 235821.34
A73: 11/25 | B73: STALE DATED CK 47314 TIMOTHY LEARN | C73: RE | D73: 747 | E73: 6 | G73: 235827.34
A74: 11/25 | B74: STALE DATED CK 63071 PATRICIA MOLESKI | C74: RE | D74: 748 | E74: 7.4 | G74: 235834.74
A75: 11/25 | B75: STALE DATED CK 63327 OHIO PARKS | C75: RE | D75: 749 | E75: 116.6 | G75: 235951.34
A76: 11/25 | B76: STALE DATED CK 45476 MARCIAL RESTO | C76: RE | D76: 750 | E76: 10 | G76: 235961.34
A77: 11/25 | B77: STALE DATED CK 31473 ROTO-ROOTER SEWER & DRAIN | C77: RE | D77: 751 | E77: 95 | G77: 236056.34
A78: 11/25 | B78: STALE DATED CK 51732 TRACY L SCHELLER | C78: RE | D78: 752 | E78: 6 | G78: 236062.34
A79: 11/25 | B79: STALE DATED CK 45918 GRAIG M SIEKKINEN | C79: RE | D79: 753 | E79: 10 | G79: 236072.34
A80: 11/25 | B80: STALE DATED CK 45437 JOANN SPENCER | C80: RE | D80: 754 | E80: 6.8 | G80: 236079.14
A81: 11/25 | B81: STALE DATED CK 55512 JEFFREY K STARKEY | C81: RE | D81: 755 | E81: 10 | G81: 236089.14
A82: 11/25 | B82: STALE DATED CK 56617 JEFFREY K STARKEY | C82: RE | D82: 756 | E82: 10 | G82: 236099.14
A83: 11/25 | B83: STALE DATED CK 62820 JOYCE F SUMMERS | C83: RE | D83: 757 | E83: 6 | G83: 236105.14
A84: 11/25 | B84: STALE DATED CK 48102 DAWN RENEE TACKETT | C84: RE | D84: 758 | E84: 10 | G84: 236115.14
A85: 11/25 | B85: STALE DATED CK 51728 MICHAEL TORTORA | C85: RE | D85: 759 | E85: 6 | G85: 236121.14
A86: 11/25 | B86: STALE DATED CK 45905 TREVOR D TRASK | C86: RE | D86: 760 | E86: 8 | G86: 236129.14
A87: 11/25 | B87: STALE DATED CK 47252 MARY LOU VANASKEY | C87: RE | D87: 761 | E87: 10 | G87: 236139.14
A88: 11/25 | B88: STALE DATED CK 54744 KYE R ZIEGLER | C88: RE | D88: 762 | E88: 12 | G88: 236151.14
A89: 12/18 | B89: RICHARD A JONES RETURNED CK#87390 | C89: RE | D89: 821 | E89: 10 | G89: 236161.14
A90: 12/30 | B90: ANONYMOUS UNCLAIMED MONEY SENT IN | C90: P | D90: 14510 | E90: 20 | G90: 236181.14

Sheet 1997
B1: 1997 UNCLAIMED MONEY | D1: CHECK OR PAYIN# | E1: REVENUE | F1: EXPENSE | G1: BALANCE
G2: 172385.85
A3: 2/5 | B3: DOROTHY GILL CK# 56627 REPLACE CK#10292 | C3: CK | D3: 56627 | F3: 5 | G3: =G2+E3-F3 -> 172380.85
A4: 2/12 | B4: WEST CO COURT | C4: P | D4: 105127 | E4: 41.7 | G4: 172422.55
A5: 4/11 | B5: JOYCE BOVEE CK#61480 REPLACE CK#43650 | C5: CK | D5: 61480 | F5: 6 | G5: 172416.55
A6: 4/14 | B6: EASTERN CO COURT | C6: P | D6: 105988 | E6: 3 | G6: 172419.55
A7: 4/17 | B7: JOHN POWERS CK#60889 | C7: RE | D7: 10887 | E7: 20 | G7: 172439.55
A8: 5/2 | B8: CLERK OF COURTS | C8: P | D8: 106254 | E8: 20721.37 | G8: 193160.92
A9: 5/15 | B9: SHERIFF'S INMATE ACCT. | C9: P | D9: 106407 | E9: 988.46 | G9: 194149.38
A10: 6/19 | B10: PIERPONT CK#11069 | C10: RE | D10: 11069 | E10: 1176.39 | G10: 195325.77
A11: 6/19 | B11: ASH CO MEDICAL CK#60411 | C11: RE | D11: 11066 | E11: 775 | G11: 196100.77
A12: 6/19 | B12: JAMES MEIVOGEL CK#55707 | C12: RE | D12: 11067 | E12: 10 | G12: 196110.77
A13: 6/19 | B13: BOSTON MUTUAL CK#57356 | C13: RE | D13: 11068 | E13: 180.32 | G13: 196291.09
A14: 6/19 | B14: RICHARD ANDERSON CK#52320 | C14: RE | D14: 11070 | E14: 10 | G14: 196301.09
A15: 6/27 | B15: ASH CO TREAS | C15: RE | D15: 11095 | E15: 4.7 | G15: 196305.79
A16: 7/24 | B16: ASH CO TREAS | C16: P | D16: 107280 | E16: 10 | G16: 196315.79
A17: 7/24 | B17: ASH CO TREAS | C17: P | D17: 107281 | E17: 18.76 | G17: 196334.55
A18: 7/24 | B18: ASH CO TREAS (OUT RED INKERS) | C18: P | D18: 107282 | E18: 359 | G18: 196693.55
A19: 11/07 | B19: ASH CO TREAS | C19: P | D19: 108584 | E19: 394.96 | G19: 197088.51
A20: 12/30 | B20: COMMON PLEAS CK#73882,75667 | C20: RE | D20: 11508 | E20: 20 | G20: 197108.51
A21: 12/30 | B21: ASH CO MUNI CT CK#73392 | C21: RE | D21: 11510 | E21: 6 | G21: 197114.51
A22: 12/30 | B22: WEST CO COURT CK#78032 | C22: RE | D22: 11509 | E22: 6 | G22: 197120.51
G23: 197120.51

Sheet 1996
B1: 1996 UNCLAIMED MONEY | D1: CHECK OR PAYIN# | E1: REVENUE | F1: EXPENSE | G1: BALANCE
B2: #725
A4: 1996 | B4: BEGINNING BALANCE | G4: 132924.39
A5: 1/9 | B5: STALE CK R. OTTO CK#16414 | C5: RE | D5: 9767 | E5: 10 | G5: =G4+E5-F5 -> 132934.39
A6: 1/26 | B6: WESTERN COURT INSUFFICIENT CK#558 | C6: P | D6: 100017 | E6: 150 | G6: =G5+E6-F6 -> 133084.39
B7: I. SCHEULER
A8: 2/8 | B8: WESTERN COURT UNCLAIMED FEES | C8: P | D8: 100204 | E8: 2319.65 | G8: =G6+E8-F8 -> 135404.04
A9: 3/7 | B9: WESTERN COURT CK#816 R. RONDINI & F. REED | C9: P | D9: 100655 | E9: 471.36 | G9: =G8+E9-F9 -> 135875.4
A10: 3/7 | B10: TRANSFER PER TREAS | C10: RE | D10: 9875 | F10: 5.12 | G10: 135870.28
A11: 3/13 | B11: LAND SALE | C11: RE | D11: 9883 | E11: 9637.89 | G11: 145508.17
A12: 5/9 | B12: CLERK OF COURTS UNCLAIMED FEES | C12: P | D12: 101538 | E12: 457.63 | G12: 145965.8
A13: 7/5 | B13: WESTERN COURT UNCLAIMED JUNE 96 REPORT | C13: P | D13: 102258 | E13: 36.39 | G13: 146002.19
A14: 7/11 | B14: M. LUKE CK#40498 WITNESS | C14: RE | D14: 10203 | E14: 6 | G14: 146008.19
A15: 9/3 | B15: SHERIFFS CK#5040 R. SMITH | C15: P | D15: 103032 | E15: 3287.17 | G15: 149295.36
A16: 9/18 | B16: METRO PARK #26656 KOHLI, CHRIS | C16: RE | D16: 10365 | E16: 1.9 | G16: 149297.26
A17: 10/30 | B17: LAND SALE | C17: RE | D17: 10470 | E17: 13215.28 | G17: 162512.54
A18: 12/3 | B18: S. SHELDON CK#31381 WITNESS | C18: RE | D18: 10514 | E18: 8 | G18: 162520.54
A19: 12/3 | B19: N. GIBBONS CK#34693, A. MCVICKER CK#31872 WIT. | C19: RE | D19: 10515 | E19: 12 | G19: 162532.54
A20: 12/3 | B20: R.PODGORNY CK#29044, R. KAYDO CK#32463, | C20: RE | D20: 10516 | E20: 22 | G20: 162554.54
B21: J. COSME CK#28794 | C21: RE | D21: 10516 | G21: 162554.54
A22: 12/3 | B22: T. MONTGOMERY CK#28809, M. STAINFIELD CK# | C22: RE | D22: 10517 | E22: 24 | G22: 162578.54
B23: 20526, R. PODGORNYCK#29127, S.LEWIS CK#34830 | G23: 162578.54
A24: 12/13 | B24: PIERPONT TWP CK#30549 | C24: RE | D24: 10526 | E24: 136.28 | G24: 162714.82
A25: 12/13 | B25: PIERPONT TWP CK#10527 | C25: RE | D25: 10527 | E25: 597.72 | G25: 163312.54
A26: 12/13 | B26: PIERPONT TWP CK#30458, KINGSVILLE TWP CK# | C26: RE | D26: 10528 | E26: 2496.56 | G26: 165809.1
B27: 43937 | G27: 165809.1
A28: 12/13 | B28: ANDOVER TWP CK#40818, SHEFFIELD TWP CK# | C28: RE | D28: 10529 | E28: 3921.17 | G28: 169730.27
B29: 44426 | G29: 169730.27
A30: 12/18 | B30: D. LOCHER CK#22833 | C30: RE | D30: 10554 | E30: 20 | G30: 169750.27
A31: 12/18 | B31: NORTHEAST OFFICE EQUIPMENT CK#41027 | C31: RE | D31: 10555 | E31: 29.95 | G31: 169780.22
A32: 12/18 | B32: B. SANGER CK#39267 | C32: RE | D32: 10556 | E32: 10 | G32: 169790.22
A33: 12/18 | B33: CONSOLIDATED COMPUTER SERV. CK#44397 | C33: RE | D33: 10557 | E33: 40 | G33: 169830.22
A34: 12/18 | B34: R. GODSAVE CK#45477 | C34: RE | D34: 10558 | E34: 10 | G34: 169840.22
A35: 12/30 | B35: Z. BARTONE CK#13274 | C35: RE | D35: 10622 | E35: 10 | G35: 169850.22
A36: 12/30 | B36: D. GILL CK#10292 | C36: RE | D36: 10621 | E36: 5 | G36: 169855.22
A37: 12/30 | B37: J. CAMPBELL CK#5782 | C37: RE | D37: 10620 | E37: 6 | G37: 169861.22
A38: 12/30 | B38: T. TRASK CK#4754, D. MATSON CK#11244, | C38: RE | D38: 10619 | E38: 22 | G38: 169883.22
B39: M. SHAMRAY CK#12912 | G39: 169883.22
A40: 12/30 | B40: P. STEADMAN CK#3839, R. KENDZERSKI CK#12877 | C40: RE | D40: 10618 | E40: 20 | G40: 169903.22
A41: 12/30 | B41: L. OGREN CK#2306, K. LUCE CK#7248, C. JACKSON | C41: RE | D41: 10617 | E41: 40 | G41: 169943.22
B42: CK#7250, K. PHILLIPS CK#7379 | G42: 169943.22
A43: 12/30 | B43: K. SMITH CK#2284, B. TOWNSEND CK#2343, R.KULISZ | C43: RE | D43: 10616 | E43: 48 | G43: 169991.22
B44: CK#2350, C. MCINTOSH CK#3930, B. DOWNIE CK# | G44: 169991.22
B45: 5888, M. ROBINSON CK#5891, K. SANDELLA CK# 5893 | G45: 169991.22
B46: M. ATZEMIS CK#11935 | G46: 169991.22
A47: 12/30 | B47: V. DAHLBERG CK#35004 | C47: RE | D47: 10634 | E47: 19 | G47: 170010.22
A48: 12/30 | B48: J. ARCARO CK#33738 | C48: RE | D48: 10633 | E48: 10 | G48: 170020.22
A49: 12/30 | B49: H. EMERICK CK#27594 | C49: RE | D49: 10632 | E49: 10 | G49: 170030.22
A50: 12/30 | B50: D. CONYER CK#22928 D. CONGER CK#25246 | C50: RE | D50: 10631 | E50: 20 | G50: 170050.22
A51: 12/30 | B51: C. SOWRY CK#22900 | C51: RE | D51: 10630 | E51: 6 | G51: 170056.22
A52: 12/30 | B52: G. EWIG CK#22796, W. KEYES CK#22800 | C52: RE | D52: 10629 | E52: 20 | G52: 170076.22
A53: 12/30 | B53: R. MATSON CK#20385 | C53: RE | D53: 10628 | E53: 8.2 | G53: 170084.42
A54: 12/30 | B54: P. WARNAKA CK#19604, B. DOUGLAS CK#29064, | C54: RE | D54: 10627 | E54: 60 | G54: 170144.42
B55: D. MILLER CK#29069, N, DAHLING CK#29824, S. LYON | G55: 170144.42
B56: CK#32253, J. UHRAIN CK#37565 | G56: 170144.42
A57: 12/30 | B57: G. PRISTERA CK#16506, M. JAMES CK#17390 P.RICE | C57: RE | D57: 10626 | E57: 48 | G57: 170192.42
B58: CK#21412, J. JEWELL CK#29759, W. O'BRIEN CK# | G58: 170192.42
B59: 32089, R. MATTSON CK#32465 | G59: 170192.42
A60: 12/30 | B60: D. LAPANA CK#14247, J. KOPE CK#22820, E. MCKEAN | C60: RE | D60: 10625 | E60: 31.6 | G60: 170224.02
B61: CK#24273, K. KELNER CK#31375 | G61: 170224.02
A62: 12/30 | B62: M. ESTOCK CK#13790 | C62: RE | D62: 10624 | E62: 10 | G62: 170234.02
A63: 12/30 | B63: R. BARTO CK#13428, J. KIDWELL CK#14473, | C63: RE | D63: 10623 | E63: 42 | G63: 170276.02
B64: E. DIRRIGL CK#17418, B. REAMS CK#22731, | G64: 170276.02
B65: D. STEIGHNER CK#25011, D. MARTIN CK#30027 | G65: 170276.02
B66: S. PHELPS CK#31320 | G66: 170276.02
A67: 12/30 | B67: K. HALL CK#37752, D. BALL CK#37754, D.RICHARDS | C67: RE | D67: 10635 | E67: 120 | G67: 170396.02
B68: CK#58436, E. MILLSPAW CK#59042, D. RICHARDS CK# | G68: 170396.02
B69: 60670, F. BRAIS CK#63859, J. GLOTVITCH CK#67905 | G69: 170396.02
B70: B. GARBENUS CK#68808, J. GLOTVITCH CK#68849 | G70: 170396.02
B71: J. GLOTVITCH CK#68959 | G71: 170396.02
A72: 12/30 | B72: D. SJOSTROM CK#38530, W. SJOSTROM CK#38531 | C72: RE | D72: 10636 | E72: 48 | G72: 170444.02
B73: D. WISER CK#40494, R. HUMMEL CK#42833, J.GREEN | G73: =G72+E73-F73 -> 170444.02
B74: CK#59970, P. THOMPSON CK#61814, D. PETERSON | G74: 170444.02
B75: CK#69132, J. VANCE CK#69135 | G75: 170444.02
A76: 12/30 | B76: E. PEKARCIK CK#40453, B. SPALLER CK#40463, | C76: RE | D76: 10637 | E76: 18 | G76: 170462.02
B77: T. RIVERA CK#43590 | G77: 170462.02
A78: 12/30 | B78: A. EMERY CK#43595 | C78: RE | D78: 10638 | E78: 6 | G78: 170468.02
A79: 12/30 | B79: J. BOVEE CK#43650 | C79: RE | D79: 10639 | E79: 6 | G79: 170474.02
A80: 12/30 | B80: D. MCGURER CK#45165, L. MEIGHEN CK#45179 | C80: RE | D80: 10640 | E80: 20 | G80: 170494.02
A81: 12/30 | B81: COMDOC COPY CK#13690 | C81: RE | D81: 10641 | E81: 800 | G81: 171294.02
A82: 12/30 | B82: KENTUCKY ST. TREAS. CK#33465 | C82: RE | D82: 10642 | E82: 7 | G82: 171301.02
A83: 12/30 | B83: M. MEAD CK#815 | C83: RE | D83: 10643 | E83: 4.22 | G83: 171305.24
A84: 12/30 | B84: ADOPTIVE FAMILIES OF AMERICA CK#23907 | C84: RE | D84: 10644 | E84: 31.7 | G84: 171336.94
A85: 12/30 | B85: J. SMOCK CK#105834, R. STOWERS CK#125641, | C85: RE | D85: 10646 | E85: 125.15 | G85: 171462.09
B86: K. WICK CK#125649, M. WILSON CK#139356 | G86: 171462.09
A87: 12/30 | B87: W. BRANCH CK#32070 | C87: RE | D87: 10647 | E87: 0.65 | G87: 171462.74
A88: 12/30 | B88: MCI CK#9660 | C88: RE | D88: 10648 | E88: 9.71 | G88: 171472.45
A89: 12/30 | B89: S. HEWINS CK#370, H. DALRYMPLE CK#44065 | C89: RE | D89: 10649 | E89: 52 | G89: 171524.45
A90: 12/30 | B90: M. DISTLER CK#101771, D. FOX CK#287587 | C90: RE | D90: 10650 | E90: 46.61 | G90: 171571.06
A91: 12/30 | B91: TREAS. OF STATE CK#13891 | C91: RE | D91: 10651 | E91: 188.49 | G91: 171759.55
A92: 12/30 | B92: TRAVELERS LIFE CK#63725 | C92: RE | D92: 10652 | E92: 21.56 | G92: 171781.11
A93: 12/30 | B93: OH. DIVISION OF REAL ESTATE CK#3061 | C93: RE | D93: 10653 | E93: 14 | G93: 171795.11
A94: 12/30 | B94: AMERICAN PUBLIC HEALTH CK#3062 | C94: RE | D94: 10654 | E94: 42 | G94: 171837.11
A95: 12/30 | B95: AMER. ACADEMY OF PEDIATRICS CK#22889 | C95: RE | D95: 10655 | E95: 175 | G95: 172012.11
A96: 12/30 | B96: J. ESTOCK CK#67719 | C96: RE | D96: 10645 | E96: 373.74 | G96: 172385.85
G97: 172385.85
G211: ='1998'!G90+E211-F211 -> 236181.14
I304: 03/23 | J304: 03/23 | K304: 03/23 | L304: 03/23 | M304: 03/23 | N304: 03/23 | O304: 03/23 | P304: 03/23 | Q304: 03/23 | R304: 03/23 | S304: 03/23 | T304: 03/23 | U304: 03/23 | V304: 03/23 | W304: 03/23 | X304: 03/23 | Y304: 03/23 | Z304: 03/23 | AA304: 03/23 | AB304: 03/23 | AC304: 03/23 | AD304: 03/23 | AE304: 03/23 | AF304: 03/23 | AG304: 03/23 | AH304: 03/23 | AI304: 03/23 | AJ304: 03/23 | AK304: 03/23 | AL304: 03/23 | AM304: 03/23 | AN304: 03/23 | AO304: 03/23 | AP304: 03/23 | AQ304: 03/23 | AR304: 03/23 | AS304: 03/23 | AT304: 03/23 | AU304: 03/23 | AV304: 03/23 | AW304: 03/23 | AX304: 03/23 | AY304: 03/23 | AZ304: 03/23 | BA304: 03/23 | BB304: 03/23 | BC304: 03/23 | BD304: 03/23 | BE304: 03/23 | BF304: 03/23 | BG304: 03/23 | BH304: 03/23 | BI304: 03/23 | BJ304: 03/23 | BK304: 03/23 | BL304: 03/23 | BM304: 03/23 | BN304: 03/23 | BO304: 03/23 | BP304: 03/23 | BQ304: 03/23 | BR304: 03/23 | BS304: 03/23 | BT304: 03/23 | BU304: 03/23 | BV304: 03/23 | BW304: 03/23 | BX304: 03/23 | BY304: 03/23 | BZ304: 03/23 | CA304: 03/23 | CB304: 03/23 | CC304: 03/23 | CD304: 03/23 | CE304: 03/23 | CF304: 03/23 | CG304: 03/23 | CH304: 03/23 | CI304: 03/23 | CJ304: 03/23 | CK304: 03/23 | CL304: 03/23 | CM304: 03/23 | CN304: 03/23 | CO304: 03/23 | CP304: 03/23 | CQ304: 03/23 | CR304: 03/23 | CS304: 03/23 | CT304: 03/23 | CU304: 03/23 | CV304: 03/23 | CW304: 03/23 | CX304: 03/23 | CY304: 03/23 | CZ304: 03/23 | DA304: 03/23 | DB304: 03/23 | DC304: 03/23 | DD304: 03/23 | DE304: 03/23 | DF304: 03/23 | DG304: 03/23 | DH304: 03/23 | DI304: 03/23 | DJ304: 03/23 | DK304: 03/23 | DL304: 03/23 | DM304: 03/23 | DN304: 03/23 | DO304: 03/23 | DP304: 03/23 | DQ304: 03/23 | DR304: 03/23 | DS304: 03/23 | DT304: 03/23 | DU304: 03/23 | DV304: 03/23 | DW304: 03/23 | DX304: 03/23 | DY304: 03/23 | DZ304: 03/23 | EA304: 03/23 | EB304: 03/23 | EC304: 03/23 | ED304: 03/23 | EE304: 03/23 | EF304: 03/23 | EG304: 03/23 | EH304: 03/23 | EI304: 03/23 | EJ304: 03/23 | EK304: 03/23 | EL304: 03/23 | EM304: 03/23 | EN304: 03/23 | EO304: 03/23 | EP304: 03/23 | EQ304: 03/23 | ER304: 03/23 | ES304: 03/23 | ET304: 03/23 | EU304: 03/23 | EV304: 03/23 | EW304: 03/23 | EX304: 03/23 | EY304: 03/23 | EZ304: 03/23 | FA304: 03/23 | FB304: 03/23 | FC304: 03/23 | FD304: 03/23 | FE304: 03/23 | FF304: 03/23 | FG304: 03/23 | FH304: 03/23 | FI304: 03/23 | FJ304: 03/23 | FK304: 03/23 | FL304: 03/23 | FM304: 03/23 | FN304: 03/23 | FO304: 03/23 | FP304: 03/23 | FQ304: 03/23 | FR304: 03/23 | FS304: 03/23 | FT304: 03/23 | FU304: 03/23 | FV304: 03/23 | FW304: 03/23 | FX304: 03/23 | FY304: 03/23 | FZ304: 03/23 | GA304: 03/23 | GB304: 03/23 | GC304: 03/23 | GD304: 03/23 | GE304: 03/23 | GF304: 03/23 | GG304: 03/23 | GH304: 03/23 | GI304: 03/23 | GJ304: 03/23 | GK304: 03/23 | GL304: 03/23 | GM304: 03/23 | GN304: 03/23 | GO304: 03/23 | GP304: 03/23 | GQ304: 03/23 | GR304: 03/23 | GS304: 03/23 | GT304: 03/23 | GU304: 03/23 | GV304: 03/23 | GW304: 03/23 | GX304: 03/23 | GY304: 03/23 | GZ304: 03/23 | HA304: 03/23 | HB304: 03/23 | HC304: 03/23 | HD304: 03/23 | HE304: 03/23 | HF304: 03/23 | HG304: 03/23 | HH304: 03/23 | HI304: 03/23 | HJ304: 03/23 | HK304: 03/23 | HL304: 03/23 | HM304: 03/23 | HN304: 03/23 | HO304: 03/23 | HP304: 03/23 | HQ304: 03/23 | HR304: 03/23 | HS304: 03/23 | HT304: 03/23 | HU304: 03/23 | HV304: 03/23 | HW304: 03/23 | HX304: 03/23 | HY304: 03/23 | HZ304: 03/23 | IA304: 03/23 | IB304: 03/23 | IC304: 03/23 | ID304: 03/23 | IE304: 03/23 | IF304: 03/23 | IG304: 03/23 | IH304: 03/23 | II304: 03/23 | IJ304: 03/23 | IK304: 03/23 | IL304: 03/23 | IM304: 03/23 | IN304: 03/23 | IO304: 03/23 | IP304: 03/23 | IQ304: 03/23 | IR304: 03/23 | IS304: 03/23 | IT304: 03/23 | IU304: 03/23 | IV304: 03/23
G339: ='2000'!G54+E339-F339 -> 276851.31
G340: =G339+E340-F340 -> 276851.31
G419: ='2002'!G32+E419-F419 -> 315087.24
G420: =G419+E420-F420 -> 315087.24
G421: 315087.24
G422: 315087.24
G423: 315087.24
G424: 315087.24
G425: 315087.24
G426: 315087.24
G427: 315087.24
G428: 315087.24
G429: 315087.24
G430: 315087.24
G431: 315087.24
G432: 315087.24
G433: 315087.24
G434: 315087.24
G435: 315087.24
G436: 315087.24
G437: 315087.24
G438: 315087.24
G439: 315087.24
G440: 315087.24
G441: 315087.24
G442: 315087.24
G443: 315087.24
G444: 315087.24

Sheet 1995
B1: 1995 UNCLAIMED MONEY | D1: CHECK OR PAYIN# | E1: REVENUE | F1: EXPENSE | G1: BALANCE
B2: #725
A4: 1995 | B4: BEGINNING BALANCE | G4: 66271.99
A5: 2/06 | B5: WESTERN COURT STALE CK#1577 M. GOREN | C5: P | D5: 95075 | E5: 118.95 | G5: =G4+E5-F5 -> 66390.94
B6: STALE CK#1588 MICHAEL GOREN
A7: 2/10 | B7: UNDELIVERABLE J. LOMBARDO JUROR | C7: RE | D7: 8789 | E7: 10 | G7: =G5+E7-F7 -> 66400.94
A8: 2/13 | B8: UNCLAIMED FORFEITED LAND SALE | C8: RE | D8: 8797 | E8: 61633.6 | G8: =G7+E8-F8 -> 128034.54
A9: 2/27 | B9: UNCLAIMED CKS#62303 P. KOLBO WITNESS | C9: RE | D9: 8842 | E9: 12 | G9: =G8+E9-F9 -> 128046.54
B10: #62308 K. KINNEY JR. WITNESS
A11: 3/21 | B11: CLERK OF COURTS UNCLAIMED FEES | C11: P | D11: 95735 | E11: 1059.44 | G11: =G9+E11-F11 -> 129105.98
A12: 6/29 | B12: WITNESS CK#11929 RETURNED MOVED | C12: RE | D12: 9218 | E12: 6 | G12: =G11+E12-F12 -> 129111.98
A13: 8/24 | B13: WESTERN COURT UNCASHED CIVIL ACCT CKS | C13: P | D13: 98039 | E13: 478.85 | G13: =G12+E13-F13 -> 129590.83
A14: 11/15 | B14: WESTERN COUT RETURNED CKS#556 T. | C14: P | D14: 99094 | E14: 270 | G14: =G13+E14-F14 -> 129860.83
B15: PASQUALONE #559 R. POSEY, #560 J. G. CESARI
A16: 11/17 | B16: WESTERN COURT UNCLAIMED FEES CIVIL | C16: P | D16: 99156 | E16: 1037.77 | G16: =G14+E16-F16 -> 130898.6
A17: 11/15 | B17: LAND SALE | C17: RE | D17: 9598 | E17: 1953.79 | G17: =G16+E17-F17 -> 132852.39
A18: 11/30 | B18: R. LAPPE CK#11888 RETURNED NO FORWARD. | C18: RE | D18: 9649 | E18: 10 | G18: =G17+E18-F18 -> 132862.39
A19: 11/30 | B19: T. GOSS CK#23043, D. GAMES CK#22949, D. BAILEY | C19: RE | D19: 9650 | E19: 26 | G19: =G18+E19-F19 -> 132888.39
B20: CK#23036 RETURNED NO FORWARDING
A21: 11/30 | B21: UNDELIVERABLE CK#22727 T. DUTTON | C21: RE | D21: 9651 | E21: 12 | G21: =G19+E21-F21 -> 132900.39
B22: CK#13433 L. GOLF
A23: 12/29 | B23: UNDELIVERABLE CK#19788 T. ANDERSON | C23: RE | D23: 9763 | E23: 8 | G23: =G21+E23-F23 -> 132908.39
A24: 12/29 | B24: UNDELIVERABLE CK#25010 J. WISER | C24: RE | D24: 9764 | E24: 6 | G24: =G23+E24-F24 -> 132914.39
A25: 12/29 | B25: UNDELIVERABLE CK#26418 J. WALDRON | C25: RE | D25: 9765 | E25: 10 | G25: =G24+E25-F25 -> 132924.39

Sheet Sheet1
